{"text_format":"1","workbook":"xlsx","n_sheets":10,"sheets":["TOELICHTING","Facturatie","Contractanten","Betrokken medewerkers","Verklaring betrokkenen","Verklaring onderaannemers","DNSH","Identificatie","Register stavingsstukken","basisdata"],"not_rendered":{"charts":0,"images":1,"macros":1,"external_links":1,"defined_names":5,"comments":0,"pivot_tables":1},"unopened":[],"bounds":{"document_bytes":16777216,"sheet_cells":100000,"rows_first":2000,"rows_last":500,"rows_between":2000,"halvings":0,"cell_chars":16384,"cell_head_chars":4096},"cells_cut":0,"cells_raw":0,"read":"whole","date_system":"1900"}

{"sheet":"TOELICHTING","index":0,"n_rows":64,"n_cols":2,"rows_kept":64,"cut":false,"hidden":false,"merged":[[10,0,10,1],[12,0,12,1],[13,0,13,1],[39,0,39,1],[40,0,40,1],[41,0,41,1],[47,0,47,1],[53,0,53,1],[46,0,46,1],[42,0,42,1]]}
["TOELICHTING BIJ HET INVULLEN VAN HET RAPPORTERINGSSJABLOON"]
[]
["Maak eerst een kopie van het rapporteringssjabloon per gebouw. "]
["U doet dit door op het tabblad 'Facturatie' uw geheime code in te geven en het gebouw te selecteren. Sla deze kopie(ën) op."]
[]
[]
["Tabblad 'Facturatie'"]
["U vindt hier een overzicht van de maatregelen waarvoor een subsidie werd toegekend."]
["Vul bij de aanvraag van de tweede betaalschijf de start- en einddatum en effectieve kostprijs van de werken excl. btw aan op de facturatiefiche. "]
[]
["Tabblad 'Contractanten':"]
["U vult de gegevens van de aannemers en onderaannemers aan."]
["1. Indien meerdere aannemers (contractanten) de werken uitvoeren, gelieve dan evenveel lijnen als aannemers in te vullen."]
["2. Indien de aannemer beroep doet op meerdere onderaannemers (subcontractanten), gelieve dan evenveel lijnen als onderaannemers in te vullen. "]
[]
[null,"Voorbeeld: 'Zorgvoorziening xyz vzw' wil graag in het kader van REPowerEU twee investeringen financieren : de installatie van zonnepanelen en een relighting project:"]
[null,"a. Voor de zonnepanelen heeft de zorgvoorziening beroep gedaan op 1 leverancier, die het volledige contract heeft uitgevoerd. De werken werden reeds gefactureerd"]
[null,"b. Voor de relighting werd het contract afgesloten met een consortium van 2 contractanten:"]
[null,"     *  de leverancier 'Lichtspecialist nv', die voor de meer gespecialiseerde armaturen beroep doet op 1 subcontractant ' Armaturenverkoper bv'"]
[null,"     *  de installateur 'Electriciteitswerken bv'"]
[null,"Het eerste project werd intussen reeds volledig gefactureerd."]
[null,"Voor het relighting project werd de aankoop van de armaturen reeds betaald. De installatie zelf door 'Electriciteitswerken bv' dient nog gefactureerd te worden. Bijgevolg werd het contract in zijn geheel nog niet volledig gefactureerd."]
[]
[]
[]
[]
[]
[]
[]
[]
[]
[]
[]
[]
[]
[]
[]
["Tabblad 'Verklaring betrokkenen'"]
["Indien u afneemt van een raamovereenkomst van het VEB of niet valt onder het toepassingsgebied Wet op overheidsopdrachten hoeft u de verklaring niet te ondertekenen."]
["Onder punt 3 van de verklaring op eer neemt u de gegevens van de contractanten over samen met de omschrijving van de maatregel."]
["U vult onder punt 4 van de verklaring op eer de namen, voornamen en geboortedata van de personeelsleden aan, die betrokken zijn bij de selectieprocedure van de aanbesteding. "]
["U maakt een PDF van de verklaring en laat ze ondertekenen door alle betrokken medewerkers."]
["Als er verschillende projecten lopen in verschillende gebouwen en dezelfde personeelsleden zijn betrokken bij de aanbesteding dan kan dit in één verklaring worden opgenomen."]
[]
["Tabblad 'Verklaring onderaannemers'"]
["Indien u afneemt van een raamovereenkomst van het VEB of niet valt onder het toepassingsgebied Wet op overheidsopdrachten hoeft u de verklaring niet te ondertekenen."]
["U vult per maatregel een verklaring op eer in. Als de passende clausule geldt voor alle maatregelen dan kan dit in één verklaring worden opgenomen."]
["U schrapt wat niet past en maakt een PDF van de verklaring."]
[]
["Tabblad 'DNSH'"]
["Het tabblad bevat de DNSH-checklist alsook extra toelichting over de concepten."]
[]
["Tabblad 'Identificatie'"]
["Vul uw rekeningnummer in, print het tabblad af in pdf-formaat en laat ondertekenen door 2 gemachtigden van uw voorziening."]
[]
[]
["Stavingsstukken"]
["Hieronder vindt u alle documenten die u in het kader van de rapportering moet aanleveren. U stuurt deze documenten op de gepaste tijdstippen naar klimaat.vipa@vlaanderen.be."]
[null,"1. Enkel indien uw voorziening onderworpen is aan de Wet op de Overheidsopdrachten en u voorafgaand aan de gunning door VIPA moet laten onderzoeken of deze wet wordt nageleefd: kopieën van de aankondigingen van de opdracht, selectiecriteria, gunningsbesluiten"]
[null,"2. Ondertekende pdf verklaring op eer omtrent de afwezigheid van belangenconflicten"]
[null,"3. De aanvaarde offerte; indien deze niet bestaat bezorgt u minimaal de factuur"]
[null,"4. De factuur of facturen die u ontvangt "]
[null,"5. Ondertekende pdf verklaring op eer dat er geen subcontractanten zijn of, indien wel, de lijst van subcontractanten opgenomen op het tabblad Rapportering volledig is."]
["Merk op: indien u afneemt van een raamovereenkomst bij VEB, wordt het raamcontract door VIPA opgevraagd en hoeft u dit niet als bijlage bij te voegen bij de rapportering."]

{"sheet":"Facturatie","index":1,"n_rows":44,"n_cols":9,"rows_kept":44,"cut":false,"hidden":false,"merged":[[2,1,2,2],[4,1,4,3],[6,1,6,2]]}
["Vul hieronder de code van uw organisatie in, indien ok dan verschijnt de naam en het KBOnr van uw organisatie/rechtspersoon"]
[]
["Code organisatie"]
[]
["Rechtspersoon",{"$f":"IFERROR(VLOOKUP(B3,basisdata!$A$1:$I$639,4,FALSE),\"foutieve geheime code\")","v":"xxx"}]
[]
["KBOnr",{"$f":"IFERROR(VLOOKUP(B3,basisdata!$A$1:$I$639,3,FALSE),\"foutieve geheime code\")","v":0}]
[]
["Selecteer hier het gebouw waarop het sjabloon betrekking heeft"]
[]
[null,null,null,null,null,{"$f":"IF(AND($A24<>\"Eindtotaal\",$A24<>\"\"),IFERROR((VLOOKUP($A24,basisdata[[#All],[dossiernummer]:[Kolom12]],4,0)),0),\"\")","v":0}]
[null,null,null,null,null,{"$f":"IF(AND($A25<>\"Eindtotaal\",$A25<>\"\"),IFERROR((VLOOKUP($A25,basisdata[[#All],[dossiernummer]:[Kolom12]],4,0)),0),\"\")","v":""}]
[null,null,null,null,null,{"$f":"IF(AND($A26<>\"Eindtotaal\",$A26<>\"\"),IFERROR((VLOOKUP($A26,basisdata[[#All],[dossiernummer]:[Kolom12]],4,0)),0),\"\")","v":""}]
[null,null,null,null,null,{"$f":"IF(AND($A27<>\"Eindtotaal\",$A27<>\"\"),IFERROR((VLOOKUP($A27,basisdata[[#All],[dossiernummer]:[Kolom12]],4,0)),0),\"\")","v":""}]
[null,null,null,null,null,{"$f":"IF(AND($A28<>\"Eindtotaal\",$A28<>\"\"),IFERROR((VLOOKUP($A28,basisdata[[#All],[dossiernummer]:[Kolom12]],4,0)),0),\"\")","v":""}]
[null,null,null,null,null,{"$f":"IF(AND($A29<>\"Eindtotaal\",$A29<>\"\"),IFERROR((VLOOKUP($A29,basisdata[[#All],[dossiernummer]:[Kolom12]],4,0)),0),\"\")","v":""}]
[null,null,null,null,null,{"$f":"IF(AND($A30<>\"Eindtotaal\",$A30<>\"\"),IFERROR((VLOOKUP($A30,basisdata[[#All],[dossiernummer]:[Kolom12]],4,0)),0),\"\")","v":""}]
[null,null,null,null,null,{"$f":"IF(AND($A31<>\"Eindtotaal\",$A31<>\"\"),IFERROR((VLOOKUP($A31,basisdata[[#All],[dossiernummer]:[Kolom12]],4,0)),0),\"\")","v":""}]
[null,null,null,null,null,{"$f":"IF(AND($A32<>\"Eindtotaal\",$A32<>\"\"),IFERROR((VLOOKUP($A32,basisdata[[#All],[dossiernummer]:[Kolom12]],4,0)),0),\"\")","v":""}]
["KBO",0,null,null,null,{"$f":"IF(AND($A33<>\"Eindtotaal\",$A33<>\"\"),IFERROR((VLOOKUP($A33,basisdata[[#All],[dossiernummer]:[Kolom12]],4,0)),0),\"\")","v":""}]
[]
["Som van Subsidiebedrag","Kolomlabels",null,null,null,null,"Belangrijk: de kolommen G-I  moeten ingevuld worden bij de aanvraag van de tweede betaalschijf voor de betrokken klimaatmaatregelen"]
["Dossiernummers","(leeg)","Eindtotaal",null,null,null,"Startdatum werken","Einddatum werken","Effectieve kostprijs \nexcl. btw"]
["(leeg)",null,null,null,null,{"$f":"IF(AND($A24<>\"Eindtotaal\",$A24<>\"\"),IFERROR((VLOOKUP($A24,basisdata!$I:$J,2,0)),0),\"\")","v":0}]
["Eindtotaal",null,null,null,null,{"$f":"IF(AND($A25<>\"Eindtotaal\",$A25<>\"\"),IFERROR((VLOOKUP($A25,basisdata!$I:$J,2,0)),0),\"\")","v":""}]
[null,null,null,null,null,{"$f":"IF(AND($A26<>\"Eindtotaal\",$A26<>\"\"),IFERROR((VLOOKUP($A26,basisdata!$I:$J,2,0)),0),\"\")","v":""}]
[null,null,null,null,null,{"$f":"IF(AND($A27<>\"Eindtotaal\",$A27<>\"\"),IFERROR((VLOOKUP($A27,basisdata!$I:$J,2,0)),0),\"\")","v":""}]
[null,null,null,null,null,{"$f":"IF(AND($A28<>\"Eindtotaal\",$A28<>\"\"),IFERROR((VLOOKUP($A28,basisdata!$I:$J,2,0)),0),\"\")","v":""}]
[null,null,null,null,null,{"$f":"IF(AND($A29<>\"Eindtotaal\",$A29<>\"\"),IFERROR((VLOOKUP($A29,basisdata!$I:$J,2,0)),0),\"\")","v":""}]
[null,null,null,null,null,{"$f":"IF(AND($A30<>\"Eindtotaal\",$A30<>\"\"),IFERROR((VLOOKUP($A30,basisdata!$I:$J,2,0)),0),\"\")","v":""}]
[null,null,null,null,null,{"$f":"IF(AND($A31<>\"Eindtotaal\",$A31<>\"\"),IFERROR((VLOOKUP($A31,basisdata!$I:$J,2,0)),0),\"\")","v":""}]
[null,null,null,null,null,{"$f":"IF(AND($A32<>\"Eindtotaal\",$A32<>\"\"),IFERROR((VLOOKUP($A32,basisdata!$I:$J,2,0)),0),\"\")","v":""}]
[null,null,null,null,null,{"$f":"IF(AND($A33<>\"Eindtotaal\",$A33<>\"\"),IFERROR((VLOOKUP($A33,basisdata!$I:$J,2,0)),0),\"\")","v":""}]
[null,null,null,null,null,{"$f":"IF(AND($A34<>\"Eindtotaal\",$A34<>\"\"),IFERROR((VLOOKUP($A34,basisdata!$I:$J,2,0)),0),\"\")","v":""}]
[null,null,null,null,null,{"$f":"IF(AND($A35<>\"Eindtotaal\",$A35<>\"\"),IFERROR((VLOOKUP($A35,basisdata!$I:$J,2,0)),0),\"\")","v":""}]
[null,null,null,null,null,{"$f":"IF(AND($A36<>\"Eindtotaal\",$A36<>\"\"),IFERROR((VLOOKUP($A36,basisdata!$I:$J,2,0)),0),\"\")","v":""}]
[null,null,null,null,null,{"$f":"IF(AND($A37<>\"Eindtotaal\",$A37<>\"\"),IFERROR((VLOOKUP($A37,basisdata!$I:$J,2,0)),0),\"\")","v":""}]
[null,null,null,null,null,{"$f":"IF(AND($A38<>\"Eindtotaal\",$A38<>\"\"),IFERROR((VLOOKUP($A38,basisdata!$I:$J,2,0)),0),\"\")","v":""}]
[null,null,null,null,null,{"$f":"IF(AND($A39<>\"Eindtotaal\",$A39<>\"\"),IFERROR((VLOOKUP($A39,basisdata!$I:$J,2,0)),0),\"\")","v":""}]
[null,null,null,null,null,{"$f":"IF(AND($A40<>\"Eindtotaal\",$A40<>\"\"),IFERROR((VLOOKUP($A40,basisdata!$I:$J,2,0)),0),\"\")","v":""}]
[null,null,null,null,null,{"$f":"IF(AND($A41<>\"Eindtotaal\",$A41<>\"\"),IFERROR((VLOOKUP($A41,basisdata!$I:$J,2,0)),0),\"\")","v":""}]
[null,null,null,null,null,{"$f":"IF(AND($A42<>\"Eindtotaal\",$A42<>\"\"),IFERROR((VLOOKUP($A42,basisdata!$I:$J,2,0)),0),\"\")","v":""}]
[null,null,null,null,null,{"$f":"IF(AND($A43<>\"Eindtotaal\",$A43<>\"\"),IFERROR((VLOOKUP($A43,basisdata!$I:$J,2,0)),0),\"\")","v":""}]
[null,null,null,null,null,{"$f":"IF(AND($A44<>\"Eindtotaal\",$A44<>\"\"),IFERROR((VLOOKUP($A44,basisdata!$I:$J,2,0)),0),\"\")","v":""}]

{"sheet":"Contractanten","index":2,"n_rows":11,"n_cols":11,"rows_kept":11,"cut":false,"hidden":false,"merged":[]}
["(Sub)Contractanten"]
["Begunstigde KBO nummer","Begunstigde naam","Aanbestedende overheid? (J/N)","Raamcontract VEB?\n(J/N)","Contractnaam (vb. zonnepanelen, dakisolatie, …)","Aankoopbedrag","Contractant KBO nummer","Contractant naam","Subcontractant KBO nummer","Subcontractant naam","Definitief (J/N)"]
["KBO nummer (BEXXXXXXXXXX, zonder puntjes) van uw organiserend bestuur","Naam van uw organiserend bestuur","Vul \"J\" in indien uw organiserend bestuur of dit project valt onder de Wet op de Overheidsopdrachten, \"N\" indien niet","Vul \"J\" in indien u voor uitvoering van dit project afneemt van RO VEB, \"N\" indien niet","Naam van de maatregel die zal worden uitgevoerd (vb. plaatsing zonnepanelen, dakisolatie…)","Totaalbedrag in euro, excl. btw","KBO nummer (BEXXXXXXXXXX, zonder puntjes) van de aannemer","Leverancier, aannemer of dienstverlener die de maatregel uitvoert","KBO nummer (BEXXXXXXXXXX, zonder puntjes) van de eventuele onderaannemer","Onderaannemer waarop de aannemer beroep doen in het kader van de uitvoering van de werken/levereing (bekendgeving via bestek of via melding)","Vul 'J' in indien het contract reeds volledig werd gefactureerd, 'N' indien er nog facturen worden verwacht."]
[{"$f":"\"BE\"&Facturatie!$B$7","v":"BE0"},{"$f":"Facturatie!$B$5","v":"xxx"},null,null,{"$f":"Facturatie!F24","v":0}]
[{"$f":"\"BE\"&Facturatie!$B$7","v":"BE0"},{"$f":"Facturatie!$B$5","v":"xxx"},null,null,{"$f":"Facturatie!F25","v":""}]
[{"$f":"\"BE\"&Facturatie!$B$7","v":"BE0"},{"$f":"Facturatie!$B$5","v":"xxx"},null,null,{"$f":"Facturatie!F26","v":""}]
[{"$f":"\"BE\"&Facturatie!$B$7","v":"BE0"},{"$f":"Facturatie!$B$5","v":"xxx"},null,null,{"$f":"Facturatie!F27","v":""}]
[{"$f":"\"BE\"&Facturatie!$B$7","v":"BE0"},{"$f":"Facturatie!$B$5","v":"xxx"},null,null,{"$f":"Facturatie!F28","v":""}]
[{"$f":"\"BE\"&Facturatie!$B$7","v":"BE0"},{"$f":"Facturatie!$B$5","v":"xxx"},null,null,{"$f":"Facturatie!F29","v":""}]
[{"$f":"\"BE\"&Facturatie!$B$7","v":"BE0"},{"$f":"Facturatie!$B$5","v":"xxx"},null,null,{"$f":"Facturatie!F30","v":""}]
[{"$f":"\"BE\"&Facturatie!$B$7","v":"BE0"},{"$f":"Facturatie!$B$5","v":"xxx"},null,null,{"$f":"Facturatie!F31","v":""}]

{"sheet":"Betrokken medewerkers","index":3,"n_rows":16,"n_cols":4,"rows_kept":16,"cut":false,"hidden":true,"merged":[]}
["Betrokken personen"]
["Voornaam medewerkers betrokken bij de toekenningsprocedure","Naam","Geboortedatum","Functie"]
[{"$f":"'Verklaring betrokkenen'!A104","v":0},{"$f":"'Verklaring betrokkenen'!B104","v":0},{"$f":"'Verklaring betrokkenen'!C104","v":0},{"$f":"'Verklaring betrokkenen'!D104","v":0}]
[{"$f":"'Verklaring betrokkenen'!A105","v":0},{"$f":"'Verklaring betrokkenen'!B105","v":0},{"$f":"'Verklaring betrokkenen'!C105","v":0},{"$f":"'Verklaring betrokkenen'!D105","v":0}]
[{"$f":"'Verklaring betrokkenen'!A106","v":0},{"$f":"'Verklaring betrokkenen'!B106","v":0},{"$f":"'Verklaring betrokkenen'!C106","v":0},{"$f":"'Verklaring betrokkenen'!D106","v":0}]
[{"$f":"'Verklaring betrokkenen'!A107","v":0},{"$f":"'Verklaring betrokkenen'!B107","v":0},{"$f":"'Verklaring betrokkenen'!C107","v":0},{"$f":"'Verklaring betrokkenen'!D107","v":0}]
[{"$f":"'Verklaring betrokkenen'!A108","v":0},{"$f":"'Verklaring betrokkenen'!B108","v":0},{"$f":"'Verklaring betrokkenen'!C108","v":0},{"$f":"'Verklaring betrokkenen'!D108","v":0}]
[{"$f":"'Verklaring betrokkenen'!A109","v":0},{"$f":"'Verklaring betrokkenen'!B109","v":0},{"$f":"'Verklaring betrokkenen'!C109","v":0},{"$f":"'Verklaring betrokkenen'!D109","v":0}]
[{"$f":"'Verklaring betrokkenen'!A110","v":0},{"$f":"'Verklaring betrokkenen'!B110","v":0},{"$f":"'Verklaring betrokkenen'!C110","v":0},{"$f":"'Verklaring betrokkenen'!D110","v":0}]
[{"$f":"'Verklaring betrokkenen'!A111","v":0},{"$f":"'Verklaring betrokkenen'!B111","v":0},{"$f":"'Verklaring betrokkenen'!C111","v":0},{"$f":"'Verklaring betrokkenen'!D111","v":0}]
[{"$f":"'Verklaring betrokkenen'!A112","v":0},{"$f":"'Verklaring betrokkenen'!B112","v":0},{"$f":"'Verklaring betrokkenen'!C112","v":0},{"$f":"'Verklaring betrokkenen'!D112","v":0}]
[{"$f":"'Verklaring betrokkenen'!A113","v":0},{"$f":"'Verklaring betrokkenen'!B113","v":0},{"$f":"'Verklaring betrokkenen'!C113","v":0},{"$f":"'Verklaring betrokkenen'!D113","v":0}]
[{"$f":"'Verklaring betrokkenen'!A114","v":0},{"$f":"'Verklaring betrokkenen'!B114","v":0},{"$f":"'Verklaring betrokkenen'!C114","v":0},{"$f":"'Verklaring betrokkenen'!D114","v":0}]
[{"$f":"'Verklaring betrokkenen'!A115","v":0},{"$f":"'Verklaring betrokkenen'!B115","v":0},{"$f":"'Verklaring betrokkenen'!C115","v":0},{"$f":"'Verklaring betrokkenen'!D115","v":0}]
[{"$f":"'Verklaring betrokkenen'!A116","v":0},{"$f":"'Verklaring betrokkenen'!B116","v":0},{"$f":"'Verklaring betrokkenen'!C116","v":0},{"$f":"'Verklaring betrokkenen'!D116","v":0}]
[{"$f":"'Verklaring betrokkenen'!A117","v":0},{"$f":"'Verklaring betrokkenen'!B117","v":0},{"$f":"'Verklaring betrokkenen'!C117","v":0},{"$f":"'Verklaring betrokkenen'!D117","v":0}]

{"sheet":"Verklaring betrokkenen","index":4,"n_rows":103,"n_cols":5,"rows_kept":103,"cut":false,"hidden":false,"merged":[[77,0,100,3],[0,0,4,3],[11,0,64,3]]}
["Verklaring op eer omtrent de afwezigheid van belangenconflicten"]
[]
[]
[]
[]
[]
[null,"KBOnr",{"$f":"Facturatie!B7","v":0}]
[null,"Naam rechtspersoon",{"$f":"Facturatie!B5","v":"xxx"}]
[null,"Gebouw",{"$f":"Facturatie!F11","v":0}]
[]
[]
["1. INLEIDING\n\nIn het kader van de bescherming van de financiële belangen van de Unie, artikel 22, 2, d, i tot iii, van Verordening (EU) nr. 2021/241 dient elke persoon betrokken bij de selectieprocedure van een projectoproep of overheidsaanbesteding die bijdraagt tot het behalen van de mijlpalen en streefdoelen die geheel of gedeeltelijk gefinancierd worden met middelen uit de Recovery en Resilience Facility (RRF, in dit geval REPowerEU-middelen), de afwezigheid van een conflicterend belang te verklaren. Meer bepaald moet elke persoon die deelneemt aan de voorbereiding, evaluatie en de toekenning van de overheidsopdracht deze verklaring verplicht invullen en ondertekenen.\n\nDe Europese Commissie legt bijzondere voorwaarden op met betrekking tot het afleggen van de verklaring op eer omtrent de afwezigheid van belangenconflicten door alle betrokken personen in alle stadia (voorbereiding, uitwerking, uitvoering of afhandeling) van de selectieprocedure. Hierna volgt een niet limitatieve opsomming van personen waarvoor deze verplichting in ieder geval geldt:\n•\thet hoofd van de aanbestedende dienst en iedereen aan wie hij/zij zijn/haar taken delegeert;\n•\talle leden van het managementcomité,\n•\talle personeelsleden die meewerken aan het voorbereiden en opstellen van de aanbestedingsdocumenten, \n•\tde leden van de beoordelingscommissie, \n•\tdeskundigen die taken verrichten die verband houden met het opstellen van de aanbestedingsdocumenten en/of het beoordelen van de offertes..\n\nMet deze ondertekening verklaart de ondertekenaar zich niet in een toestand van belangenconflict te bevinden zoals gedefinieerd in artikel 61 van het VERORDENING 2018/1046 VAN HET EUROPEES PARLEMENT EN DE RAAD van 18 juli 2018. In geval een risico op belangenconflict zich voordoet gedurende de selectieprocedure, reikt het hierboven vermelde artikel 61, de stappen aan die genomen moeten worden om het risico te mitigeren.\n\nHet artikel leest als volgt:\nBelangenconflict\n1.\tFinanciële actoren in de zin van hoofdstuk 4 van deze titel en andere personen, daaronder begrepen nationale autoriteiten op alle niveaus, die bij de uitvoering van de begroting onder direct, indirect en gedeeld beheer, met inbegrip van voorbereidende handelingen op dit gebied, de audit of de controle betrokken zijn, verrichten geen handelingen waarbij hun eigen belangen in conflict kunnen komen met die van de Unie. Zij nemen ook passende maatregelen om te voorkomen dat een belangenconflict ontstaat in de functies onder hun verantwoordelijkheid en om situaties te verhelpen die objectief als belangenconflict kunnen worden beschouwd.\n\n2.\tIndien er een risico bestaat op een belangenconflict waarbij een personeelslid van een nationale autoriteit betrokken is, brengt de betrokken persoon deze zaak ter kennis van zijn hiërarchieke meerdere. Indien een dergelijk risico bestaat voor aan het statuut onderworpen personeel brengt de betrokken persoon deze zaak ter kennis van de bevoegde gedelegeerde ordonnateur. De bevoegde hiërarchieke meerdere of de verantwoordelijk gedelegeerde ordonnateur bevestigt schriftelijk of er sprake is van een belangenconflict. Indien een belangenconflict wordt vastgesteld, zorgt het tot aanstelling bevoegde gezag of de bevoegde nationale autriteit ervoor dat de betrokken persoon al zijn activiteiten in verband met de zaak beëindigt. De betrokken gedelegeerde ordonnateur of de betrokken nationale autoriteit zorgt ervoor dat de nodige verdere maatregelen worden genomen in overeenstemming met de toepasselijke wetgeving.\n\n3.\tVoor de toepassing van lid 1 doet een belangenconflict zich voor wanneer de onpartijdige en objectieve uitoefening van de functies van de in lid 1 bedoelde financiële actor of andere persoon in gevaar wordt gebracht als gevolg van familiebanden, persoonlijke relaties, politieke gezindheid of nationaliteit, economische belangen of elk ander direct of indirect persoonlijk belang.\n\nDoor de ondertekening van dit document verklaart de betrokken persoon zich akkoord met de registratie en het gebruik van zijn of haar naam en voornaam in de database en het voorziene risicoscoringsinstrument (i.e. Arachne). \n\n2. GEBRUIKSINSTRUCTIE\n\nDe projectverantwoordelijke die instaat voor de overheidsopdracht, zorgt ervoor dat de hoofdstukken 3 en 4 correct worden ingevuld, en slaat dit bestand op als PDF. Dit document wordt door alle personen betrokken bij de beslissing tot toekenning van de overheidsopdracht verder ingevuld en ondertekend. \n\n3.PROJECTDETAILS\n\n3.1.PROJECTBESCHRIJVING\n(in te vullen door projectverantwoordelijke)"]
[]
[]
[]
[]
[]
[]
[]
[]
[]
[]
[]
[]
[]
[]
[]
[]
[]
[]
[]
[]
[]
[]
[]
[]
[]
[]
[]
[]
[]
[]
[]
[]
[]
[]
[]
[]
[]
[]
[]
[]
[]
[]
[]
[]
[]
[]
[]
[]
[]
[]
[]
[]
[]
[]
["Maatregel","KBOnr contractant","Naam contractant"]
[{"$f":"Facturatie!F24","v":0}]
[{"$f":"Facturatie!F25","v":""}]
[{"$f":"Facturatie!F26","v":""}]
[{"$f":"Facturatie!F27","v":""}]
[{"$f":"Facturatie!F28","v":""}]
[{"$f":"Facturatie!F29","v":""}]
[]
[]
[]
["4. HANDTEKENING BETROKKEN PERSONEN"]
["\nIn onderstaande tabel dienen alle personen betrokken bij de selectie een verklaring op eer omtrent de afwezigheid van belangenconflicten te ondertekenen. Daarin verklaren zij dat zij op geen enkele manier een conflicterend belangen hebben met de begunstigde van de subsidie of de contractant van de overheidsopdracht waaraan zij hebben meegewerkt.\nVerklaring op eer omtrent de afwezigheid van belangenconflicten\nIk, ondergetekende (voornaam, naam en functie/rol (in te vullen in tabel onderaan)), verklaar hierbij, voor zover mij bekend is, geen belangenconflict te hebben met de kandidaat-contractant van de overheidsopdracht. Indien ik tijdens de selectie-, evaluatie, of uitvoeringsprocedure of bij wijziging van het contract, het bestaan of ontstaan van een belangenconflict ontdek, verbind ik mij ertoe dit onmiddellijk te melden aan de projectleider en mijn directe hiërarchische meerdere. De projectleider, of mijn hiërarchische meerdere indien ikzelf projectleider ben, is belast met het onderzoeken van dit mogelijke belangenconflict. Indien een belangenconflict daadwerkelijk wordt vastgesteld, staak ik onverwijld mijn deelname aan de procedure en aanverwante activiteiten. Het onderzoek en genomen acties worden gedocumenteerd en aan het dossier toegevoegd. \nTevens verklaar ik dat ik alle aan mij toevertrouwde zaken vertrouwelijk zal behandelen. Ik zal geen vertrouwelijke informatie openbaar maken die aan mij bekend werd of wordt gemaakt of die ik heb ontdekt. Ik zal geen oneigenlijk gebruik maken van de aan mij verstrekte informatie. Ik ga er met name mee akkoord dat ik alle informatie die aan mij bekend werd en wordt gemaakt of alle documenten die mij werden en worden verstrekt, die door mij werden en worden ontdekt of die door mij werden en worden opgesteld in de loop van of in verband met de evaluatie vertrouwelijk en geheim zal houden en ik ga ermee akkoord deze uitsluitend te gebruiken ten behoeve van deze evaluatie en niet bekend te maken aan enige derde. Ook ga ik ermee akkoord geen exemplaren te bewaren van de verstrekte schriftelijke informatie.\nIk ben mij ervan bewust dat het afleggen van een valse verklaring kan leiden tot disciplinaire/administratieve/strafrechtelijke sancties. Verder verklaar ik voldoende geïnformeerd te zijn over, en akkoord te zijn met het feit dat onderstaande gegevens zullen worden verwerkt en bijgehouden worden in het door de Vlaamse Overheid toegepaste risicoscoringsinstrument (in casu Arache, een instrument van de Europese Commissie), en dit gedurende de toepasselijke wettelijk bepaalde periode.  "]
[]
[]
[]
[]
[]
[]
[]
[]
[]
[]
[]
[]
[]
[]
[]
[]
[]
[]
[]
[]
[]
[]
[]
[]
["Voornaam","Naam","Geboortedatum","Functie in de organisatie + rol in de procedure","Datum, plaats + handtekening"]

{"sheet":"Verklaring onderaannemers","index":5,"n_rows":25,"n_cols":3,"rows_kept":25,"cut":false,"hidden":false,"merged":[[0,1,3,3]]}
[null,"Verklaring op eer onderaannemers"]
[]
[]
[]
[]
[]
[]
[null,"KBOnr",{"$f":"Contractanten!A5","v":"BE0"}]
[null,"Naam",{"$f":"Contractanten!B5","v":"xxx"}]
[]
[null,"maatregel(en)"]
[]
[]
[]
[null,"Ik, ondergetekende (voornaam, naam, functie)"]
[null,"verklaar hierbij op eer dat, \n"]
[]
[null,"er geen subcontractanten betrokken zijn bij de uitvoering van de maatregel(en)"]
[]
[null,"de lijst van subcontractanten zoals opgenomen op het tabblad “Contractanten” volledig en correct is."]
[]
[]
[null,null,"[Plaats], [Datum]"]
[]
[null,null,"[Handtekening]"]

{"sheet":"DNSH","index":6,"n_rows":64,"n_cols":19,"rows_kept":64,"cut":false,"hidden":false,"merged":[[121,31,128,37],[121,38,128,38],[121,39,128,39],[121,40,128,47],[71,31,90,37],[71,38,90,38],[71,39,90,39],[71,40,90,47],[91,31,120,37],[91,38,120,38],[91,39,120,39],[91,40,120,47],[59,40,63,47],[47,18,47,24],[49,18,49,24],[64,31,70,37],[64,38,70,38],[64,39,70,39],[37,39,58,39],[37,31,58,37],[37,40,58,47],[37,38,58,38],[59,39,63,39],[64,40,70,47],[59,31,63,37],[59,38,63,38],[51,1,52,17],[41,1,44,7],[41,10,41,17],[37,1,40,7],[37,8,40,8],[37,9,40,9],[37,10,40,17],[48,9,49,9],[43,10,43,17],[29,31,30,37],[29,38,30,38],[29,39,30,39],[29,40,30,47],[60,1,61,17],[63,1,63,17],[42,10,42,17],[45,1,47,7],[44,10,44,17],[47,10,47,17],[49,10,49,17],[45,8,47,8],[45,9,47,9],[45,10,45,17],[53,1,53,17],[55,1,55,17],[57,1,58,17],[41,8,44,8],[41,9,44,9],[41,18,41,24],[46,10,46,17],[48,1,49,7],[48,10,48,17],[48,8,49,8],[31,1,32,17],[31,31,36,37],[31,38,36,38],[31,39,36,39],[31,40,36,47],[35,1,36,7],[35,8,36,8],[35,9,36,9],[35,10,36,17],[35,18,36,24],[27,31,28,37],[1,0,2,22],[1,31,2,36],[1,37,2,47],[6,1,8,17],[6,31,7,47],[13,39,15,39],[13,40,15,47],[25,8,26,8],[25,9,26,9],[24,10,24,17],[25,10,25,17],[26,10,26,17],[22,10,23,17],[27,38,28,38],[27,39,28,39],[27,40,28,47],[14,10,14,17],[9,31,11,47],[11,1,12,7],[11,8,12,8],[11,9,12,9],[11,10,12,17],[16,40,17,47],[13,1,15,7],[13,8,15,8],[13,9,15,9],[13,31,15,37],[13,38,15,38],[13,10,13,17],[15,10,15,17],[16,10,16,17],[17,10,17,17],[16,1,17,7],[16,8,17,8],[16,9,17,9],[16,31,17,37],[16,38,17,38],[16,39,17,39],[18,39,19,39],[18,40,19,47],[20,1,21,7],[20,8,21,8],[20,9,21,9],[20,10,21,17],[20,31,26,37],[20,38,26,38],[20,39,26,39],[20,40,26,47],[18,10,18,17],[19,10,19,17],[25,1,26,7],[18,1,19,7],[18,8,19,8],[18,9,19,9],[18,31,19,37],[18,38,19,38],[22,1,24,7],[22,8,24,8],[22,9,24,9]]}
["DNSH CHECKLIST - Energiebesparende maatregelen"]
["DNSH staat voor: Do No Significant Harm. Een principe dat Europa hanteert om zekerheid te krijgen dat Europees gefinancierde projecten geen impact hebben op de zes milieudoelstellingen van de Europese Unie. Deze doelstellingen hebben betrekking op klimaatverandering, klimaatadaptatie, bescherming van het water en de zee, afvalbeheer en vermindering, uitstootbeheersing en herstellen van biodiversiteit.  Naargelang de aard van het project moet een uitgebreide of beknopte analyse uitgevoerd worden, die waar nodig met bewijsstukken wordt gestaafd. De controlerende instantie (=europa naar VIPA, VIPA naar voorziening, of voorziening naar aannemer) heeft het recht om bijkomende vragen te stellen i.k.v. de DNSH-analyse en kan verzoeken om bijkomende stavingstukken. Voor deze subsidieoproep volstaat een beknopte analyse in de vorm van onderstaande zelfbevraging. Duid aan of uw investering/ingreep impact heeft op onderstaande vragen: ja: het heeft impact, duid aan wat u doet om het te mitigeren, neen: geen impact, en schrijf kort neer waarom niet: bv zonnepanelen geven groene stroom, en verlagen ons verbruik op een duurzame wijze. We helpen jullie alvast op weg door een aantal velden al in te vullen, aangezien deze generiek zijn aan de scope van onze VIPA-projectoproep. Een aantal velden (in rood en blauw kader) dient u nog zelf in te vullen, aangezien deze evaluatie van DNSH uitvoering specifiek is. rood kader = verplicht in te vullen, blauw kader = facultatief in te vullen, wit kader = kan ongewijzigd blijven. "]
[]
[]
[]
[]
[null,"DEEL 1: In de eerste checklist moet men de zes milieudoelstellingen filteren om te bepalen welke doelstellingen een inhoudelijke beoordeling (DEEL 2) vereisen. Voor elke maatregel: geef aan voor welke van de onderstande milieudoelstellingen, zoals omschreven in artikel 17 (\"Ernstige afbreuk aan milieudoelstellingen\") van de taxonomieverordening van de EU, een inhoudelijke toetsing van de maatregel aan het beginsel \"geen ernstige afbreuk doen aan\" vereist is: "]
[]
[]
[]
[]
[null,"Geef aan voor welke milieudoelstellingen de maatregel inhoudelijk aan het beginsel \"geen ernstige afbreuk doen aan\" moet worden getoetst.",null,null,null,null,null,null,"Ja","Nee","Onderbouwing indien \"Nee\" is gekozen"]
[]
[null,"klimaatmitigatie",null,null,null,null,null,null,null,"x","Door deze maatregelen wordt de CO2-uitstoot van gebouwen en installaties significant beperkt.\nDe projectoproep van VIPA is bedoeld voor maatregelen die GHG emissies reduceren of de energie-efficiëntie van gebouwen en installaties verbeteren. \nVoor elk van de te beoordelen investeringsmaatregelen is vooraf met een analyse en audit de haalbaarheid van dit resultaat geverifieerd, en zijn  onderbouwde energiebesparende maatregelen voorgesteld binnen de best beschikbare technologie. Deze energiebesparende maatregel is een onderdeel van het resultaat van de audit, waarop bovenstaande analyse toegepast is."]
[null,null,null,null,null,null,null,null,null,null,"Met het uitvoeren van deze maatregel wordt er XXX ton/jaar CO2-reductie gerealiseerd."]
[null,null,null,null,null,null,null,null,null,null,"(vrij in te vullen met bijkomende duiding)"]
[null,"klimaatadaptatie",null,null,null,null,null,null,null,"x","We zettten in op energiebesparende maatregelen rekening houdend met klimaatadaptatie. Door de lange looptijd en doelhorizon in 2050 draagt deze energiebesparende maatregel bij aan klimaatadaptatie. Deze energiebesparende maatregel is een onderdeel van het resultaat van de audit, waarop bovenstaande analyse toegepast is."]
[null,null,null,null,null,null,null,null,null,null,"(vrij in te vullen met bijkomende duiding)"]
[null,"duurzaam gebruik en bescherming van water en mariene hulpbronnen",null,null,null,null,null,null,null,"x","Deze regeling heeft geen invloed op het gebruik van mariene hulpbronnen. "]
[null,null,null,null,null,null,null,null,null,null,"(vrij in te vullen met bijkomende duiding)"]
[null,"circulaire economie, met inbegrip van preventie en recycling van afval",null,null,null,null,null,null,"x"]
[]
[null,"preventie en bestrijding verontreiniging in lucht, water of bodem",null,null,null,null,null,null,null,"x","De audits en renovaties richten zich op stimulering en bestendigen van duurzame energieopwekking, of de gevoelige verhoging van hun efficiëntie. Daarmee wordt de inzet van fossiele bronnen en daarmee gepaard gaande milieuvervuiling verkleind. Inzet van fossiel gestookte energieopwekking werd door het VIPA in de oproep uitdrukkelijk als uitsluitende voorwaarde opgenomen.  Deze energiebesparende maatregel is een onderdeel van het resultaat van de audit, waarop bovenstaande analyse toegepast is."]
[]
[null,null,null,null,null,null,null,null,null,null,"(vrij in te vullen met bijkomende duiding)"]
[null,"bescherming en herstel biodiversiteit en ecosystemen",null,null,null,null,null,null,null,"x","De maatregel heeft geen positief of negatief effect op de huidige situatie."]
[null,null,null,null,null,null,null,null,null,null,"(vrij in te vullen met bijkomende duiding)"]
[]
[]
[]
[]
[null,"DEEL 2: Er wordt op basis van de bovenstaande checklist een inhoudelijkste toetsting gedaan aan het beginsel \"geen ernstige afbreuk doen aan\". Voer dit uit voor elke maatregel: beantwoord de onderstaande vragen voor de milieudoelstellingen waarvan in deel 1 is gebleken dat een inhoudelijke toetsing nodig is. Vul de rode velden in. Controleer, onder de kolom inhoudelijke onderbouwing, of de witte velden met voorbeelden van dergelijke onderbouwing voor uw maatregel van toepassing zijn! Indien niet, verwijder wat vooraf ingevuld werd en neem dan zelf een motivatie op van het beginsel DSNH. Gebruik daartoe de blauwe velden. Die velden kunnen ook steeds vrij aangevuld worden met extra, relevante onderbouwing."]
[]
[]
[]
[null,"Vragen",null,null,null,null,null,null,"Ja","Nee","Inhoudelijke onderbouwing",null,null,null,null,null,null,null,"relevante links"]
[]
[null,"transitie naar een circulaire economie, met inbegrip van preventie en recycling van afval: Is de verwachting dat de maatregel: ",null,null,null,null,null,null,null,null,"(verplicht zelf in te vullen : algemene beoordeling)"]
[]
[]
[]
[null,"i) leidt tot een aanzienlijke toename van de productie, verbranding of verwijdering van afval, met uitzondering van de verbranding van niet-recycleerbaar gevaarlijk afval? ",null,null,null,null,null,null,null,null,"i) De werken voldoen aan het bouw- en sloopafval regelgeving zoals actief sinds 1 juli 2024. Als afvalproducent nemen we een duidelijke verwijzing op in onze offertes/aanbestedingen, en kijken toe op een degelijke naleving door onze aangestelde aannemers.",null,null,null,null,null,null,null,"https://ovam.vlaanderen.be/nl/w/gescheiden-inzameling-bouw-en-sloopafval-verplicht-vanaf-1-juli?p_l_back_url=%2Fzoeken%3Fq%3Dbouw%2Ben%2Bsloopafval"]
[null,null,null,null,null,null,null,null,null,null,"ii) We voorzien dat 70% van ons materiaal kan ingezet worden voor recyclage en/of hergebruik"]
[null,null,null,null,null,null,null,null,null,null,"(vrij in te vullen met bijkomende duiding)"]
[null,null,null,null,null,null,null,null,null,null,"(vrij in te vullen met bijkomende duiding)"]
[null," ii) leidt tot een aanzienlijke inefficiënties bij het directe of indirecte gebruik van natuurlijke hulpbronnen (1) in enig stadium van de levenscyclus ervan die niet door passende maatregelen tot minimum kunnen worden beperkt (2)",null,null,null,null,null,null,null,null,"i) Dit project zet in op het toekomstgericht en klimaatneutraal maken van het bestaande zorg- en welzijnspatrimonium. Inzetten op renovatie ipv nieuwbouw vermijdt aanzienlijke inefficiënties bij het directe of indirecte gebruik van natuurlijke hulpbronnen. De verbouwing behoudt minimum 50% van het gebouw."]
[null,null,null,null,null,null,null,null,null,null,"ii) Het project ondersteunt circulariteit door bij de uitvoering van de maatregel rekening te houden met een eenvoudige aanpasbaarheid of deconstructie in de toekomst. Zodat hergebruik of recyclage bij afbraak in de toekomst gemakkelijk realiseerbaar is."]
[null,null,null,null,null,null,null,null,null,null,"(vrij in te vullen met bijkomende duiding)",null,null,null,null,null,null,null,"“Green procurement” https://green-business.ec.europa.eu/green-public-procurement/gpp-criteria-and-requirements_en ,   “Circulaire aanbestedingen” https://www.vlaanderen.be/green-deal-duurzame-zorg/inspiratie/inspiratie-mbt-circulair-aankopen; ."]
[null," iii) aanzienlijke en langdurige schade aan het milieu veroorzaakt wat betreft de circulaire economie (3)",null,null,null,null,null,null,null,null,"i) Dit project heeft een positief effect op het aardopwarmingsvermogen. Een jaarlijkse CO2 reductie door het uitvoeren van de maatregel, is een selectiecriterium van de oproep van het VIPA. Concreet bespaart deze maatregel XXXXton CO2/jaar"]
[null,null,null,null,null,null,null,null,null,null,"(vrij in te vullen met bijkomende duiding)",null,null,null,null,null,null,null,"Europese richtlinenm .bt. Batterijen: https://ec.europa.eu/commission/presscorner/detail/en/ip_22_7588"]
[]
[null,"EXTRA UITLEG WOORDJE UITLEG BIJ CONCEPTEN: "]
[]
[null,"(1) natuurlijke hulpbronnen omvatten energie, materialen, metalen, biomassa, lucht en land"]
[]
[null,"(2) Zo kunnen bijvoorbeeld inefficiënties tot een minimum worden beperkt door de duurzaamheid, repareerbaarheid, verbeterbaarheid en herbruikbaarheid van producten te vergroten, of door het gebruik van hulpbronnen aanzienlijk te verminderen door het maken van ontwerp- en materiaalkeuzes, door herbestemming, demontage en sloop te faciliteren, met name door het gebruik van bouwmaterialen te verminderen en het hergebruik van bouwmaterialen te bevorderen. Daarnaast valt ook te denken aan de transitie naar een circulaire economie door het ontwikkelen van “product-als-een-dienst”-bedrijfsmodellen en circulaire waardeketens, om producten, componenten en materialen zo lang mogelijk op het hoogste nut- en waardeniveau te houden. Dit omvat ook een aanzienlijke vermindering van het gehalte aan gevaarlijke stoffen in materialen en producten, onder meer door ze te vervangen door veiligere alternatieven. Dit omvat verder het aanzienlijk verminderen van voedselafval bij de productie, verwerking, vervaardiging of distributie van voedsel. "]
[]
[null,"(3) Zie, voor meer informatie over de doelstelling wat betreft de circulaire economie, overweging 27 bij de taxonomieverordening. In deze Taxonomieverordening focussen ze in kader van circulaire economie op een doorgedreven scheiding van stoffen en materialen in kader van zuivere recyclage en \"urban mining\" mogelijk te maken. Op preventie door beperken van impact van uw uitstoot op vlak van CO2 en door een uitvoering te voorzien die een eenvoudige aanpasbaarheid of deconstructie in de toekomst mogelijk maakt."]
[]
[]
[null,"(4)  Een “verontreinigende stof” is een stof, trilling, warmte, geluid, licht of andere contaminant in lucht, water of bodem die de gezondheid van de mens of het milieu kan aantasten. "]
[]
[]
[null,"(5)  Overeenkomstig artikel 2, punt 16, van de taxonomieverordening betekent een ecosysteem in “goede staat” een ecosysteem dat in goede fysieke, chemische en biologische staat of van goede fysieke, chemische en biologische kwaliteit is en een zelfreproducerend of zelfherstellend vermogen heeft, waarin de soortensamenstelling, de ecosysteemstructuur en de ecologische functies niet worden verzwakt. "]

{"sheet":"Identificatie","index":7,"n_rows":27,"n_cols":19,"rows_kept":27,"cut":false,"hidden":false,"merged":[[24,1,24,2],[24,3,24,5],[24,6,24,7],[24,8,24,9],[26,1,26,2],[26,3,26,5],[26,6,26,7],[26,8,26,9],[16,1,16,6],[17,1,17,9],[22,1,22,2],[22,3,22,5],[22,6,22,7],[22,8,22,9],[12,4,12,9],[14,1,14,9],[2,1,2,9],[4,4,4,9],[5,4,5,9],[6,4,6,9],[7,4,7,9],[8,4,8,9],[9,4,9,9],[10,4,10,9],[11,4,11,9]]}
[null,"Identificatieformulier klimaatsubsidies"]
[]
[null,"Identificatiegegevens ",null,null,null,null,null,null,null,null,null,null,null,null,null,10]
[null,null,null,null,null,null,null,null,null,null,null,null,null,null,null,11]
[null,"Rechtspersoon:",null,null,{"$f":"Facturatie!B5","v":"xxx"}]
[null,"Ondernemingsnummer:",null,null,{"$f":"Facturatie!B7","v":0}]
[null,"Straat+nr:"]
[null,"Gemeente:"]
[null,"Bankrekeningnummer:",null,null,null,null,null,null,null,null,null,null,null,null,null,null,"IBAN-nummer: ",null,"BE gevolgd door 14 cijfers, zonder spaties"]
[null,"Contactpersoon:",null,null,null,null,null,null,null,null,null,null,null,null,null,null,null,null,"http://www.ibanbic.be/"]
[null,"Mailadres contactpersoon:"]
[null,"Telefoonnummer:"]
[null,"Voorziening:",null,null,null,null,null,null,null,null,null,null,null,null,null,1]
[null,null,null,null,null,null,null,null,null,null,null,null,null,null,null,2]
[null,"Ondertekening door 2 vertegenwoordigers van de aanvrager",null,null,null,null,null,null,null,null,null,null,null,null,null,3]
[]
[null,"Onderteken dit formulier. "]
[null,"Ik verklaar dat alle gegevens in dit formulier naar waarheid zijn ingevuld."]
[]
[null,"datum",null,"dag:",null,"maand:",null,"jaar:"]
[]
[]
[null,"naam:","     ",null,null,null,"naam:","     "]
[]
[null,"functie:","     ",null,null,null,"functie:"]
[]
[null,"handtekening:","     ",null,null,null,"handtekening:","     "]

{"sheet":"Register stavingsstukken","index":8,"n_rows":7,"n_cols":2,"rows_kept":7,"cut":false,"hidden":false,"merged":[[0,0,4,1]]}
["Register stavingsstukken (factuur, UBO, documenten ondersteunend voor DNSH, verklaringen op eer,…)"]
[]
[]
[]
[]
["Naam document (bestandsnaam)","type "]
["Vb. Factuur_20183547.1_RPS-1107-2","Factuur"]

{"sheet":"basisdata","index":9,"n_rows":639,"n_cols":13,"rows_kept":639,"cut":false,"hidden":true,"merged":[]}
["geheime code","Referentie Gebouw","KBO","Organisatie","Gebouw","Categorie maatregel","Subsidiebedrag","Dossiertype","dossiernummer","Kolom2","Kolom1","Kolom12","oproep"]
[2074380105,"20209492.1",207436775,"Stad Oostende","De Ballon","PV-panelen",21696,"SIMPLE","RPS-1080-1 (R1)",{"$f":"basisdata[[#This Row],[Categorie maatregel]]","v":"PV-panelen"},{"$f":"IFERROR(VLOOKUP(Facturatie!B3,basisdata[[#All],[geheime code]:[KBO]],3,FALSE),0)","v":0},{"$f":"basisdata[[#This Row],[Gebouw]]","v":"De Ballon"},"R1"]
[2074380105,"20207013.1",207436775,"Stad Oostende","De Zeeparel","PV-panelen",1357,"SIMPLE","RPS-1081-1 (R1)",{"$f":"basisdata[[#This Row],[Categorie maatregel]]","v":"PV-panelen"},null,{"$f":"basisdata[[#This Row],[Gebouw]]","v":"De Zeeparel"},"R1"]
[2074380105,"20206107.2",207436775,"Stad Oostende","LDC DE BOEIE","PV-panelen",3490,"SIMPLE","RPS-1082-1 (R1)",{"$f":"basisdata[[#This Row],[Categorie maatregel]]","v":"PV-panelen"},null,{"$f":"basisdata[[#This Row],[Gebouw]]","v":"LDC DE BOEIE"},"R1"]
[2074380105,"20206033.2",207436775,"Stad Oostende","De Brem","PV-panelen",14072,"SIMPLE","RPS-531-2 (R1)",{"$f":"basisdata[[#This Row],[Categorie maatregel]]","v":"PV-panelen"},null,{"$f":"basisdata[[#This Row],[Gebouw]]","v":"De Brem"},"R1"]
[2074380105,"20206033.2",207436775,"Stad Oostende","De Brem","Relighting/relamping",2706,"SIMPLE","RPS-531-3 (R1)",{"$f":"basisdata[[#This Row],[Categorie maatregel]]","v":"Relighting/relamping"},null,{"$f":"basisdata[[#This Row],[Gebouw]]","v":"De Brem"},"R1"]
[2074380105,"20209441.2",207436775,"Stad Oostende","LDC 't Viooltje","PV-panelen",8407,"SIMPLE","RPS-534-4 (R1)",{"$f":"basisdata[[#This Row],[Categorie maatregel]]","v":"PV-panelen"},null,{"$f":"basisdata[[#This Row],[Gebouw]]","v":"LDC 't Viooltje"},"R1"]
[2074380105,"20209441.2",207436775,"Stad Oostende","LDC 't Viooltje","Relighting/relamping",503,"SIMPLE","RPS-534-5 (R1)",{"$f":"basisdata[[#This Row],[Categorie maatregel]]","v":"Relighting/relamping"},null,{"$f":"basisdata[[#This Row],[Gebouw]]","v":"LDC 't Viooltje"},"R1"]
[2074380105,"20209441.2",207436775,"Stad Oostende","LDC 't Viooltje","Relighting/relamping",12483,"SIMPLE","RPS-534-6 (R1)",{"$f":"basisdata[[#This Row],[Categorie maatregel]]","v":"Relighting/relamping"},null,{"$f":"basisdata[[#This Row],[Gebouw]]","v":"LDC 't Viooltje"},"R1"]
[2074380105,"20203436.2",207436775,"Stad Oostende","Panukkel","PV-panelen",7352,"SIMPLE","RPS-535-3 (R1)",{"$f":"basisdata[[#This Row],[Categorie maatregel]]","v":"PV-panelen"},null,{"$f":"basisdata[[#This Row],[Gebouw]]","v":"Panukkel"},"R1"]
[2074380105,"20203436.2",207436775,"Stad Oostende","Panukkel","Relighting/relamping",4398,"SIMPLE","RPS-535-4 (R1)",{"$f":"basisdata[[#This Row],[Categorie maatregel]]","v":"Relighting/relamping"},null,{"$f":"basisdata[[#This Row],[Gebouw]]","v":"Panukkel"},"R1"]
[2074715640,"20224805.2",207470330,"Gemeente Tessenderlo","BKO Pinokkio","Relighting",430,"SIMPLE","RPS-874-10 (R1)",{"$f":"basisdata[[#This Row],[Categorie maatregel]]","v":"Relighting"},null,{"$f":"basisdata[[#This Row],[Gebouw]]","v":"BKO Pinokkio"},"R1"]
[2074715640,"20224805.2",207470330,"Gemeente Tessenderlo","BKO Pinokkio","Relighting",659,"SIMPLE","RPS-874-11 (R1)",{"$f":"basisdata[[#This Row],[Categorie maatregel]]","v":"Relighting"},null,{"$f":"basisdata[[#This Row],[Gebouw]]","v":"BKO Pinokkio"},"R1"]
[2074715640,"20224805.2",207470330,"Gemeente Tessenderlo","BKO Pinokkio","Relighting",6089,"SIMPLE","RPS-874-12 (R1)",{"$f":"basisdata[[#This Row],[Categorie maatregel]]","v":"Relighting"},null,{"$f":"basisdata[[#This Row],[Gebouw]]","v":"BKO Pinokkio"},"R1"]
[2074715640,"20224805.2",207470330,"Gemeente Tessenderlo","BKO Pinokkio","Renovatie SWW",295,"SIMPLE","RPS-874-13 (R1)",{"$f":"basisdata[[#This Row],[Categorie maatregel]]","v":"Renovatie SWW"},null,{"$f":"basisdata[[#This Row],[Gebouw]]","v":"BKO Pinokkio"},"R1"]
[2074715640,"20224805.2",207470330,"Gemeente Tessenderlo","BKO Pinokkio","Schrijnwerkrenovatie Hout",20160,"SIMPLE","RPS-874-14 (R1)",{"$f":"basisdata[[#This Row],[Categorie maatregel]]","v":"Schrijnwerkrenovatie Hout"},null,{"$f":"basisdata[[#This Row],[Gebouw]]","v":"BKO Pinokkio"},"R1"]
[2074715640,"20224805.2",207470330,"Gemeente Tessenderlo","BKO Pinokkio","Schrijnwerkrenovatie PVC",55800,"SIMPLE","RPS-874-15 (R1)",{"$f":"basisdata[[#This Row],[Categorie maatregel]]","v":"Schrijnwerkrenovatie PVC"},null,{"$f":"basisdata[[#This Row],[Gebouw]]","v":"BKO Pinokkio"},"R1"]
[2074715640,"20224805.2",207470330,"Gemeente Tessenderlo","BKO Pinokkio","Vloerisolatie (op de vloerplaat)",52560,"SIMPLE","RPS-874-17 (R1)",{"$f":"basisdata[[#This Row],[Categorie maatregel]]","v":"Vloerisolatie (op de vloerplaat)"},null,{"$f":"basisdata[[#This Row],[Gebouw]]","v":"BKO Pinokkio"},"R1"]
[2074715640,"20224805.2",207470330,"Gemeente Tessenderlo","BKO Pinokkio","Buitengevel",6750,"SIMPLE","RPS-874-5 (R1)",{"$f":"basisdata[[#This Row],[Categorie maatregel]]","v":"Buitengevel"},null,{"$f":"basisdata[[#This Row],[Gebouw]]","v":"BKO Pinokkio"},"R1"]
[2074715640,"20224805.2",207470330,"Gemeente Tessenderlo","BKO Pinokkio","Buitengevel",19800,"SIMPLE","RPS-874-6 (R1)",{"$f":"basisdata[[#This Row],[Categorie maatregel]]","v":"Buitengevel"},null,{"$f":"basisdata[[#This Row],[Gebouw]]","v":"BKO Pinokkio"},"R1"]
[2074715640,"20224805.2",207470330,"Gemeente Tessenderlo","BKO Pinokkio","Dakisolatie hellend dak",12936,"SIMPLE","RPS-874-7 (R1)",{"$f":"basisdata[[#This Row],[Categorie maatregel]]","v":"Dakisolatie hellend dak"},null,{"$f":"basisdata[[#This Row],[Gebouw]]","v":"BKO Pinokkio"},"R1"]
[2074715640,"20224805.2",207470330,"Gemeente Tessenderlo","BKO Pinokkio","PV-panelen",3605,"SIMPLE","RPS-874-8 (R1)",{"$f":"basisdata[[#This Row],[Categorie maatregel]]","v":"PV-panelen"},null,{"$f":"basisdata[[#This Row],[Gebouw]]","v":"BKO Pinokkio"},"R1"]
[2074715640,"20224805.2",207470330,"Gemeente Tessenderlo","BKO Pinokkio","Relamping",432,"SIMPLE","RPS-874-9 (R1)",{"$f":"basisdata[[#This Row],[Categorie maatregel]]","v":"Relamping"},null,{"$f":"basisdata[[#This Row],[Gebouw]]","v":"BKO Pinokkio"},"R1"]
[2074715640,"20223474.2",207470330,"Gemeente Tessenderlo","Pinokkio Hulst","Schrijnwerkrenovatie Hout",5760,"SIMPLE","RPS-916-5 (R1)",{"$f":"basisdata[[#This Row],[Categorie maatregel]]","v":"Schrijnwerkrenovatie Hout"},null,{"$f":"basisdata[[#This Row],[Gebouw]]","v":"Pinokkio Hulst"},"R1"]
[2074715640,"20223474.2",207470330,"Gemeente Tessenderlo","Pinokkio Hulst","Schrijnwerkrenovatie PVC",18720,"SIMPLE","RPS-916-6 (R1)",{"$f":"basisdata[[#This Row],[Categorie maatregel]]","v":"Schrijnwerkrenovatie PVC"},null,{"$f":"basisdata[[#This Row],[Gebouw]]","v":"Pinokkio Hulst"},"R1"]
[2077179240,"20203942.2",207494480,"Gemeente Koksijde","De Dunevoetjes","PV-panelen",1381,"SIMPLE","RPS-875-2 (R2)",{"$f":"basisdata[[#This Row],[Categorie maatregel]]","v":"PV-panelen"},null,{"$f":"basisdata[[#This Row],[Gebouw]]","v":"De Dunevoetjes"},"R2"]
[2121719066,"20187819.2",212170672,"Openbaar Centrum voor Maatschappelijk Welzijn van Sint-Laureins","Woonzorgcentrum Sint-Jozef","Regeltechnisch",270,"SIMPLE","RPS-145-2 (R1)",{"$f":"basisdata[[#This Row],[Categorie maatregel]]","v":"Regeltechnisch"},null,{"$f":"basisdata[[#This Row],[Gebouw]]","v":"Woonzorgcentrum Sint-Jozef"},"R1"]
[2121719066,"20187819.2",212170672,"Openbaar Centrum voor Maatschappelijk Welzijn van Sint-Laureins","Woonzorgcentrum Sint-Jozef","Regeltechnisch",270,"SIMPLE","RPS-145-2 (R1)",{"$f":"basisdata[[#This Row],[Categorie maatregel]]","v":"Regeltechnisch"},null,{"$f":"basisdata[[#This Row],[Gebouw]]","v":"Woonzorgcentrum Sint-Jozef"},"R1"]
[2121719066,"20187819.2",212170672,"Openbaar Centrum voor Maatschappelijk Welzijn van Sint-Laureins","Woonzorgcentrum Sint-Jozef","Regeltechnisch",990,"SIMPLE","RPS-145-3 (R1)",{"$f":"basisdata[[#This Row],[Categorie maatregel]]","v":"Regeltechnisch"},null,{"$f":"basisdata[[#This Row],[Gebouw]]","v":"Woonzorgcentrum Sint-Jozef"},"R1"]
[2121719066,"20187819.2",212170672,"Openbaar Centrum voor Maatschappelijk Welzijn van Sint-Laureins","Woonzorgcentrum Sint-Jozef","Regeltechnisch",180,"SIMPLE","RPS-145-5 (R1)",{"$f":"basisdata[[#This Row],[Categorie maatregel]]","v":"Regeltechnisch"},null,{"$f":"basisdata[[#This Row],[Gebouw]]","v":"Woonzorgcentrum Sint-Jozef"},"R1"]
[2121719066,"20187819.2",212170672,"Openbaar Centrum voor Maatschappelijk Welzijn van Sint-Laureins","Woonzorgcentrum Sint-Jozef","Relighting/relamping",17320,"SIMPLE","RPS-145-6 (R1)",{"$f":"basisdata[[#This Row],[Categorie maatregel]]","v":"Relighting/relamping"},null,{"$f":"basisdata[[#This Row],[Gebouw]]","v":"Woonzorgcentrum Sint-Jozef"},"R1"]
[2121719066,"20187819.2",212170672,"Openbaar Centrum voor Maatschappelijk Welzijn van Sint-Laureins","Woonzorgcentrum Sint-Jozef","Relighting/relamping",240,"SIMPLE","RPS-145-7 (R1)",{"$f":"basisdata[[#This Row],[Categorie maatregel]]","v":"Relighting/relamping"},null,{"$f":"basisdata[[#This Row],[Gebouw]]","v":"Woonzorgcentrum Sint-Jozef"},"R1"]
[2121719066,"20187819.2",212170672,"Openbaar Centrum voor Maatschappelijk Welzijn van Sint-Laureins","Woonzorgcentrum Sint-Jozef","Relighting/relamping",4080,"SIMPLE","RPS-145-8 (R1)",{"$f":"basisdata[[#This Row],[Categorie maatregel]]","v":"Relighting/relamping"},null,{"$f":"basisdata[[#This Row],[Gebouw]]","v":"Woonzorgcentrum Sint-Jozef"},"R1"]
[2121757679,"20182548.3",212174533,"Openbaar Centrum voor Maatschappelijk Welzijn van Tessenderlo","WZC Heuvelheem","Monitoring",1860,"SIMPLE","RPS-147-7 (R1)",{"$f":"basisdata[[#This Row],[Categorie maatregel]]","v":"Monitoring"},null,{"$f":"basisdata[[#This Row],[Gebouw]]","v":"WZC Heuvelheem"},"R1"]
[2124127994,"20228860.1",212177008,"Openbaar Centrum voor Maatschappelijk Welzijn van Veurne","Zonnebloem","Relighting",23544,"SIMPLE","RPS-1248-1 (R2)",{"$f":"basisdata[[#This Row],[Categorie maatregel]]","v":"Relighting"},null,{"$f":"basisdata[[#This Row],[Gebouw]]","v":"Zonnebloem"},"R2"]
[2124254668,"20205820.1",212189676,"Openbaar Centrum voor Maatschappelijk Welzijn van Kortrijk","G-0013-WZC Ter Melle","Relighting/relamping",57000,"SIMPLE","RPS-1249-1 (R2)",{"$f":"basisdata[[#This Row],[Categorie maatregel]]","v":"Relighting/relamping"},null,{"$f":"basisdata[[#This Row],[Gebouw]]","v":"G-0013-WZC Ter Melle"},"R2"]
[2124254668,"20203115.2",212189676,"Openbaar Centrum voor Maatschappelijk Welzijn van Kortrijk","G-0029-De Nieuwe Lente - WKC De Zevenkamer","PV-panelen",8649,"SIMPLE","RPS-800-3 (R2)",{"$f":"basisdata[[#This Row],[Categorie maatregel]]","v":"PV-panelen"},null,{"$f":"basisdata[[#This Row],[Gebouw]]","v":"G-0029-De Nieuwe Lente - WKC De Zevenkamer"},"R2"]
[2124254668,"20203115.2",212189676,"Openbaar Centrum voor Maatschappelijk Welzijn van Kortrijk","G-0029-De Nieuwe Lente - WKC De Zevenkamer","Relighting/relamping",12600,"SIMPLE","RPS-800-4 (R2)",{"$f":"basisdata[[#This Row],[Categorie maatregel]]","v":"Relighting/relamping"},null,{"$f":"basisdata[[#This Row],[Gebouw]]","v":"G-0029-De Nieuwe Lente - WKC De Zevenkamer"},"R2"]
[2124254668,"20206797.2",212189676,"Openbaar Centrum voor Maatschappelijk Welzijn van Kortrijk","G-0355-Rietveld","Relighting/relamping",1135,"SIMPLE","RPS-801-5 (R2)",{"$f":"basisdata[[#This Row],[Categorie maatregel]]","v":"Relighting/relamping"},null,{"$f":"basisdata[[#This Row],[Gebouw]]","v":"G-0355-Rietveld"},"R2"]
[2124254668,"20208391.2",212189676,"Openbaar Centrum voor Maatschappelijk Welzijn van Kortrijk","G-0016-WZC De Weister","Relighting/relamping",46200,"SIMPLE","RPS-802-3 (R2)",{"$f":"basisdata[[#This Row],[Categorie maatregel]]","v":"Relighting/relamping"},null,{"$f":"basisdata[[#This Row],[Gebouw]]","v":"G-0016-WZC De Weister"},"R2"]
[2124254668,"20207755.2",212189676,"Openbaar Centrum voor Maatschappelijk Welzijn van Kortrijk","G-0471-Kinderopvang Blokkenhuis","PV-panelen",1548,"SIMPLE","RPS-803-2 (R2)",{"$f":"basisdata[[#This Row],[Categorie maatregel]]","v":"PV-panelen"},null,{"$f":"basisdata[[#This Row],[Gebouw]]","v":"G-0471-Kinderopvang Blokkenhuis"},"R2"]
[2124254668,"20209420.2",212189676,"Openbaar Centrum voor Maatschappelijk Welzijn van Kortrijk","G-0028-WKC De Zonnewijzer","PV-panelen",6605,"SIMPLE","RPS-804-3 (R2)",{"$f":"basisdata[[#This Row],[Categorie maatregel]]","v":"PV-panelen"},null,{"$f":"basisdata[[#This Row],[Gebouw]]","v":"G-0028-WKC De Zonnewijzer"},"R2"]
[2124254668,"20209420.2",212189676,"Openbaar Centrum voor Maatschappelijk Welzijn van Kortrijk","G-0028-WKC De Zonnewijzer","Relighting/relamping",17400,"SIMPLE","RPS-804-4 (R2)",{"$f":"basisdata[[#This Row],[Categorie maatregel]]","v":"Relighting/relamping"},null,{"$f":"basisdata[[#This Row],[Gebouw]]","v":"G-0028-WKC De Zonnewijzer"},"R2"]
[2124254668,"20208712.2",212189676,"Openbaar Centrum voor Maatschappelijk Welzijn van Kortrijk","G-0017-WZC Biezenheem","Relighting/relamping",36000,"SIMPLE","RPS-805-3 (R2)",{"$f":"basisdata[[#This Row],[Categorie maatregel]]","v":"Relighting/relamping"},null,{"$f":"basisdata[[#This Row],[Gebouw]]","v":"G-0017-WZC Biezenheem"},"R2"]
[2122063544,"20206459.1",212205118,"Openbaar Centrum voor Maatschappelijk Welzijn van Oostende","Zorg aan Zee: A. Lacourt","PV-panelen",53647,"SIMPLE","RPS-1083-1 (R1)",{"$f":"basisdata[[#This Row],[Categorie maatregel]]","v":"PV-panelen"},null,{"$f":"basisdata[[#This Row],[Gebouw]]","v":"Zorg aan Zee: A. Lacourt"},"R1"]
[2122097166,"20228793.1",212208482,"Openbaar Centrum voor Maatschappelijk Welzijn van Pittem","woonzorgcentrum Sint-Remigius","Relighting",63813,"SIMPLE","RPS-1084-1 (R1)",{"$f":"basisdata[[#This Row],[Categorie maatregel]]","v":"Relighting"},null,{"$f":"basisdata[[#This Row],[Gebouw]]","v":"woonzorgcentrum Sint-Remigius"},"R1"]
[2122106079,"20196332.2",212209373,"Openbaar Centrum voor Maatschappelijk Welzijn van Oudenburg","WZC Riethove","PV-panelen",7805,"SIMPLE","RPS-1250-1 (R2)",{"$f":"basisdata[[#This Row],[Categorie maatregel]]","v":"PV-panelen"},null,{"$f":"basisdata[[#This Row],[Gebouw]]","v":"WZC Riethove"},"R2"]
[2122106079,"20196332.1",212209373,"Openbaar Centrum voor Maatschappelijk Welzijn van Oudenburg","WZC Riethove","Relighting/relamping",17100,"SIMPLE","RPS-1250-2 (R2)",{"$f":"basisdata[[#This Row],[Categorie maatregel]]","v":"Relighting/relamping"},null,{"$f":"basisdata[[#This Row],[Gebouw]]","v":"WZC Riethove"},"R2"]
[2122454505,"20182136.2",212244215,"Openbaar Centrum voor Maatschappelijk Welzijn van Buggenhout","Herfstdroom","Relighting/relamping",6469,"SIMPLE","RPS-225-4 (R1)",{"$f":"basisdata[[#This Row],[Categorie maatregel]]","v":"Relighting/relamping"},null,{"$f":"basisdata[[#This Row],[Gebouw]]","v":"Herfstdroom"},"R1"]
[2122460457,"20229003.1",212244809,"Openbaar Centrum voor Maatschappelijk Welzijn van Damme","Opvanghuis","PV-panelen",1440,"SIMPLE","RPS-1085-1 (R1)",{"$f":"basisdata[[#This Row],[Categorie maatregel]]","v":"PV-panelen"},null,{"$f":"basisdata[[#This Row],[Gebouw]]","v":"Opvanghuis"},"R1"]
[2122460457,"20229003.1",212244809,"Openbaar Centrum voor Maatschappelijk Welzijn van Damme","Opvanghuis","Relighting",146,"SIMPLE","RPS-1085-2 (R1)",{"$f":"basisdata[[#This Row],[Categorie maatregel]]","v":"Relighting"},null,{"$f":"basisdata[[#This Row],[Gebouw]]","v":"Opvanghuis"},"R1"]
[2122460457,"20229003.1",212244809,"Openbaar Centrum voor Maatschappelijk Welzijn van Damme","Opvanghuis","Relighting",963,"SIMPLE","RPS-1085-3 (R1)",{"$f":"basisdata[[#This Row],[Categorie maatregel]]","v":"Relighting"},null,{"$f":"basisdata[[#This Row],[Gebouw]]","v":"Opvanghuis"},"R1"]
[2122460457,"20229003.1",212244809,"Openbaar Centrum voor Maatschappelijk Welzijn van Damme","Opvanghuis","Relighting",95,"SIMPLE","RPS-1085-4 (R1)",{"$f":"basisdata[[#This Row],[Categorie maatregel]]","v":"Relighting"},null,{"$f":"basisdata[[#This Row],[Gebouw]]","v":"Opvanghuis"},"R1"]
[2122460457,"20229003.1",212244809,"Openbaar Centrum voor Maatschappelijk Welzijn van Damme","Opvanghuis","Relighting",269,"SIMPLE","RPS-1085-5 (R1)",{"$f":"basisdata[[#This Row],[Categorie maatregel]]","v":"Relighting"},null,{"$f":"basisdata[[#This Row],[Gebouw]]","v":"Opvanghuis"},"R1"]
[2167721831,"20217513.2",216770947,"Openbaar Centrum voor Maatschappelijk Welzijn van De Haan","Dienstencentrum Kerklommer","Relighting",11100,"SIMPLE","RPS-553-9 (R1)",{"$f":"basisdata[[#This Row],[Categorie maatregel]]","v":"Relighting"},null,{"$f":"basisdata[[#This Row],[Gebouw]]","v":"Dienstencentrum Kerklommer"},"R1"]
[2167721831,"20213317.2",216770947,"Openbaar Centrum voor Maatschappelijk Welzijn van De Haan","Kerklommer","Relighting",27000,"SIMPLE","RPS-554-5 (R1)",{"$f":"basisdata[[#This Row],[Categorie maatregel]]","v":"Relighting"},null,{"$f":"basisdata[[#This Row],[Gebouw]]","v":"Kerklommer"},"R1"]
[2399475618,"20228963.1",239946326,"VITAS","Corsala","Relighting",51671,"SIMPLE","RPS-1086-1 (R1)",{"$f":"basisdata[[#This Row],[Categorie maatregel]]","v":"Relighting"},null,{"$f":"basisdata[[#This Row],[Gebouw]]","v":"Corsala"},"R1"]
[2399475618,"20223581.1",239946326,"VITAS","WZC Reigersvliet","Relighting",25145,"SIMPLE","RPS-1087-1 (R1)",{"$f":"basisdata[[#This Row],[Categorie maatregel]]","v":"Relighting"},null,{"$f":"basisdata[[#This Row],[Gebouw]]","v":"WZC Reigersvliet"},"R1"]
[2399475618,"20188876.2",239946326,"VITAS","Kloosterhof","Relighting/relamping",29774,"SIMPLE","RPS-374-2 (R1)",{"$f":"basisdata[[#This Row],[Categorie maatregel]]","v":"Relighting/relamping"},null,{"$f":"basisdata[[#This Row],[Gebouw]]","v":"Kloosterhof"},"R1"]
[2668573757,"20216675.4",266559859,"AZ ST-JAN Brugge-Oostende A.V.","AZ Sint-Jan, Ruddershove","PV-panelen",250000,"EXTENDED","RPE-880-9 (R2)",{"$f":"basisdata[[#This Row],[Categorie maatregel]]","v":"PV-panelen"},null,{"$f":"basisdata[[#This Row],[Gebouw]]","v":"AZ Sint-Jan, Ruddershove"},"R2"]
[4059309366,"20247798.1",405460592,"Onze-Lieve-Vrouw van Lourdes Ziekenhuis Waregem","O.L.V. van Lourdes Ziekenhuis Waregem vzw","Relighting",2628,"SIMPLE","RPS-291-10 (R2)",{"$f":"basisdata[[#This Row],[Categorie maatregel]]","v":"Relighting"},null,{"$f":"basisdata[[#This Row],[Gebouw]]","v":"O.L.V. van Lourdes Ziekenhuis Waregem vzw"},"R2"]
[4059309366,"20247798.1",405460592,"Onze-Lieve-Vrouw van Lourdes Ziekenhuis Waregem","O.L.V. van Lourdes Ziekenhuis Waregem vzw","Relighting",3250,"SIMPLE","RPS-291-11 (R2)",{"$f":"basisdata[[#This Row],[Categorie maatregel]]","v":"Relighting"},null,{"$f":"basisdata[[#This Row],[Gebouw]]","v":"O.L.V. van Lourdes Ziekenhuis Waregem vzw"},"R2"]
[4059309366,"20247798.1",405460592,"Onze-Lieve-Vrouw van Lourdes Ziekenhuis Waregem","O.L.V. van Lourdes Ziekenhuis Waregem vzw","Relighting",17366,"SIMPLE","RPS-291-12 (R2)",{"$f":"basisdata[[#This Row],[Categorie maatregel]]","v":"Relighting"},null,{"$f":"basisdata[[#This Row],[Gebouw]]","v":"O.L.V. van Lourdes Ziekenhuis Waregem vzw"},"R2"]
[4059309366,"20247798.1",405460592,"Onze-Lieve-Vrouw van Lourdes Ziekenhuis Waregem","O.L.V. van Lourdes Ziekenhuis Waregem vzw","Relighting",14675,"SIMPLE","RPS-291-13 (R2)",{"$f":"basisdata[[#This Row],[Categorie maatregel]]","v":"Relighting"},null,{"$f":"basisdata[[#This Row],[Gebouw]]","v":"O.L.V. van Lourdes Ziekenhuis Waregem vzw"},"R2"]
[4059309366,"20247798.1",405460592,"Onze-Lieve-Vrouw van Lourdes Ziekenhuis Waregem","O.L.V. van Lourdes Ziekenhuis Waregem vzw","Relighting",15612,"SIMPLE","RPS-291-14 (R2)",{"$f":"basisdata[[#This Row],[Categorie maatregel]]","v":"Relighting"},null,{"$f":"basisdata[[#This Row],[Gebouw]]","v":"O.L.V. van Lourdes Ziekenhuis Waregem vzw"},"R2"]
[4059309366,"20247798.1",405460592,"Onze-Lieve-Vrouw van Lourdes Ziekenhuis Waregem","O.L.V. van Lourdes Ziekenhuis Waregem vzw","Relighting",3943,"SIMPLE","RPS-291-15 (R2)",{"$f":"basisdata[[#This Row],[Categorie maatregel]]","v":"Relighting"},null,{"$f":"basisdata[[#This Row],[Gebouw]]","v":"O.L.V. van Lourdes Ziekenhuis Waregem vzw"},"R2"]
[4059309366,"20247798.1",405460592,"Onze-Lieve-Vrouw van Lourdes Ziekenhuis Waregem","O.L.V. van Lourdes Ziekenhuis Waregem vzw","Relighting",10701,"SIMPLE","RPS-291-16 (R2)",{"$f":"basisdata[[#This Row],[Categorie maatregel]]","v":"Relighting"},null,{"$f":"basisdata[[#This Row],[Gebouw]]","v":"O.L.V. van Lourdes Ziekenhuis Waregem vzw"},"R2"]
[4059309366,"20247798.1",405460592,"Onze-Lieve-Vrouw van Lourdes Ziekenhuis Waregem","O.L.V. van Lourdes Ziekenhuis Waregem vzw","Relighting",5843,"SIMPLE","RPS-291-17 (R2)",{"$f":"basisdata[[#This Row],[Categorie maatregel]]","v":"Relighting"},null,{"$f":"basisdata[[#This Row],[Gebouw]]","v":"O.L.V. van Lourdes Ziekenhuis Waregem vzw"},"R2"]
[4059309366,"20247798.1",405460592,"Onze-Lieve-Vrouw van Lourdes Ziekenhuis Waregem","O.L.V. van Lourdes Ziekenhuis Waregem vzw","Relighting",6636,"SIMPLE","RPS-291-18 (R2)",{"$f":"basisdata[[#This Row],[Categorie maatregel]]","v":"Relighting"},null,{"$f":"basisdata[[#This Row],[Gebouw]]","v":"O.L.V. van Lourdes Ziekenhuis Waregem vzw"},"R2"]
[4059309366,"20247798.1",405460592,"Onze-Lieve-Vrouw van Lourdes Ziekenhuis Waregem","O.L.V. van Lourdes Ziekenhuis Waregem vzw","Relighting",2650,"SIMPLE","RPS-291-19 (R2)",{"$f":"basisdata[[#This Row],[Categorie maatregel]]","v":"Relighting"},null,{"$f":"basisdata[[#This Row],[Gebouw]]","v":"O.L.V. van Lourdes Ziekenhuis Waregem vzw"},"R2"]
[4059309366,"20247798.1",405460592,"Onze-Lieve-Vrouw van Lourdes Ziekenhuis Waregem","O.L.V. van Lourdes Ziekenhuis Waregem vzw","Relighting",8571,"SIMPLE","RPS-291-20 (R2)",{"$f":"basisdata[[#This Row],[Categorie maatregel]]","v":"Relighting"},null,{"$f":"basisdata[[#This Row],[Gebouw]]","v":"O.L.V. van Lourdes Ziekenhuis Waregem vzw"},"R2"]
[4059309366,"20247798.1",405460592,"Onze-Lieve-Vrouw van Lourdes Ziekenhuis Waregem","O.L.V. van Lourdes Ziekenhuis Waregem vzw","Relighting",10721,"SIMPLE","RPS-291-21 (R2)",{"$f":"basisdata[[#This Row],[Categorie maatregel]]","v":"Relighting"},null,{"$f":"basisdata[[#This Row],[Gebouw]]","v":"O.L.V. van Lourdes Ziekenhuis Waregem vzw"},"R2"]
[4059309366,"20247798.1",405460592,"Onze-Lieve-Vrouw van Lourdes Ziekenhuis Waregem","O.L.V. van Lourdes Ziekenhuis Waregem vzw","Relighting",10903,"SIMPLE","RPS-291-22 (R2)",{"$f":"basisdata[[#This Row],[Categorie maatregel]]","v":"Relighting"},null,{"$f":"basisdata[[#This Row],[Gebouw]]","v":"O.L.V. van Lourdes Ziekenhuis Waregem vzw"},"R2"]
[4059309366,"20247798.1",405460592,"Onze-Lieve-Vrouw van Lourdes Ziekenhuis Waregem","O.L.V. van Lourdes Ziekenhuis Waregem vzw","Relighting",26880,"SIMPLE","RPS-291-23 (R2)",{"$f":"basisdata[[#This Row],[Categorie maatregel]]","v":"Relighting"},null,{"$f":"basisdata[[#This Row],[Gebouw]]","v":"O.L.V. van Lourdes Ziekenhuis Waregem vzw"},"R2"]
[4059309366,"20247798.1",405460592,"Onze-Lieve-Vrouw van Lourdes Ziekenhuis Waregem","O.L.V. van Lourdes Ziekenhuis Waregem vzw","Relighting",4344,"SIMPLE","RPS-291-24 (R2)",{"$f":"basisdata[[#This Row],[Categorie maatregel]]","v":"Relighting"},null,{"$f":"basisdata[[#This Row],[Gebouw]]","v":"O.L.V. van Lourdes Ziekenhuis Waregem vzw"},"R2"]
[4059309366,"20247798.1",405460592,"Onze-Lieve-Vrouw van Lourdes Ziekenhuis Waregem","O.L.V. van Lourdes Ziekenhuis Waregem vzw","Relighting",19605,"SIMPLE","RPS-291-25 (R2)",{"$f":"basisdata[[#This Row],[Categorie maatregel]]","v":"Relighting"},null,{"$f":"basisdata[[#This Row],[Gebouw]]","v":"O.L.V. van Lourdes Ziekenhuis Waregem vzw"},"R2"]
[4059309366,"20247798.1",405460592,"Onze-Lieve-Vrouw van Lourdes Ziekenhuis Waregem","O.L.V. van Lourdes Ziekenhuis Waregem vzw","Relighting",54717,"SIMPLE","RPS-291-26 (R2)",{"$f":"basisdata[[#This Row],[Categorie maatregel]]","v":"Relighting"},null,{"$f":"basisdata[[#This Row],[Gebouw]]","v":"O.L.V. van Lourdes Ziekenhuis Waregem vzw"},"R2"]
[4059309366,"20247798.1",405460592,"Onze-Lieve-Vrouw van Lourdes Ziekenhuis Waregem","O.L.V. van Lourdes Ziekenhuis Waregem vzw","Relighting",22492,"SIMPLE","RPS-291-27 (R2)",{"$f":"basisdata[[#This Row],[Categorie maatregel]]","v":"Relighting"},null,{"$f":"basisdata[[#This Row],[Gebouw]]","v":"O.L.V. van Lourdes Ziekenhuis Waregem vzw"},"R2"]
[4059309366,"20247798.1",405460592,"Onze-Lieve-Vrouw van Lourdes Ziekenhuis Waregem","O.L.V. van Lourdes Ziekenhuis Waregem vzw","Relighting",24219,"SIMPLE","RPS-291-28 (R2)",{"$f":"basisdata[[#This Row],[Categorie maatregel]]","v":"Relighting"},null,{"$f":"basisdata[[#This Row],[Gebouw]]","v":"O.L.V. van Lourdes Ziekenhuis Waregem vzw"},"R2"]
[4059309366,"20247798.1",405460592,"Onze-Lieve-Vrouw van Lourdes Ziekenhuis Waregem","O.L.V. van Lourdes Ziekenhuis Waregem vzw","Relighting",2950,"SIMPLE","RPS-291-29 (R2)",{"$f":"basisdata[[#This Row],[Categorie maatregel]]","v":"Relighting"},null,{"$f":"basisdata[[#This Row],[Gebouw]]","v":"O.L.V. van Lourdes Ziekenhuis Waregem vzw"},"R2"]
[4059309366,"20247798.1",405460592,"Onze-Lieve-Vrouw van Lourdes Ziekenhuis Waregem","O.L.V. van Lourdes Ziekenhuis Waregem vzw","Relighting",17081,"SIMPLE","RPS-291-30 (R2)",{"$f":"basisdata[[#This Row],[Categorie maatregel]]","v":"Relighting"},null,{"$f":"basisdata[[#This Row],[Gebouw]]","v":"O.L.V. van Lourdes Ziekenhuis Waregem vzw"},"R2"]
[4059309366,"20247798.1",405460592,"Onze-Lieve-Vrouw van Lourdes Ziekenhuis Waregem","O.L.V. van Lourdes Ziekenhuis Waregem vzw","Relighting",14690,"SIMPLE","RPS-291-31 (R2)",{"$f":"basisdata[[#This Row],[Categorie maatregel]]","v":"Relighting"},null,{"$f":"basisdata[[#This Row],[Gebouw]]","v":"O.L.V. van Lourdes Ziekenhuis Waregem vzw"},"R2"]
[4059309366,"20247798.1",405460592,"Onze-Lieve-Vrouw van Lourdes Ziekenhuis Waregem","O.L.V. van Lourdes Ziekenhuis Waregem vzw","Relighting",8574,"SIMPLE","RPS-291-32 (R2)",{"$f":"basisdata[[#This Row],[Categorie maatregel]]","v":"Relighting"},null,{"$f":"basisdata[[#This Row],[Gebouw]]","v":"O.L.V. van Lourdes Ziekenhuis Waregem vzw"},"R2"]
[4059309366,"20247798.1",405460592,"Onze-Lieve-Vrouw van Lourdes Ziekenhuis Waregem","O.L.V. van Lourdes Ziekenhuis Waregem vzw","Relighting",9087,"SIMPLE","RPS-291-33 (R2)",{"$f":"basisdata[[#This Row],[Categorie maatregel]]","v":"Relighting"},null,{"$f":"basisdata[[#This Row],[Gebouw]]","v":"O.L.V. van Lourdes Ziekenhuis Waregem vzw"},"R2"]
[4059309366,"20247798.1",405460592,"Onze-Lieve-Vrouw van Lourdes Ziekenhuis Waregem","O.L.V. van Lourdes Ziekenhuis Waregem vzw","Relighting",1119,"SIMPLE","RPS-291-34 (R2)",{"$f":"basisdata[[#This Row],[Categorie maatregel]]","v":"Relighting"},null,{"$f":"basisdata[[#This Row],[Gebouw]]","v":"O.L.V. van Lourdes Ziekenhuis Waregem vzw"},"R2"]
[4059309366,"20247798.1",405460592,"Onze-Lieve-Vrouw van Lourdes Ziekenhuis Waregem","O.L.V. van Lourdes Ziekenhuis Waregem vzw","Relighting",17809,"SIMPLE","RPS-291-35 (R2)",{"$f":"basisdata[[#This Row],[Categorie maatregel]]","v":"Relighting"},null,{"$f":"basisdata[[#This Row],[Gebouw]]","v":"O.L.V. van Lourdes Ziekenhuis Waregem vzw"},"R2"]
[4059309366,"20247798.1",405460592,"Onze-Lieve-Vrouw van Lourdes Ziekenhuis Waregem","O.L.V. van Lourdes Ziekenhuis Waregem vzw","PV-panelen",303000,"SIMPLE","RPS-291-7 (R2)",{"$f":"basisdata[[#This Row],[Categorie maatregel]]","v":"PV-panelen"},null,{"$f":"basisdata[[#This Row],[Gebouw]]","v":"O.L.V. van Lourdes Ziekenhuis Waregem vzw"},"R2"]
[4059309366,"20247798.1",405460592,"Onze-Lieve-Vrouw van Lourdes Ziekenhuis Waregem","O.L.V. van Lourdes Ziekenhuis Waregem vzw","Relighting",2214,"SIMPLE","RPS-291-8 (R2)",{"$f":"basisdata[[#This Row],[Categorie maatregel]]","v":"Relighting"},null,{"$f":"basisdata[[#This Row],[Gebouw]]","v":"O.L.V. van Lourdes Ziekenhuis Waregem vzw"},"R2"]
[4059309366,"20247798.1",405460592,"Onze-Lieve-Vrouw van Lourdes Ziekenhuis Waregem","O.L.V. van Lourdes Ziekenhuis Waregem vzw","Relighting",5756,"SIMPLE","RPS-291-9 (R2)",{"$f":"basisdata[[#This Row],[Categorie maatregel]]","v":"Relighting"},null,{"$f":"basisdata[[#This Row],[Gebouw]]","v":"O.L.V. van Lourdes Ziekenhuis Waregem vzw"},"R2"]
[4066592292,"20225655.2",406633304,"ORGANISATIE BROEDERS VAN LIEFDE","OCSF DCH","PV-panelen",16101,"SIMPLE","RPS-1088-1 (R1)",{"$f":"basisdata[[#This Row],[Categorie maatregel]]","v":"PV-panelen"},null,{"$f":"basisdata[[#This Row],[Gebouw]]","v":"OCSF DCH"},"R1"]
[4066592292,"20193601.3",406633304,"ORGANISATIE BROEDERS VAN LIEFDE","OCSF Den Heuvel Hasselt","PV-panelen",25239,"SIMPLE","RPS-813-7 (R1)",{"$f":"basisdata[[#This Row],[Categorie maatregel]]","v":"PV-panelen"},null,{"$f":"basisdata[[#This Row],[Gebouw]]","v":"OCSF Den Heuvel Hasselt"},"R1"]
[4066592292,"20227387.2",406633304,"ORGANISATIE BROEDERS VAN LIEFDE","OCSF Gebouw S","Dakisolatie plat dak",95891.25,"EXTENDED","RPE-1006-2 (R2)",{"$f":"basisdata[[#This Row],[Categorie maatregel]]","v":"Dakisolatie plat dak"},null,{"$f":"basisdata[[#This Row],[Gebouw]]","v":"OCSF Gebouw S"},"R2"]
[4066592292,"20227387.2",406633304,"ORGANISATIE BROEDERS VAN LIEFDE","OCSF Gebouw S","Relighting",22872.5,"EXTENDED","RPE-1006-3 (R2)",{"$f":"basisdata[[#This Row],[Categorie maatregel]]","v":"Relighting"},null,{"$f":"basisdata[[#This Row],[Gebouw]]","v":"OCSF Gebouw S"},"R2"]
[4066592292,"20227429.2",406633304,"ORGANISATIE BROEDERS VAN LIEFDE","OCSF Gebouw_P1","Relighting",8271.1999999999989,"EXTENDED","RPE-1007-4 (R2)",{"$f":"basisdata[[#This Row],[Categorie maatregel]]","v":"Relighting"},null,{"$f":"basisdata[[#This Row],[Gebouw]]","v":"OCSF Gebouw_P1"},"R2"]
[4066592292,"20227429.2",406633304,"ORGANISATIE BROEDERS VAN LIEFDE","OCSF Gebouw_P1","Stookplaatsrenovatie",25668.649999999998,"EXTENDED","RPE-1007-5 (R2)",{"$f":"basisdata[[#This Row],[Categorie maatregel]]","v":"Stookplaatsrenovatie"},null,{"$f":"basisdata[[#This Row],[Gebouw]]","v":"OCSF Gebouw_P1"},"R2"]
[4066592292,"20222916.2",406633304,"ORGANISATIE BROEDERS VAN LIEFDE","OCSF Gebouw_P2","Isoleren pompen/kranen/hydraulica",72,"EXTENDED","RPE-1008-2 (R2)",{"$f":"basisdata[[#This Row],[Categorie maatregel]]","v":"Isoleren pompen/kranen/hydraulica"},null,{"$f":"basisdata[[#This Row],[Gebouw]]","v":"OCSF Gebouw_P2"},"R2"]
[4066592292,"20222916.2",406633304,"ORGANISATIE BROEDERS VAN LIEFDE","OCSF Gebouw_P2","Relighting",8271.2000000000007,"EXTENDED","RPE-1008-3 (R2)",{"$f":"basisdata[[#This Row],[Categorie maatregel]]","v":"Relighting"},null,{"$f":"basisdata[[#This Row],[Gebouw]]","v":"OCSF Gebouw_P2"},"R2"]
[4066592292,"20222916.2",406633304,"ORGANISATIE BROEDERS VAN LIEFDE","OCSF Gebouw_P2","Stookplaatsrenovatie",22868.65,"EXTENDED","RPE-1008-4 (R2)",{"$f":"basisdata[[#This Row],[Categorie maatregel]]","v":"Stookplaatsrenovatie"},null,{"$f":"basisdata[[#This Row],[Gebouw]]","v":"OCSF Gebouw_P2"},"R2"]
[4066592292,"20225655.3",406633304,"ORGANISATIE BROEDERS VAN LIEFDE","OCSF DCH","Relighting",7186.2,"EXTENDED","RPE-1088-2 (R2)",{"$f":"basisdata[[#This Row],[Categorie maatregel]]","v":"Relighting"},null,{"$f":"basisdata[[#This Row],[Gebouw]]","v":"OCSF DCH"},"R2"]
[4066592292,"20225655.3",406633304,"ORGANISATIE BROEDERS VAN LIEFDE","OCSF DCH","Stookplaatsrenovatie",34459.599999999999,"EXTENDED","RPE-1088-3 (R2)",{"$f":"basisdata[[#This Row],[Categorie maatregel]]","v":"Stookplaatsrenovatie"},null,{"$f":"basisdata[[#This Row],[Gebouw]]","v":"OCSF DCH"},"R2"]
[4066592292,"20231482.1",406633304,"ORGANISATIE BROEDERS VAN LIEFDE","Het Roerhuis","PV-panelen",13061.25,"EXTENDED","RPE-1253-1 (R2)",{"$f":"basisdata[[#This Row],[Categorie maatregel]]","v":"PV-panelen"},null,{"$f":"basisdata[[#This Row],[Gebouw]]","v":"Het Roerhuis"},"R2"]
[4066592292,"20248401.1",406633304,"ORGANISATIE BROEDERS VAN LIEFDE","OCSF_SI Hoeveke","PV-panelen",3780,"EXTENDED","RPE-1254-1 (R2)",{"$f":"basisdata[[#This Row],[Categorie maatregel]]","v":"PV-panelen"},null,{"$f":"basisdata[[#This Row],[Gebouw]]","v":"OCSF_SI Hoeveke"},"R2"]
[4066592292,"20192909.3",406633304,"ORGANISATIE BROEDERS VAN LIEFDE","SJB - Suikerkaai (volledige site)","Windmolens",92500,"EXTENDED","RPE-575-10 (R2)",{"$f":"basisdata[[#This Row],[Categorie maatregel]]","v":"Windmolens"},null,{"$f":"basisdata[[#This Row],[Gebouw]]","v":"SJB - Suikerkaai (volledige site)"},"R2"]
[4066592292,"20236411.1",406633304,"ORGANISATIE BROEDERS VAN LIEFDE","De Sleutel - ACG","Isoleren pompen/kranen/hydraulica",1098,"SIMPLE","RPS-1251-1 (R2)",{"$f":"basisdata[[#This Row],[Categorie maatregel]]","v":"Isoleren pompen/kranen/hydraulica"},null,{"$f":"basisdata[[#This Row],[Gebouw]]","v":"De Sleutel - ACG"},"R2"]
[4066592292,"20236411.1",406633304,"ORGANISATIE BROEDERS VAN LIEFDE","De Sleutel - ACG","Monitoring",579,"SIMPLE","RPS-1251-2 (R2)",{"$f":"basisdata[[#This Row],[Categorie maatregel]]","v":"Monitoring"},null,{"$f":"basisdata[[#This Row],[Gebouw]]","v":"De Sleutel - ACG"},"R2"]
[4066592292,"20236411.1",406633304,"ORGANISATIE BROEDERS VAN LIEFDE","De Sleutel - ACG","Relighting",9240,"SIMPLE","RPS-1251-3 (R2)",{"$f":"basisdata[[#This Row],[Categorie maatregel]]","v":"Relighting"},null,{"$f":"basisdata[[#This Row],[Gebouw]]","v":"De Sleutel - ACG"},"R2"]
[4066592292,"20236411.1",406633304,"ORGANISATIE BROEDERS VAN LIEFDE","De Sleutel - ACG","Vervangen pompen",684,"SIMPLE","RPS-1251-4 (R2)",{"$f":"basisdata[[#This Row],[Categorie maatregel]]","v":"Vervangen pompen"},null,{"$f":"basisdata[[#This Row],[Gebouw]]","v":"De Sleutel - ACG"},"R2"]
[4066592292,"20236854.2",406633304,"ORGANISATIE BROEDERS VAN LIEFDE","De Sleutel - RKJ","Isoleren pompen/kranen/hydraulica",1048,"SIMPLE","RPS-1252-1 (R2)",{"$f":"basisdata[[#This Row],[Categorie maatregel]]","v":"Isoleren pompen/kranen/hydraulica"},null,{"$f":"basisdata[[#This Row],[Gebouw]]","v":"De Sleutel - RKJ"},"R2"]
[4066592292,"20236854.1",406633304,"ORGANISATIE BROEDERS VAN LIEFDE","De Sleutel - RKJ","PV-panelen",2697,"SIMPLE","RPS-1252-2 (R2)",{"$f":"basisdata[[#This Row],[Categorie maatregel]]","v":"PV-panelen"},null,{"$f":"basisdata[[#This Row],[Gebouw]]","v":"De Sleutel - RKJ"},"R2"]
[4066592292,"20236854.2",406633304,"ORGANISATIE BROEDERS VAN LIEFDE","De Sleutel - RKJ","Relighting",7608,"SIMPLE","RPS-1252-3 (R2)",{"$f":"basisdata[[#This Row],[Categorie maatregel]]","v":"Relighting"},null,{"$f":"basisdata[[#This Row],[Gebouw]]","v":"De Sleutel - RKJ"},"R2"]
[4066592292,"20236854.2",406633304,"ORGANISATIE BROEDERS VAN LIEFDE","De Sleutel - RKJ","Vervangen pompen",1009,"SIMPLE","RPS-1252-4 (R2)",{"$f":"basisdata[[#This Row],[Categorie maatregel]]","v":"Vervangen pompen"},null,{"$f":"basisdata[[#This Row],[Gebouw]]","v":"De Sleutel - RKJ"},"R2"]
[4072571657,"20192359.1",407231239,"NEKTARI","BWZ Klein Brabant VZW (site Flegado)","Zonneboiler",5999,"SIMPLE","RPS-1255-1 (R2)",{"$f":"basisdata[[#This Row],[Categorie maatregel]]","v":"Zonneboiler"},null,{"$f":"basisdata[[#This Row],[Gebouw]]","v":"BWZ Klein Brabant VZW (site Flegado)"},"R2"]
[4077293940,"20183046.3",407703470,"Onthaal-, Observatie- en Oriëntatiecentrum Ter Heide","Hoofdgebouw","PV-panelen",5374,"SIMPLE","RPS-576-3 (R1)",{"$f":"basisdata[[#This Row],[Categorie maatregel]]","v":"PV-panelen"},null,{"$f":"basisdata[[#This Row],[Gebouw]]","v":"Hoofdgebouw"},"R1"]
[4079465566,"20234138.1",407920632,"De Zeshoek","CIG DE ZESHOEK","Dakisolatie plat dak",72000,"SIMPLE","RPS-1256-1 (R2)",{"$f":"basisdata[[#This Row],[Categorie maatregel]]","v":"Dakisolatie plat dak"},null,{"$f":"basisdata[[#This Row],[Gebouw]]","v":"CIG DE ZESHOEK"},"R2"]
[4079465566,"20234138.1",407920632,"De Zeshoek","CIG DE ZESHOEK","Dakisolatie plat dak",11040,"SIMPLE","RPS-1256-2 (R2)",{"$f":"basisdata[[#This Row],[Categorie maatregel]]","v":"Dakisolatie plat dak"},null,{"$f":"basisdata[[#This Row],[Gebouw]]","v":"CIG DE ZESHOEK"},"R2"]
[4085865618,"20184764.3",408116216,"A.Z. SINT-LUCAS","AZ Sint Lucas Hoofdgebouw","PV-panelen",8391,"SIMPLE","RPS-1257-1 (R2)",{"$f":"basisdata[[#This Row],[Categorie maatregel]]","v":"PV-panelen"},null,{"$f":"basisdata[[#This Row],[Gebouw]]","v":"AZ Sint Lucas Hoofdgebouw"},"R2"]
[4085865618,"20184764.3",408116216,"A.Z. SINT-LUCAS","AZ Sint Lucas Hoofdgebouw","Regeltechn.ventilatie",33520,"SIMPLE","RPS-1257-2 (R2)",{"$f":"basisdata[[#This Row],[Categorie maatregel]]","v":"Regeltechn.ventilatie"},null,{"$f":"basisdata[[#This Row],[Gebouw]]","v":"AZ Sint Lucas Hoofdgebouw"},"R2"]
[4085865618,"20184764.3",408116216,"A.Z. SINT-LUCAS","AZ Sint Lucas Hoofdgebouw","Relighting",72300,"SIMPLE","RPS-1257-3 (R2)",{"$f":"basisdata[[#This Row],[Categorie maatregel]]","v":"Relighting"},null,{"$f":"basisdata[[#This Row],[Gebouw]]","v":"AZ Sint Lucas Hoofdgebouw"},"R2"]
[4082294418,"20192761.2",408203516,"Martens - Sotteau","Martens-sotteau","PV-panelen",6900,"SIMPLE","RPS-577-3 (R1)",{"$f":"basisdata[[#This Row],[Categorie maatregel]]","v":"PV-panelen"},null,{"$f":"basisdata[[#This Row],[Gebouw]]","v":"Martens-sotteau"},"R1"]
[4082544831,"20191190.3",408228557,"Regionaal Ziekenhuis Heilig Hart Tienen","MC Aarschot","PV-panelen",15037,"SIMPLE","RPS-578-3 (R1)",{"$f":"basisdata[[#This Row],[Categorie maatregel]]","v":"PV-panelen"},null,{"$f":"basisdata[[#This Row],[Gebouw]]","v":"MC Aarschot"},"R1"]
[4082544831,"20191190.3",408228557,"Regionaal Ziekenhuis Heilig Hart Tienen","MC Aarschot","Relighting/relamping",42000,"SIMPLE","RPS-578-4 (R1)",{"$f":"basisdata[[#This Row],[Categorie maatregel]]","v":"Relighting/relamping"},null,{"$f":"basisdata[[#This Row],[Gebouw]]","v":"MC Aarschot"},"R1"]
[4084061179,"20206283.1",408380193,"Algemeen Ziekenhuis West","az West","PV-panelen",14466,"SIMPLE","RPS-1089-1 (R1)",{"$f":"basisdata[[#This Row],[Categorie maatregel]]","v":"PV-panelen"},null,{"$f":"basisdata[[#This Row],[Gebouw]]","v":"az West"},"R1"]
[4084061179,"20206283.1",408380193,"Algemeen Ziekenhuis West","az West","Regeltechn.ventilatie",1617,"SIMPLE","RPS-1089-2 (R1)",{"$f":"basisdata[[#This Row],[Categorie maatregel]]","v":"Regeltechn.ventilatie"},null,{"$f":"basisdata[[#This Row],[Gebouw]]","v":"az West"},"R1"]
[4084061179,"20206283.1",408380193,"Algemeen Ziekenhuis West","az West","Relighting/relamping",9291,"SIMPLE","RPS-1089-3 (R1)",{"$f":"basisdata[[#This Row],[Categorie maatregel]]","v":"Relighting/relamping"},null,{"$f":"basisdata[[#This Row],[Gebouw]]","v":"az West"},"R1"]
[4084061179,"20206283.1",408380193,"Algemeen Ziekenhuis West","az West","Sensibilisering",1800,"SIMPLE","RPS-1089-4 (R1)",{"$f":"basisdata[[#This Row],[Categorie maatregel]]","v":"Sensibilisering"},null,{"$f":"basisdata[[#This Row],[Gebouw]]","v":"az West"},"R1"]
[4085253892,"20206256.2",408499464,"Koraal VZW","Kasteel Horst","PV-panelen",1321,"SIMPLE","RPS-1258-1 (R2)",{"$f":"basisdata[[#This Row],[Categorie maatregel]]","v":"PV-panelen"},null,{"$f":"basisdata[[#This Row],[Gebouw]]","v":"Kasteel Horst"},"R2"]
[4085253892,"20206256.2",408499464,"Koraal VZW","Kasteel Horst","Relighting/relamping",24300,"SIMPLE","RPS-1258-2 (R2)",{"$f":"basisdata[[#This Row],[Categorie maatregel]]","v":"Relighting/relamping"},null,{"$f":"basisdata[[#This Row],[Gebouw]]","v":"Kasteel Horst"},"R2"]
[4086168466,"20238612.1",408590922,"Sint-Barbara","Beversthuis","PV-panelen",94200,"SIMPLE","RPS-1258-3 (R2)",{"$f":"basisdata[[#This Row],[Categorie maatregel]]","v":"PV-panelen"},null,{"$f":"basisdata[[#This Row],[Gebouw]]","v":"Beversthuis"},"R2"]
[4086168466,"20238612.1",408590922,"Sint-Barbara","Beversthuis","Relighting",43224,"SIMPLE","RPS-1258-4 (R2)",{"$f":"basisdata[[#This Row],[Categorie maatregel]]","v":"Relighting"},null,{"$f":"basisdata[[#This Row],[Gebouw]]","v":"Beversthuis"},"R2"]
[4086168466,"20238612.1",408590922,"Sint-Barbara","Beversthuis","Relighting",24000,"SIMPLE","RPS-1258-5 (R2)",{"$f":"basisdata[[#This Row],[Categorie maatregel]]","v":"Relighting"},null,{"$f":"basisdata[[#This Row],[Gebouw]]","v":"Beversthuis"},"R2"]
[4098046044,"20202254.1",409334258,"Dominiek Savio Instituut vzw - De Tandem","Koolskampstraat (Gebouw 154)","PV-panelen",16129,"SIMPLE","RPS-1259-1 (R2)",{"$f":"basisdata[[#This Row],[Categorie maatregel]]","v":"PV-panelen"},null,{"$f":"basisdata[[#This Row],[Gebouw]]","v":"Koolskampstraat (Gebouw 154)"},"R2"]
[4098046044,"20202254.1",409334258,"Dominiek Savio Instituut vzw - De Tandem","Koolskampstraat (Gebouw 154)","Relighting/relamping",1466,"SIMPLE","RPS-1259-2 (R2)",{"$f":"basisdata[[#This Row],[Categorie maatregel]]","v":"Relighting/relamping"},null,{"$f":"basisdata[[#This Row],[Gebouw]]","v":"Koolskampstraat (Gebouw 154)"},"R2"]
[4098046044,"20209094.1",409334258,"Dominiek Savio Instituut vzw - De Tandem","Koolskampstraat (gebouw 156)","PV-panelen",2860,"SIMPLE","RPS-1260-1 (R2)",{"$f":"basisdata[[#This Row],[Categorie maatregel]]","v":"PV-panelen"},null,{"$f":"basisdata[[#This Row],[Gebouw]]","v":"Koolskampstraat (gebouw 156)"},"R2"]
[4098046044,"20209094.1",409334258,"Dominiek Savio Instituut vzw - De Tandem","Koolskampstraat (gebouw 156)","Relighting/relamping",719,"SIMPLE","RPS-1260-2 (R2)",{"$f":"basisdata[[#This Row],[Categorie maatregel]]","v":"Relighting/relamping"},null,{"$f":"basisdata[[#This Row],[Gebouw]]","v":"Koolskampstraat (gebouw 156)"},"R2"]
[4098046044,"20189660.2",409334258,"Dominiek Savio Instituut vzw - De Tandem","Boskant Kouter","Dakisolatie",13608,"SIMPLE","RPS-343-2 (R2)",{"$f":"basisdata[[#This Row],[Categorie maatregel]]","v":"Dakisolatie"},null,{"$f":"basisdata[[#This Row],[Gebouw]]","v":"Boskant Kouter"},"R2"]
[4098046044,"20189660.2",409334258,"Dominiek Savio Instituut vzw - De Tandem","Boskant Kouter","PV-panelen",7103,"SIMPLE","RPS-343-3 (R2)",{"$f":"basisdata[[#This Row],[Categorie maatregel]]","v":"PV-panelen"},null,{"$f":"basisdata[[#This Row],[Gebouw]]","v":"Boskant Kouter"},"R2"]
[4098046044,"20204197.2",409334258,"Dominiek Savio Instituut vzw - De Tandem","Koolskampstraat (gebouw 152)","PV-panelen",10956,"SIMPLE","RPS-820-3 (R2)",{"$f":"basisdata[[#This Row],[Categorie maatregel]]","v":"PV-panelen"},null,{"$f":"basisdata[[#This Row],[Gebouw]]","v":"Koolskampstraat (gebouw 152)"},"R2"]
[4098046044,"20206728.2",409334258,"Dominiek Savio Instituut vzw - De Tandem","Koolskampstraat (Gebouw 170)","PV-panelen",4239,"SIMPLE","RPS-821-2 (R2)",{"$f":"basisdata[[#This Row],[Categorie maatregel]]","v":"PV-panelen"},null,{"$f":"basisdata[[#This Row],[Gebouw]]","v":"Koolskampstraat (Gebouw 170)"},"R2"]
[4098046044,"20205909.2",409334258,"Dominiek Savio Instituut vzw - De Tandem","Koolskampstraat (Gebouw 180)","PV-panelen",3842,"SIMPLE","RPS-822-2 (R2)",{"$f":"basisdata[[#This Row],[Categorie maatregel]]","v":"PV-panelen"},null,{"$f":"basisdata[[#This Row],[Gebouw]]","v":"Koolskampstraat (Gebouw 180)"},"R2"]
[4098046044,"20205909.2",409334258,"Dominiek Savio Instituut vzw - De Tandem","Koolskampstraat (Gebouw 180)","Schrijnwerkrenovatie",17400,"SIMPLE","RPS-822-3 (R2)",{"$f":"basisdata[[#This Row],[Categorie maatregel]]","v":"Schrijnwerkrenovatie"},null,{"$f":"basisdata[[#This Row],[Gebouw]]","v":"Koolskampstraat (Gebouw 180)"},"R2"]
[4098046044,"20201240.2",409334258,"Dominiek Savio Instituut vzw - De Tandem","Koolskampstraat (gebouw 320)","PV-panelen",11034,"SIMPLE","RPS-823-2 (R2)",{"$f":"basisdata[[#This Row],[Categorie maatregel]]","v":"PV-panelen"},null,{"$f":"basisdata[[#This Row],[Gebouw]]","v":"Koolskampstraat (gebouw 320)"},"R2"]
[4098046044,"20203437.1",409334258,"Dominiek Savio Instituut vzw - De Tandem","Koolskampstraat (gebouw 325)","PV-panelen",965,"SIMPLE","RPS-823-3 (R2)",{"$f":"basisdata[[#This Row],[Categorie maatregel]]","v":"PV-panelen"},null,{"$f":"basisdata[[#This Row],[Gebouw]]","v":"Koolskampstraat (gebouw 325)"},"R2"]
[4094964779,"20232447.2",409470553,"Ascendere","CAR Klim Op","Relighting",3000,"SIMPLE","RPS-1090-1 (R1)",{"$f":"basisdata[[#This Row],[Categorie maatregel]]","v":"Relighting"},null,{"$f":"basisdata[[#This Row],[Gebouw]]","v":"CAR Klim Op"},"R1"]
[4094964779,"20232447.2",409470553,"Ascendere","CAR Klim Op","Relighting",11576,"SIMPLE","RPS-1090-2 (R1)",{"$f":"basisdata[[#This Row],[Categorie maatregel]]","v":"Relighting"},null,{"$f":"basisdata[[#This Row],[Gebouw]]","v":"CAR Klim Op"},"R1"]
[4100144392,"20188424.2",409988514,"Medisch Pedagogisch Instituut De Kindervriend vereniging zonder winstoogmerk","Gebouw G + H","PV-panelen",90162,"SIMPLE","RPS-45-5 (R1)",{"$f":"basisdata[[#This Row],[Categorie maatregel]]","v":"PV-panelen"},null,{"$f":"basisdata[[#This Row],[Gebouw]]","v":"Gebouw G + H"},"R1"]
[4100836253,"20204337.5",410057701,"INST. TROPISCHE GENEESKUNDE - PRINS LEOPOLD","ITG Nationalestraat","PV-panelen",26636,"SIMPLE","RPS-594-3 (R1)",{"$f":"basisdata[[#This Row],[Categorie maatregel]]","v":"PV-panelen"},null,{"$f":"basisdata[[#This Row],[Gebouw]]","v":"ITG Nationalestraat"},"R1"]
[4103159318,"20239354.2",410290006,"Sporen","de Pijl nieuwbouw","PV-panelen",3536,"SIMPLE","RPS-1091-1 (R1)",{"$f":"basisdata[[#This Row],[Categorie maatregel]]","v":"PV-panelen"},null,{"$f":"basisdata[[#This Row],[Gebouw]]","v":"de Pijl nieuwbouw"},"R1"]
[4103159318,"20236927.2",410290006,"Sporen","Herberg Stanske","PV-panelen",1016,"SIMPLE","RPS-1092-1 (R1)",{"$f":"basisdata[[#This Row],[Categorie maatregel]]","v":"PV-panelen"},null,{"$f":"basisdata[[#This Row],[Gebouw]]","v":"Herberg Stanske"},"R1"]
[4103159318,"20182510.3",410290006,"Sporen","Oudebaan","PV-panelen",1910,"SIMPLE","RPS-239-2 (R1)",{"$f":"basisdata[[#This Row],[Categorie maatregel]]","v":"PV-panelen"},null,{"$f":"basisdata[[#This Row],[Gebouw]]","v":"Oudebaan"},"R1"]
[4103159318,"20184824.4",410290006,"Sporen","Triangel","PV-panelen",1079,"SIMPLE","RPS-242-4 (R1)",{"$f":"basisdata[[#This Row],[Categorie maatregel]]","v":"PV-panelen"},null,{"$f":"basisdata[[#This Row],[Gebouw]]","v":"Triangel"},"R1"]
[4104486631,"20184857.1",410422737,"KONINKLIJK ONDERSTEUNINGSCENTRUM TER ENGELEN TEVONA","De Giek","Monitoring",2100,"SIMPLE","RPS-1093-1 (R1)",{"$f":"basisdata[[#This Row],[Categorie maatregel]]","v":"Monitoring"},null,{"$f":"basisdata[[#This Row],[Gebouw]]","v":"De Giek"},"R1"]
[4104486631,"20184857.1",410422737,"KONINKLIJK ONDERSTEUNINGSCENTRUM TER ENGELEN TEVONA","De Giek","PV-panelen",4988,"SIMPLE","RPS-1093-2 (R1)",{"$f":"basisdata[[#This Row],[Categorie maatregel]]","v":"PV-panelen"},null,{"$f":"basisdata[[#This Row],[Gebouw]]","v":"De Giek"},"R1"]
[4104486631,"20184857.1",410422737,"KONINKLIJK ONDERSTEUNINGSCENTRUM TER ENGELEN TEVONA","De Giek","Renovatie SWW",1680,"SIMPLE","RPS-1093-3 (R1)",{"$f":"basisdata[[#This Row],[Categorie maatregel]]","v":"Renovatie SWW"},null,{"$f":"basisdata[[#This Row],[Gebouw]]","v":"De Giek"},"R1"]
[4104486631,"20183677.1",410422737,"KONINKLIJK ONDERSTEUNINGSCENTRUM TER ENGELEN TEVONA","Tevona Dagcentrum (Blok B)","Isoleren pompen/kranen/hydraulica",2376,"SIMPLE","RPS-1094-1 (R1)",{"$f":"basisdata[[#This Row],[Categorie maatregel]]","v":"Isoleren pompen/kranen/hydraulica"},null,{"$f":"basisdata[[#This Row],[Gebouw]]","v":"Tevona Dagcentrum (Blok B)"},"R1"]
[4104486631,"20183677.1",410422737,"KONINKLIJK ONDERSTEUNINGSCENTRUM TER ENGELEN TEVONA","Tevona Dagcentrum (Blok B)","Regeltechn.verwarming",1234,"SIMPLE","RPS-1094-3 (R1)",{"$f":"basisdata[[#This Row],[Categorie maatregel]]","v":"Regeltechn.verwarming"},null,{"$f":"basisdata[[#This Row],[Gebouw]]","v":"Tevona Dagcentrum (Blok B)"},"R1"]
[4104486631,"20185531.1",410422737,"KONINKLIJK ONDERSTEUNINGSCENTRUM TER ENGELEN TEVONA","Tevona De Es (Blok D)","Isoleren pompen/kranen/hydraulica",648,"SIMPLE","RPS-1095-1 (R1)",{"$f":"basisdata[[#This Row],[Categorie maatregel]]","v":"Isoleren pompen/kranen/hydraulica"},null,{"$f":"basisdata[[#This Row],[Gebouw]]","v":"Tevona De Es (Blok D)"},"R1"]
[4104486631,"20182010.1",410422737,"KONINKLIJK ONDERSTEUNINGSCENTRUM TER ENGELEN TEVONA","Tevona Dienstencentrum (Blok C)","Isoleren pompen/kranen/hydraulica",1377,"SIMPLE","RPS-1096-1 (R1)",{"$f":"basisdata[[#This Row],[Categorie maatregel]]","v":"Isoleren pompen/kranen/hydraulica"},null,{"$f":"basisdata[[#This Row],[Gebouw]]","v":"Tevona Dienstencentrum (Blok C)"},"R1"]
[4104486631,"20182010.1",410422737,"KONINKLIJK ONDERSTEUNINGSCENTRUM TER ENGELEN TEVONA","Tevona Dienstencentrum (Blok C)","Regeltechn.verwarming",114,"SIMPLE","RPS-1096-2 (R1)",{"$f":"basisdata[[#This Row],[Categorie maatregel]]","v":"Regeltechn.verwarming"},null,{"$f":"basisdata[[#This Row],[Gebouw]]","v":"Tevona Dienstencentrum (Blok C)"},"R1"]
[4104486631,"20188641.1",410422737,"KONINKLIJK ONDERSTEUNINGSCENTRUM TER ENGELEN TEVONA","WZC (blok A)","Dakisolatie",3419,"SIMPLE","RPS-1097-1 (R1)",{"$f":"basisdata[[#This Row],[Categorie maatregel]]","v":"Dakisolatie"},null,{"$f":"basisdata[[#This Row],[Gebouw]]","v":"WZC (blok A)"},"R1"]
[4104486631,"20188641.1",410422737,"KONINKLIJK ONDERSTEUNINGSCENTRUM TER ENGELEN TEVONA","WZC (blok A)","Isoleren pompen/kranen/hydraulica",1170,"SIMPLE","RPS-1097-2 (R1)",{"$f":"basisdata[[#This Row],[Categorie maatregel]]","v":"Isoleren pompen/kranen/hydraulica"},null,{"$f":"basisdata[[#This Row],[Gebouw]]","v":"WZC (blok A)"},"R1"]
[4104486631,"20188641.1",410422737,"KONINKLIJK ONDERSTEUNINGSCENTRUM TER ENGELEN TEVONA","WZC (blok A)","Muurisolatie",16354,"SIMPLE","RPS-1097-3 (R1)",{"$f":"basisdata[[#This Row],[Categorie maatregel]]","v":"Muurisolatie"},null,{"$f":"basisdata[[#This Row],[Gebouw]]","v":"WZC (blok A)"},"R1"]
[4104486631,"20188641.1",410422737,"KONINKLIJK ONDERSTEUNINGSCENTRUM TER ENGELEN TEVONA","WZC (blok A)","PV-panelen",10663,"SIMPLE","RPS-1097-4 (R1)",{"$f":"basisdata[[#This Row],[Categorie maatregel]]","v":"PV-panelen"},null,{"$f":"basisdata[[#This Row],[Gebouw]]","v":"WZC (blok A)"},"R1"]
[4104486631,"20188641.1",410422737,"KONINKLIJK ONDERSTEUNINGSCENTRUM TER ENGELEN TEVONA","WZC (blok A)","Vloerisolatie",23459,"SIMPLE","RPS-1097-6 (R1)",{"$f":"basisdata[[#This Row],[Categorie maatregel]]","v":"Vloerisolatie"},null,{"$f":"basisdata[[#This Row],[Gebouw]]","v":"WZC (blok A)"},"R1"]
[4104486631,"20188641.1",410422737,"KONINKLIJK ONDERSTEUNINGSCENTRUM TER ENGELEN TEVONA","WZC (blok A)","Zonneboiler",9506,"SIMPLE","RPS-1097-7 (R1)",{"$f":"basisdata[[#This Row],[Categorie maatregel]]","v":"Zonneboiler"},null,{"$f":"basisdata[[#This Row],[Gebouw]]","v":"WZC (blok A)"},"R1"]
[4105353679,"20223067.1",410509443,"Woonzorgcentrum Kanunnik Triest VZW","WZC Kanunnik Triest vzw","Relighting",30300,"SIMPLE","RPS-70-3 (R1)",{"$f":"basisdata[[#This Row],[Categorie maatregel]]","v":"Relighting"},null,{"$f":"basisdata[[#This Row],[Gebouw]]","v":"WZC Kanunnik Triest vzw"},"R1"]
[4108793218,"20209979.1",410853396,"De Lovie","Het Begijnhof Poortgebouw","PV-panelen",1038,"SIMPLE","RPS-1098-1 (R1)",{"$f":"basisdata[[#This Row],[Categorie maatregel]]","v":"PV-panelen"},null,{"$f":"basisdata[[#This Row],[Gebouw]]","v":"Het Begijnhof Poortgebouw"},"R1"]
[4113360868,"20203079.2",410853396,"De Lovie","De Seizoenen","PV-panelen",4487,"SIMPLE","RPS-1261-1 (R2)",{"$f":"basisdata[[#This Row],[Categorie maatregel]]","v":"PV-panelen"},null,{"$f":"basisdata[[#This Row],[Gebouw]]","v":"De Seizoenen"},"R2"]
[4113360868,"20241794.1",410853396,"De Lovie","Hoevestallen (18 - domein)","PV-panelen",16581,"SIMPLE","RPS-1262-6 (R2)",{"$f":"basisdata[[#This Row],[Categorie maatregel]]","v":"PV-panelen"},null,{"$f":"basisdata[[#This Row],[Gebouw]]","v":"Hoevestallen (18 - domein)"},"R2"]
[4113360868,"20241794.1",410853396,"De Lovie","Hoevestallen (18 - domein)","PV-panelen",16581,"SIMPLE","RPS-1262-6 (R2)",{"$f":"basisdata[[#This Row],[Categorie maatregel]]","v":"PV-panelen"},null,{"$f":"basisdata[[#This Row],[Gebouw]]","v":"Hoevestallen (18 - domein)"},"R2"]
[4113360868,"20201478.6",410853396,"De Lovie","Het Vijverhof loods-schuur","PV-panelen",15743,"SIMPLE","RPS-605-5 (R2)",{"$f":"basisdata[[#This Row],[Categorie maatregel]]","v":"PV-panelen"},null,{"$f":"basisdata[[#This Row],[Gebouw]]","v":"Het Vijverhof loods-schuur"},"R2"]
[4113360868,"20207572.4",410853396,"De Lovie","Matthijs","PV-panelen",18183,"SIMPLE","RPS-608-3 (R2)",{"$f":"basisdata[[#This Row],[Categorie maatregel]]","v":"PV-panelen"},null,{"$f":"basisdata[[#This Row],[Gebouw]]","v":"Matthijs"},"R2"]
[4109511818,"20214134.12",410925256,"vzw Ondersteunings-en zorgcentrum Sint-Vincentius","vzw Ondersteunings-en zorgcentrum Sint-Vincentius","PV-panelen",85408,"SIMPLE","RPS-613-8 (R1)",{"$f":"basisdata[[#This Row],[Categorie maatregel]]","v":"PV-panelen"},null,{"$f":"basisdata[[#This Row],[Gebouw]]","v":"vzw Ondersteunings-en zorgcentrum Sint-Vincentius"},"R1"]
[4109511818,"20247444.1",410925256,"Sint-Vincentius","vzw Ondersteunings-en zorgcentrum Sint-Vincentius","PV-panelen",29598,"SIMPLE","RPS-613-9 (R1)",{"$f":"basisdata[[#This Row],[Categorie maatregel]]","v":"PV-panelen"},null,{"$f":"basisdata[[#This Row],[Gebouw]]","v":"vzw Ondersteunings-en zorgcentrum Sint-Vincentius"},"R1"]
[4109511818,"20247444.5",410925256,"ozc Sint-Vincentius","vzw Ondersteunings-en zorgcentrum Sint-Vincentius","Relighting",115872.6,"SIMPLE","RPS-613-12 (R2)",{"$f":"basisdata[[#This Row],[Categorie maatregel]]","v":"Relighting"},null,{"$f":"basisdata[[#This Row],[Gebouw]]","v":"vzw Ondersteunings-en zorgcentrum Sint-Vincentius"},"R2"]
[4110567931,"20231186.1",411030867,"Het Wit-Gele Kruis van West-Vlaanderen","WGK W-VL Afdelingsgebouw Bredene","Relighting",25974,"SIMPLE","RPS-1099-1 (R1)",{"$f":"basisdata[[#This Row],[Categorie maatregel]]","v":"Relighting"},null,{"$f":"basisdata[[#This Row],[Gebouw]]","v":"WGK W-VL Afdelingsgebouw Bredene"},"R1"]
[4115410005,"20204946.6",411515075,"VZW Emmaüs","JZEM/02","Relighting/relamping",6590,"SIMPLE","RPS-1011-2 (R1)",{"$f":"basisdata[[#This Row],[Categorie maatregel]]","v":"Relighting/relamping"},null,{"$f":"basisdata[[#This Row],[Gebouw]]","v":"JZEM/02"},"R1"]
[4115410005,"20186484.2",411515075,"VZW Emmaüs","HVA/01","Relighting/relamping",1095,"SIMPLE","RPS-1100-1 (R1)",{"$f":"basisdata[[#This Row],[Categorie maatregel]]","v":"Relighting/relamping"},null,{"$f":"basisdata[[#This Row],[Gebouw]]","v":"HVA/01"},"R1"]
[4115410005,"20191641.2",411515075,"VZW Emmaüs","JZEA/01","PV-panelen",22071,"SIMPLE","RPS-1101-1 (R1)",{"$f":"basisdata[[#This Row],[Categorie maatregel]]","v":"PV-panelen"},null,{"$f":"basisdata[[#This Row],[Gebouw]]","v":"JZEA/01"},"R1"]
[4115410005,"20191641.2",411515075,"VZW Emmaüs","JZEA/01","Relighting/relamping",10500,"SIMPLE","RPS-1101-2 (R1)",{"$f":"basisdata[[#This Row],[Categorie maatregel]]","v":"Relighting/relamping"},null,{"$f":"basisdata[[#This Row],[Gebouw]]","v":"JZEA/01"},"R1"]
[4115410005,"20187628.3",411515075,"VZW Emmaüs","JZEM/09","PV-panelen",1225,"SIMPLE","RPS-1102-1 (R1)",{"$f":"basisdata[[#This Row],[Categorie maatregel]]","v":"PV-panelen"},null,{"$f":"basisdata[[#This Row],[Gebouw]]","v":"JZEM/09"},"R1"]
[4115410005,"20212471.2",411515075,"VZW Emmaüs","JZEM/26","PV-panelen",616,"SIMPLE","RPS-1103-1 (R1)",{"$f":"basisdata[[#This Row],[Categorie maatregel]]","v":"PV-panelen"},null,{"$f":"basisdata[[#This Row],[Gebouw]]","v":"JZEM/26"},"R1"]
[4115410005,"20212471.2",411515075,"VZW Emmaüs","JZEM/26","Relighting",9000,"SIMPLE","RPS-1103-2 (R1)",{"$f":"basisdata[[#This Row],[Categorie maatregel]]","v":"Relighting"},null,{"$f":"basisdata[[#This Row],[Gebouw]]","v":"JZEM/26"},"R1"]
[4115410005,"20182760.2",411515075,"VZW Emmaüs","WZC Ambroos - AMB/01","Relighting/relamping",10108,"SIMPLE","RPS-1104-1 (R1)",{"$f":"basisdata[[#This Row],[Categorie maatregel]]","v":"Relighting/relamping"},null,{"$f":"basisdata[[#This Row],[Gebouw]]","v":"WZC Ambroos - AMB/01"},"R1"]
[4115410005,"20188272.4",411515075,"VZW Emmaüs","CKG/01","PV-panelen",6055,"SIMPLE","RPS-618-7 (R1)",{"$f":"basisdata[[#This Row],[Categorie maatregel]]","v":"PV-panelen"},null,{"$f":"basisdata[[#This Row],[Gebouw]]","v":"CKG/01"},"R1"]
[4115410005,"20188272.4",411515075,"VZW Emmaüs","CKG/01","Relighting/relamping",16500,"SIMPLE","RPS-618-8 (R1)",{"$f":"basisdata[[#This Row],[Categorie maatregel]]","v":"Relighting/relamping"},null,{"$f":"basisdata[[#This Row],[Gebouw]]","v":"CKG/01"},"R1"]
[4115410005,"20193228.3",411515075,"VZW Emmaüs","JZEA/02","PV-panelen",3300,"SIMPLE","RPS-620-2 (R1)",{"$f":"basisdata[[#This Row],[Categorie maatregel]]","v":"PV-panelen"},null,{"$f":"basisdata[[#This Row],[Gebouw]]","v":"JZEA/02"},"R1"]
[4115410005,"20193228.3",411515075,"VZW Emmaüs","JZEA/02","Relighting/relamping",2700,"SIMPLE","RPS-620-3 (R1)",{"$f":"basisdata[[#This Row],[Categorie maatregel]]","v":"Relighting/relamping"},null,{"$f":"basisdata[[#This Row],[Gebouw]]","v":"JZEA/02"},"R1"]
[4115410005,"20195911.5",411515075,"VZW Emmaüs","JZEA/04","PV-panelen",7200,"SIMPLE","RPS-621-3 (R1)",{"$f":"basisdata[[#This Row],[Categorie maatregel]]","v":"PV-panelen"},null,{"$f":"basisdata[[#This Row],[Gebouw]]","v":"JZEA/04"},"R1"]
[4115410005,"20185447.6",411515075,"VZW Emmaüs","JZEA/06","PV-panelen",6600,"SIMPLE","RPS-622-3 (R1)",{"$f":"basisdata[[#This Row],[Categorie maatregel]]","v":"PV-panelen"},null,{"$f":"basisdata[[#This Row],[Gebouw]]","v":"JZEA/06"},"R1"]
[4115410005,"20185447.6",411515075,"VZW Emmaüs","JZEA/06","Relighting/relamping",134,"SIMPLE","RPS-622-4 (R1)",{"$f":"basisdata[[#This Row],[Categorie maatregel]]","v":"Relighting/relamping"},null,{"$f":"basisdata[[#This Row],[Gebouw]]","v":"JZEA/06"},"R1"]
[4115410005,"20188399.4",411515075,"VZW Emmaüs","JZEM/01","PV-panelen",6934,"SIMPLE","RPS-623-3 (R1)",{"$f":"basisdata[[#This Row],[Categorie maatregel]]","v":"PV-panelen"},null,{"$f":"basisdata[[#This Row],[Gebouw]]","v":"JZEM/01"},"R1"]
[4115410005,"20188399.4",411515075,"VZW Emmaüs","JZEM/01","PV-panelen",8434,"SIMPLE","RPS-623-4 (R1)",{"$f":"basisdata[[#This Row],[Categorie maatregel]]","v":"PV-panelen"},null,{"$f":"basisdata[[#This Row],[Gebouw]]","v":"JZEM/01"},"R1"]
[4115410005,"20183208.6",411515075,"VZW Emmaüs","JZEM/05","PV-panelen",6930,"SIMPLE","RPS-624-3 (R1)",{"$f":"basisdata[[#This Row],[Categorie maatregel]]","v":"PV-panelen"},null,{"$f":"basisdata[[#This Row],[Gebouw]]","v":"JZEM/05"},"R1"]
[4115410005,"20183208.6",411515075,"VZW Emmaüs","JZEM/05","Relighting/relamping",815,"SIMPLE","RPS-624-4 (R1)",{"$f":"basisdata[[#This Row],[Categorie maatregel]]","v":"Relighting/relamping"},null,{"$f":"basisdata[[#This Row],[Gebouw]]","v":"JZEM/05"},"R1"]
[4115410005,"20218432.2",411515075,"VZW Emmaüs","JZEM/07","Relighting",81,"SIMPLE","RPS-624-5 (R1)",{"$f":"basisdata[[#This Row],[Categorie maatregel]]","v":"Relighting"},null,{"$f":"basisdata[[#This Row],[Gebouw]]","v":"JZEM/07"},"R1"]
[4115410005,"20195760.3",411515075,"VZW Emmaüs","JZEM/10","PV-panelen",15479,"SIMPLE","RPS-625-2 (R1)",{"$f":"basisdata[[#This Row],[Categorie maatregel]]","v":"PV-panelen"},null,{"$f":"basisdata[[#This Row],[Gebouw]]","v":"JZEM/10"},"R1"]
[4115410005,"20195760.3",411515075,"VZW Emmaüs","JZEM/10","PV-panelen",17100,"SIMPLE","RPS-625-3 (R1)",{"$f":"basisdata[[#This Row],[Categorie maatregel]]","v":"PV-panelen"},null,{"$f":"basisdata[[#This Row],[Gebouw]]","v":"JZEM/10"},"R1"]
[4115410005,"20195760.3",411515075,"VZW Emmaüs","JZEM/10","Relighting/relamping",46,"SIMPLE","RPS-625-4 (R1)",{"$f":"basisdata[[#This Row],[Categorie maatregel]]","v":"Relighting/relamping"},null,{"$f":"basisdata[[#This Row],[Gebouw]]","v":"JZEM/10"},"R1"]
[4115410005,"20212555.2",411515075,"VZW Emmaüs","JZEM/11","PV-panelen",977,"SIMPLE","RPS-885-4 (R1)",{"$f":"basisdata[[#This Row],[Categorie maatregel]]","v":"PV-panelen"},null,{"$f":"basisdata[[#This Row],[Gebouw]]","v":"JZEM/11"},"R1"]
[4115410005,"20194178.1",411515075,"Emmaüs","AZM/1","PV-panelen",375000,"EXTENDED","RPE-1263-1 (R2)",{"$f":"basisdata[[#This Row],[Categorie maatregel]]","v":"PV-panelen"},null,{"$f":"basisdata[[#This Row],[Gebouw]]","v":"AZM/1"},"R2"]
[4115410005,"20194178.1",411515075,"Emmaüs","AZM/1","PV-panelen",46703,"SIMPLE","RPS-1263-2 (R2)",{"$f":"basisdata[[#This Row],[Categorie maatregel]]","v":"PV-panelen"},null,{"$f":"basisdata[[#This Row],[Gebouw]]","v":"AZM/1"},"R2"]
[4115410005,"20194178.1",411515075,"Emmaüs","AZM/1","PV-panelen",70977,"SIMPLE","RPS-1263-3 (R2)",{"$f":"basisdata[[#This Row],[Categorie maatregel]]","v":"PV-panelen"},null,{"$f":"basisdata[[#This Row],[Gebouw]]","v":"AZM/1"},"R2"]
[4115888066,"20183062.2",411562882,"Oranjehuis","Fatima-site","PV-panelen",8437,"SIMPLE","RPS-227-8 (R1)",{"$f":"basisdata[[#This Row],[Categorie maatregel]]","v":"PV-panelen"},null,{"$f":"basisdata[[#This Row],[Gebouw]]","v":"Fatima-site"},"R1"]
[4119972953,"20237624.2",411971371,"CENTRUM VOOR JEUGDZORG DE KANTEL","De Linde","Relighting",11820,"SIMPLE","RPS-1105-1 (R1)",{"$f":"basisdata[[#This Row],[Categorie maatregel]]","v":"Relighting"},null,{"$f":"basisdata[[#This Row],[Gebouw]]","v":"De Linde"},"R1"]
[4119972953,"20237624.2",411971371,"CENTRUM VOOR JEUGDZORG DE KANTEL","De Linde","Stookplaatsrenovatie",47400,"SIMPLE","RPS-1105-2 (R1)",{"$f":"basisdata[[#This Row],[Categorie maatregel]]","v":"Stookplaatsrenovatie"},null,{"$f":"basisdata[[#This Row],[Gebouw]]","v":"De Linde"},"R1"]
[4119972953,"20238899.2",411971371,"CENTRUM VOOR JEUGDZORG DE KANTEL","De Mispel","Relighting",7620,"SIMPLE","RPS-1106-1 (R1)",{"$f":"basisdata[[#This Row],[Categorie maatregel]]","v":"Relighting"},null,{"$f":"basisdata[[#This Row],[Gebouw]]","v":"De Mispel"},"R1"]
[4119972953,"20238899.2",411971371,"CENTRUM VOOR JEUGDZORG DE KANTEL","De Mispel","Stookplaatsrenovatie",76800,"SIMPLE","RPS-1106-2 (R1)",{"$f":"basisdata[[#This Row],[Categorie maatregel]]","v":"Stookplaatsrenovatie"},null,{"$f":"basisdata[[#This Row],[Gebouw]]","v":"De Mispel"},"R1"]
[4119972953,"20238376.2",411971371,"CENTRUM VOOR JEUGDZORG DE KANTEL","De Moerbei","Relighting",7620,"SIMPLE","RPS-1107-1 (R1)",{"$f":"basisdata[[#This Row],[Categorie maatregel]]","v":"Relighting"},null,{"$f":"basisdata[[#This Row],[Gebouw]]","v":"De Moerbei"},"R1"]
[4119972953,"20238376.2",411971371,"CENTRUM VOOR JEUGDZORG DE KANTEL","De Moerbei","Stookplaatsrenovatie",76800,"SIMPLE","RPS-1107-2 (R1)",{"$f":"basisdata[[#This Row],[Categorie maatregel]]","v":"Stookplaatsrenovatie"},null,{"$f":"basisdata[[#This Row],[Gebouw]]","v":"De Moerbei"},"R1"]
[4119981866,"20225657.1",411972262,"Apojo","dagcentrum","Dakisolatie hellend dak",36600,"SIMPLE","RPS-1108-1 (R1)",{"$f":"basisdata[[#This Row],[Categorie maatregel]]","v":"Dakisolatie hellend dak"},null,{"$f":"basisdata[[#This Row],[Gebouw]]","v":"dagcentrum"},"R1"]
[4119981866,"20225657.1",411972262,"Apojo","dagcentrum","Dakisolatie plat dak",58887,"SIMPLE","RPS-1108-2 (R1)",{"$f":"basisdata[[#This Row],[Categorie maatregel]]","v":"Dakisolatie plat dak"},null,{"$f":"basisdata[[#This Row],[Gebouw]]","v":"dagcentrum"},"R1"]
[4119981866,"20225657.1",411972262,"Apojo","dagcentrum","Monitoring",1076,"SIMPLE","RPS-1108-3 (R1)",{"$f":"basisdata[[#This Row],[Categorie maatregel]]","v":"Monitoring"},null,{"$f":"basisdata[[#This Row],[Gebouw]]","v":"dagcentrum"},"R1"]
[4119981866,"20225657.1",411972262,"Apojo","dagcentrum","Relighting",7352,"SIMPLE","RPS-1108-4 (R1)",{"$f":"basisdata[[#This Row],[Categorie maatregel]]","v":"Relighting"},null,{"$f":"basisdata[[#This Row],[Gebouw]]","v":"dagcentrum"},"R1"]
[4119981866,"20225657.1",411972262,"Apojo","dagcentrum","Schrijnwerkrenovatie Aluminium",1350,"SIMPLE","RPS-1108-5 (R1)",{"$f":"basisdata[[#This Row],[Categorie maatregel]]","v":"Schrijnwerkrenovatie Aluminium"},null,{"$f":"basisdata[[#This Row],[Gebouw]]","v":"dagcentrum"},"R1"]
[4119981866,"20225657.1",411972262,"Apojo","dagcentrum","Schrijnwerkrenovatie PVC",6120,"SIMPLE","RPS-1108-6 (R1)",{"$f":"basisdata[[#This Row],[Categorie maatregel]]","v":"Schrijnwerkrenovatie PVC"},null,{"$f":"basisdata[[#This Row],[Gebouw]]","v":"dagcentrum"},"R1"]
[4119981866,"20225657.1",411972262,"Apojo","dagcentrum","Stookplaatsrenovatie",154843.70000000001,"SIMPLE","RPS-1108-7 (R1)",{"$f":"basisdata[[#This Row],[Categorie maatregel]]","v":"Stookplaatsrenovatie"},null,{"$f":"basisdata[[#This Row],[Gebouw]]","v":"dagcentrum"},"R1"]
[4120010579,"20184883.3",411975133,"O.L.V. VAN TROOST","AZ Sint-Blasius","Monitoring",12796,"SIMPLE","RPS-422-4 (R1)",{"$f":"basisdata[[#This Row],[Categorie maatregel]]","v":"Monitoring"},null,{"$f":"basisdata[[#This Row],[Gebouw]]","v":"AZ Sint-Blasius"},"R1"]
[4120010579,"20184883.3",411975133,"O.L.V. VAN TROOST","AZ Sint-Blasius","PV-panelen",471130,"SIMPLE","RPS-422-5 (R1)",{"$f":"basisdata[[#This Row],[Categorie maatregel]]","v":"PV-panelen"},null,{"$f":"basisdata[[#This Row],[Gebouw]]","v":"AZ Sint-Blasius"},"R1"]
[4127289557,"20237592.1",412703029,"Zorg en Welzijn","Assistentiewoningen De Amberboom (","PV-panelen",2165,"SIMPLE","RPS-1109-1 (R1)",{"$f":"basisdata[[#This Row],[Categorie maatregel]]","v":"PV-panelen"},null,{"$f":"basisdata[[#This Row],[Gebouw]]","v":"Assistentiewoningen De Amberboom ("},"R1"]
[4127289557,"20223828.1",412703029,"Zorg en Welzijn","WZC Heilige Familie","PV-panelen",97320,"SIMPLE","RPS-1110-1 (R1)",{"$f":"basisdata[[#This Row],[Categorie maatregel]]","v":"PV-panelen"},null,{"$f":"basisdata[[#This Row],[Gebouw]]","v":"WZC Heilige Familie"},"R1"]
[4127289557,"20232510.1",412703029,"Zorg en Welzijn","WZC Sint-Jozef","Overige",1269,"SIMPLE","RPS-1111-1 (R1)",{"$f":"basisdata[[#This Row],[Categorie maatregel]]","v":"Overige"},null,{"$f":"basisdata[[#This Row],[Gebouw]]","v":"WZC Sint-Jozef"},"R1"]
[4127289557,"20232510.1",412703029,"Zorg en Welzijn","WZC Sint-Jozef","PV-panelen",2893,"SIMPLE","RPS-1111-2 (R1)",{"$f":"basisdata[[#This Row],[Categorie maatregel]]","v":"PV-panelen"},null,{"$f":"basisdata[[#This Row],[Gebouw]]","v":"WZC Sint-Jozef"},"R1"]
[4127289557,"20232510.1",412703029,"Zorg en Welzijn","WZC Sint-Jozef","Relighting",1070.4000000000001,"SIMPLE","RPS-1111-3 (R1)",{"$f":"basisdata[[#This Row],[Categorie maatregel]]","v":"Relighting"},null,{"$f":"basisdata[[#This Row],[Gebouw]]","v":"WZC Sint-Jozef"},"R1"]
[4127555792,"20222126.1",412729654,"De Ukkies","Erasmuslaan","Relamping",1263,"SIMPLE","RPS-1112-1 (R1)",{"$f":"basisdata[[#This Row],[Categorie maatregel]]","v":"Relamping"},null,{"$f":"basisdata[[#This Row],[Gebouw]]","v":"Erasmuslaan"},"R1"]
[4127555792,"20222126.1",412729654,"De Ukkies","Erasmuslaan","Relighting",53,"SIMPLE","RPS-1112-2 (R1)",{"$f":"basisdata[[#This Row],[Categorie maatregel]]","v":"Relighting"},null,{"$f":"basisdata[[#This Row],[Gebouw]]","v":"Erasmuslaan"},"R1"]
[4127555792,"20222126.1",412729654,"De Ukkies","Erasmuslaan","Relighting",43165,"SIMPLE","RPS-1112-3 (R1)",{"$f":"basisdata[[#This Row],[Categorie maatregel]]","v":"Relighting"},null,{"$f":"basisdata[[#This Row],[Gebouw]]","v":"Erasmuslaan"},"R1"]
[4132123442,"20222126.3",412729654,"De ukkies vzw","Erasmuslaan","Renovatie ventilatie",30700,"SIMPLE","RPS-1112-5 (R2)",{"$f":"basisdata[[#This Row],[Categorie maatregel]]","v":"Renovatie ventilatie"},null,{"$f":"basisdata[[#This Row],[Gebouw]]","v":"Erasmuslaan"},"R2"]
[4128187292,"20182547.2",412792804,"De Waaiburg","De Pitstop","PV-panelen",4877,"SIMPLE","RPS-100-2 (R1)",{"$f":"basisdata[[#This Row],[Categorie maatregel]]","v":"PV-panelen"},null,{"$f":"basisdata[[#This Row],[Gebouw]]","v":"De Pitstop"},"R1"]
[4128187292,"20183753.2",412792804,"De Waaiburg","t Spoor","PV-panelen",5473,"SIMPLE","RPS-101-3 (R1)",{"$f":"basisdata[[#This Row],[Categorie maatregel]]","v":"PV-panelen"},null,{"$f":"basisdata[[#This Row],[Gebouw]]","v":"t Spoor"},"R1"]
[4128187292,"20181254.1",412792804,"De Waaiburg","Kameleon","PV-panelen",1259,"SIMPLE","RPS-1113-1 (R1)",{"$f":"basisdata[[#This Row],[Categorie maatregel]]","v":"PV-panelen"},null,{"$f":"basisdata[[#This Row],[Gebouw]]","v":"Kameleon"},"R1"]
[4128187292,"20188527.2",412792804,"De Waaiburg","De Leeuwerik","PV-panelen",4949,"SIMPLE","RPS-99-4 (R1)",{"$f":"basisdata[[#This Row],[Categorie maatregel]]","v":"PV-panelen"},null,{"$f":"basisdata[[#This Row],[Gebouw]]","v":"De Leeuwerik"},"R1"]
[4132754942,"20243301.1",412792804,"DE WAAIBURG","JAN RAP","PV-panelen",1259,"SIMPLE","RPS-1264-1 (R2)",{"$f":"basisdata[[#This Row],[Categorie maatregel]]","v":"PV-panelen"},null,{"$f":"basisdata[[#This Row],[Gebouw]]","v":"JAN RAP"},"R2"]
[4129125618,"20226851.1",412886636,"Boterlaarhof","Boterlaarhof","PV-panelen",49668,"SIMPLE","RPS-1114-1 (R1)",{"$f":"basisdata[[#This Row],[Categorie maatregel]]","v":"PV-panelen"},null,{"$f":"basisdata[[#This Row],[Gebouw]]","v":"Boterlaarhof"},"R1"]
[4129125618,"20226851.1",412886636,"Boterlaarhof","Boterlaarhof","Relamping",1485,"SIMPLE","RPS-1114-2 (R1)",{"$f":"basisdata[[#This Row],[Categorie maatregel]]","v":"Relamping"},null,{"$f":"basisdata[[#This Row],[Gebouw]]","v":"Boterlaarhof"},"R1"]
[4129584866,"20244230.1",412932562,"BLIJ LEVEN","Gebouw AB","PV-panelen",8896,"SIMPLE","RPS-1265-1 (R2)",{"$f":"basisdata[[#This Row],[Categorie maatregel]]","v":"PV-panelen"},null,{"$f":"basisdata[[#This Row],[Gebouw]]","v":"Gebouw AB"},"R2"]
[4138057281,"20208327.2",413323037,"Kinderopvang de Duinhuisjes","kinderdagverblijf de Duinhummeltjes","Relighting/relamping",3300,"SIMPLE","RPS-1217-5 (R2)",{"$f":"basisdata[[#This Row],[Categorie maatregel]]","v":"Relighting/relamping"},null,{"$f":"basisdata[[#This Row],[Gebouw]]","v":"kinderdagverblijf de Duinhummeltjes"},"R2"]
[4138057281,"20208327.4",413323037,"Kinderopvang de Duinhuisjes","kinderdagverblijf de Duinhummeltjes","Spouwmuur",41577.192000000003,"SIMPLE","RPS-1217-6 (R2)",{"$f":"basisdata[[#This Row],[Categorie maatregel]]","v":"Spouwmuur"},null,{"$f":"basisdata[[#This Row],[Gebouw]]","v":"kinderdagverblijf de Duinhummeltjes"},"R2"]
[4138057281,"20205085.1",413323037,"Kinderopvang de Duinhuisjes","Kinderdagverblijf De Peuterhaven","Relighting/relamping",4500,"SIMPLE","RPS-1266-1 (R2)",{"$f":"basisdata[[#This Row],[Categorie maatregel]]","v":"Relighting/relamping"},null,{"$f":"basisdata[[#This Row],[Gebouw]]","v":"Kinderdagverblijf De Peuterhaven"},"R2"]
[4138057281,"20203595.1",413323037,"Kinderopvang de Duinhuisjes","t Bremhuisje","Relighting/relamping",6600,"SIMPLE","RPS-1267-1 (R2)",{"$f":"basisdata[[#This Row],[Categorie maatregel]]","v":"Relighting/relamping"},null,{"$f":"basisdata[[#This Row],[Gebouw]]","v":"t Bremhuisje"},"R2"]
[4141333507,"20185411.1",413650659,"De Kade","De Kade Elisabeth Zorghestraat 4","PV-panelen",5412,"SIMPLE","RPS-1268-1 (R2)",{"$f":"basisdata[[#This Row],[Categorie maatregel]]","v":"PV-panelen"},null,{"$f":"basisdata[[#This Row],[Gebouw]]","v":"De Kade Elisabeth Zorghestraat 4"},"R2"]
[4141333507,"20186472.1",413650659,"De Kade","De Vlier","PV-panelen",1236,"SIMPLE","RPS-1269-1 (R2)",{"$f":"basisdata[[#This Row],[Categorie maatregel]]","v":"PV-panelen"},null,{"$f":"basisdata[[#This Row],[Gebouw]]","v":"De Vlier"},"R2"]
[4141333507,"20186514.1",413650659,"De Kade","Ginkgo","PV-panelen",8413,"SIMPLE","RPS-1270-1 (R2)",{"$f":"basisdata[[#This Row],[Categorie maatregel]]","v":"PV-panelen"},null,{"$f":"basisdata[[#This Row],[Gebouw]]","v":"Ginkgo"},"R2"]
[4141333507,"20184758.2",413650659,"De Kade","Campus Spermalie","PV-panelen",17960,"SIMPLE","RPS-19-3 (R2)",{"$f":"basisdata[[#This Row],[Categorie maatregel]]","v":"PV-panelen"},null,{"$f":"basisdata[[#This Row],[Gebouw]]","v":"Campus Spermalie"},"R2"]
[4141333507,"20184458.2",413650659,"De Kade","Het Vlot","PV-panelen",3866,"SIMPLE","RPS-268-3 (R2)",{"$f":"basisdata[[#This Row],[Categorie maatregel]]","v":"PV-panelen"},null,{"$f":"basisdata[[#This Row],[Gebouw]]","v":"Het Vlot"},"R2"]
[4141333507,"20186026.2",413650659,"De Kade","Oude Dorpsweg","PV-panelen",4339,"SIMPLE","RPS-269-3 (R2)",{"$f":"basisdata[[#This Row],[Categorie maatregel]]","v":"PV-panelen"},null,{"$f":"basisdata[[#This Row],[Gebouw]]","v":"Oude Dorpsweg"},"R2"]
[4141333507,"20182235.2",413650659,"De Kade","Pastorie","PV-panelen",2536,"SIMPLE","RPS-270-3 (R2)",{"$f":"basisdata[[#This Row],[Categorie maatregel]]","v":"PV-panelen"},null,{"$f":"basisdata[[#This Row],[Gebouw]]","v":"Pastorie"},"R2"]
[4141333507,"20182863.2",413650659,"De Kade","Paviljoen 1","PV-panelen",2294,"SIMPLE","RPS-271-5 (R2)",{"$f":"basisdata[[#This Row],[Categorie maatregel]]","v":"PV-panelen"},null,{"$f":"basisdata[[#This Row],[Gebouw]]","v":"Paviljoen 1"},"R2"]
[4137462653,"20235622.1",413720341,"Mezennestje","Mezennestje vzw","Isoleren pompen/kranen/hydraulica",2730,"SIMPLE","RPS-1271-1 (R2)",{"$f":"basisdata[[#This Row],[Categorie maatregel]]","v":"Isoleren pompen/kranen/hydraulica"},null,{"$f":"basisdata[[#This Row],[Gebouw]]","v":"Mezennestje vzw"},"R2"]
[4137462653,"20235622.1",413720341,"Mezennestje","Mezennestje vzw","Overige",2980,"SIMPLE","RPS-1271-2 (R2)",{"$f":"basisdata[[#This Row],[Categorie maatregel]]","v":"Overige"},null,{"$f":"basisdata[[#This Row],[Gebouw]]","v":"Mezennestje vzw"},"R2"]
[4137462653,"20235622.1",413720341,"Mezennestje","Mezennestje vzw","PV-panelen",591,"SIMPLE","RPS-1271-3 (R2)",{"$f":"basisdata[[#This Row],[Categorie maatregel]]","v":"PV-panelen"},null,{"$f":"basisdata[[#This Row],[Gebouw]]","v":"Mezennestje vzw"},"R2"]
[4137462653,"20235622.1",413720341,"Mezennestje","Mezennestje vzw","Regeltechnisch",660,"SIMPLE","RPS-1271-4 (R2)",{"$f":"basisdata[[#This Row],[Categorie maatregel]]","v":"Regeltechnisch"},null,{"$f":"basisdata[[#This Row],[Gebouw]]","v":"Mezennestje vzw"},"R2"]
[4142096616,"20241674.1",413726972,"Oranje","O´berge","PV-panelen",1372,"SIMPLE","RPS-1272-1 (R2)",{"$f":"basisdata[[#This Row],[Categorie maatregel]]","v":"PV-panelen"},null,{"$f":"basisdata[[#This Row],[Gebouw]]","v":"O´berge"},"R2"]
[4138009031,"20234245.1",413774977,"JONGERENZORG ZUID-WEST-VLAANDEREN","Aventurijn","PV-panelen",3989,"SIMPLE","RPS-1273-1 (R2)",{"$f":"basisdata[[#This Row],[Categorie maatregel]]","v":"PV-panelen"},null,{"$f":"basisdata[[#This Row],[Gebouw]]","v":"Aventurijn"},"R2"]
[4138009031,"20234245.1",413774977,"JONGERENZORG ZUID-WEST-VLAANDEREN","Aventurijn","Relamping",591.6,"SIMPLE","RPS-1273-2 (R2)",{"$f":"basisdata[[#This Row],[Categorie maatregel]]","v":"Relamping"},null,{"$f":"basisdata[[#This Row],[Gebouw]]","v":"Aventurijn"},"R2"]
[4138009031,"20234245.1",413774977,"JONGERENZORG ZUID-WEST-VLAANDEREN","Aventurijn","Relighting",174,"SIMPLE","RPS-1273-3 (R2)",{"$f":"basisdata[[#This Row],[Categorie maatregel]]","v":"Relighting"},null,{"$f":"basisdata[[#This Row],[Gebouw]]","v":"Aventurijn"},"R2"]
[4138009031,"20234245.1",413774977,"JONGERENZORG ZUID-WEST-VLAANDEREN","Aventurijn","Relighting",199,"SIMPLE","RPS-1273-4 (R2)",{"$f":"basisdata[[#This Row],[Categorie maatregel]]","v":"Relighting"},null,{"$f":"basisdata[[#This Row],[Gebouw]]","v":"Aventurijn"},"R2"]
[4138009031,"20234245.1",413774977,"JONGERENZORG ZUID-WEST-VLAANDEREN","Aventurijn","Relighting",1537.8,"SIMPLE","RPS-1273-5 (R2)",{"$f":"basisdata[[#This Row],[Categorie maatregel]]","v":"Relighting"},null,{"$f":"basisdata[[#This Row],[Gebouw]]","v":"Aventurijn"},"R2"]
[4138009031,"20234245.1",413774977,"JONGERENZORG ZUID-WEST-VLAANDEREN","Aventurijn","Relighting",185.4,"SIMPLE","RPS-1273-6 (R2)",{"$f":"basisdata[[#This Row],[Categorie maatregel]]","v":"Relighting"},null,{"$f":"basisdata[[#This Row],[Gebouw]]","v":"Aventurijn"},"R2"]
[4138009031,"20234245.1",413774977,"JONGERENZORG ZUID-WEST-VLAANDEREN","Aventurijn","Relighting",357,"SIMPLE","RPS-1273-7 (R2)",{"$f":"basisdata[[#This Row],[Categorie maatregel]]","v":"Relighting"},null,{"$f":"basisdata[[#This Row],[Gebouw]]","v":"Aventurijn"},"R2"]
[4143783242,"20222874.2",413895634,"De Oever","VZW De Oever - Centraal gebouw","Relighting",3383,"SIMPLE","RPS-888-2 (R2)",{"$f":"basisdata[[#This Row],[Categorie maatregel]]","v":"Relighting"},null,{"$f":"basisdata[[#This Row],[Gebouw]]","v":"VZW De Oever - Centraal gebouw"},"R2"]
[4143783242,"20224510.2",413895634,"De Oever","VZW De Oever - Kidscampus","PV-panelen",4469,"SIMPLE","RPS-889-3 (R2)",{"$f":"basisdata[[#This Row],[Categorie maatregel]]","v":"PV-panelen"},null,{"$f":"basisdata[[#This Row],[Gebouw]]","v":"VZW De Oever - Kidscampus"},"R2"]
[4149363690,"20185165.2",414453680,"VZW KINDEROPVANG 'T EEKHOORNTJE","Kinderopvang 't Eekhoorntje","PV-panelen",4000,"SIMPLE","RPS-890-4 (R2)",{"$f":"basisdata[[#This Row],[Categorie maatregel]]","v":"PV-panelen"},null,{"$f":"basisdata[[#This Row],[Gebouw]]","v":"Kinderopvang 't Eekhoorntje"},"R2"]
[4147729818,"20192133.2",414747056,"Christelijke Integrale Gezondheids- en Bejaardenzorg","Huize Ter Walle","PV-panelen",20788,"SIMPLE","RPS-841-2 (R1)",{"$f":"basisdata[[#This Row],[Categorie maatregel]]","v":"PV-panelen"},null,{"$f":"basisdata[[#This Row],[Gebouw]]","v":"Huize Ter Walle"},"R1"]
[4148567166,"20228907.1",414830792,"VZW KATRINAHOF","Katrinahof - dagcentrum","Relighting",12479,"SIMPLE","RPS-1115-1 (R1)",{"$f":"basisdata[[#This Row],[Categorie maatregel]]","v":"Relighting"},null,{"$f":"basisdata[[#This Row],[Gebouw]]","v":"Katrinahof - dagcentrum"},"R1"]
[4148567166,"20228907.1",414830792,"VZW KATRINAHOF","Katrinahof - dagcentrum","Relighting",1983,"SIMPLE","RPS-1115-2 (R1)",{"$f":"basisdata[[#This Row],[Categorie maatregel]]","v":"Relighting"},null,{"$f":"basisdata[[#This Row],[Gebouw]]","v":"Katrinahof - dagcentrum"},"R1"]
[4148567166,"20235964.1",414830792,"VZW KATRINAHOF","Katrinahof - Fromentin","Relighting",864,"SIMPLE","RPS-1116-1 (R1)",{"$f":"basisdata[[#This Row],[Categorie maatregel]]","v":"Relighting"},null,{"$f":"basisdata[[#This Row],[Gebouw]]","v":"Katrinahof - Fromentin"},"R1"]
[4148567166,"20235964.1",414830792,"VZW KATRINAHOF","Katrinahof - Fromentin","Relighting",6873,"SIMPLE","RPS-1116-2 (R1)",{"$f":"basisdata[[#This Row],[Categorie maatregel]]","v":"Relighting"},null,{"$f":"basisdata[[#This Row],[Gebouw]]","v":"Katrinahof - Fromentin"},"R1"]
[4148567166,"20229151.1",414830792,"VZW KATRINAHOF","Katrinahof - HALEWEIN","Relighting",5832,"SIMPLE","RPS-1117-1 (R1)",{"$f":"basisdata[[#This Row],[Categorie maatregel]]","v":"Relighting"},null,{"$f":"basisdata[[#This Row],[Gebouw]]","v":"Katrinahof - HALEWEIN"},"R1"]
[4148567166,"20229151.1",414830792,"VZW KATRINAHOF","Katrinahof - HALEWEIN","Relighting",600,"SIMPLE","RPS-1117-2 (R1)",{"$f":"basisdata[[#This Row],[Categorie maatregel]]","v":"Relighting"},null,{"$f":"basisdata[[#This Row],[Gebouw]]","v":"Katrinahof - HALEWEIN"},"R1"]
[4148567166,"20229151.1",414830792,"VZW KATRINAHOF","Katrinahof - HALEWEIN","Relighting",121,"SIMPLE","RPS-1117-3 (R1)",{"$f":"basisdata[[#This Row],[Categorie maatregel]]","v":"Relighting"},null,{"$f":"basisdata[[#This Row],[Gebouw]]","v":"Katrinahof - HALEWEIN"},"R1"]
[4148567166,"20227490.1",414830792,"VZW KATRINAHOF","Katrinahof BL100","Relighting",4208,"SIMPLE","RPS-1118-1 (R1)",{"$f":"basisdata[[#This Row],[Categorie maatregel]]","v":"Relighting"},null,{"$f":"basisdata[[#This Row],[Gebouw]]","v":"Katrinahof BL100"},"R1"]
[4148567166,"20227490.1",414830792,"VZW KATRINAHOF","Katrinahof BL100","Relighting",576,"SIMPLE","RPS-1118-2 (R1)",{"$f":"basisdata[[#This Row],[Categorie maatregel]]","v":"Relighting"},null,{"$f":"basisdata[[#This Row],[Gebouw]]","v":"Katrinahof BL100"},"R1"]
[4148567166,"20229582.1",414830792,"VZW KATRINAHOF","Villa Louis","Relighting",144,"SIMPLE","RPS-1119-1 (R1)",{"$f":"basisdata[[#This Row],[Categorie maatregel]]","v":"Relighting"},null,{"$f":"basisdata[[#This Row],[Gebouw]]","v":"Villa Louis"},"R1"]
[4153245957,"20186034.4",415298669,"RAAKZAAM","Dagcentrum Sint-Niklaas OLVP","PV-panelen",8072,"SIMPLE","RPS-1013-5 (R1)",{"$f":"basisdata[[#This Row],[Categorie maatregel]]","v":"PV-panelen"},null,{"$f":"basisdata[[#This Row],[Gebouw]]","v":"Dagcentrum Sint-Niklaas OLVP"},"R1"]
[4153245957,"20186034.4",415298669,"RAAKZAAM","Dagcentrum Sint-Niklaas OLVP","Relighting/relamping",16156.32,"SIMPLE","RPS-1013-6 (R1)",{"$f":"basisdata[[#This Row],[Categorie maatregel]]","v":"Relighting/relamping"},null,{"$f":"basisdata[[#This Row],[Gebouw]]","v":"Dagcentrum Sint-Niklaas OLVP"},"R1"]
[4158264955,"20233936.1",415343805,"Centrum voor Jongens en Meisjes met individuele Begeleiding","Krauwelenhof","PV-panelen",853,"SIMPLE","RPS-1274-1 (R2)",{"$f":"basisdata[[#This Row],[Categorie maatregel]]","v":"PV-panelen"},null,{"$f":"basisdata[[#This Row],[Gebouw]]","v":"Krauwelenhof"},"R2"]
[4158264955,"20233936.1",415343805,"Centrum voor Jongens en Meisjes met individuele Begeleiding","Krauwelenhof","PV-panelen",1968,"SIMPLE","RPS-1274-2 (R2)",{"$f":"basisdata[[#This Row],[Categorie maatregel]]","v":"PV-panelen"},null,{"$f":"basisdata[[#This Row],[Gebouw]]","v":"Krauwelenhof"},"R2"]
[4158760092,"20218963.4",415850084,"Medisch Pedagogisch Centrum Sint-Franciscus","Sportcomplex","Dakisolatie plat dak",60109.8,"SIMPLE","RPS-940-2 (R1)",{"$f":"basisdata[[#This Row],[Categorie maatregel]]","v":"Dakisolatie plat dak"},null,{"$f":"basisdata[[#This Row],[Gebouw]]","v":"Sportcomplex"},"R1"]
[4163631866,"20226666.1",416337262,"Woon- en Zorgcentrum Home Vrijzicht vzw","Residentie Elisabeth","Dakisolatie plat dak",29700,"SIMPLE","RPS-1121-1 (R1)",{"$f":"basisdata[[#This Row],[Categorie maatregel]]","v":"Dakisolatie plat dak"},null,{"$f":"basisdata[[#This Row],[Gebouw]]","v":"Residentie Elisabeth"},"R1"]
[4163631866,"20226666.1",416337262,"Woon- en Zorgcentrum Home Vrijzicht vzw","Residentie Elisabeth","PV-panelen",5135,"SIMPLE","RPS-1121-2 (R1)",{"$f":"basisdata[[#This Row],[Categorie maatregel]]","v":"PV-panelen"},null,{"$f":"basisdata[[#This Row],[Gebouw]]","v":"Residentie Elisabeth"},"R1"]
[4168775857,"20232394.3",416851659,"AZ RIVIERENLAND","Algemeen Ziekenhuis Heilige Familie","PV-panelen",210000,"EXTENDED","RPE-87-9 (R1)",{"$f":"basisdata[[#This Row],[Categorie maatregel]]","v":"PV-panelen"},null,{"$f":"basisdata[[#This Row],[Gebouw]]","v":"Algemeen Ziekenhuis Heilige Familie"},"R1"]
[4184992390,"20181811.2",418016550,"WOONZORGCENTRUM ST. VINCENTIUS","WZC Sint-Vincentius vzw","PV-panelen",14239,"SIMPLE","RPS-245-2 (R2)",{"$f":"basisdata[[#This Row],[Categorie maatregel]]","v":"PV-panelen"},null,{"$f":"basisdata[[#This Row],[Gebouw]]","v":"WZC Sint-Vincentius vzw"},"R2"]
[4195348629,"20188714.9",419052173,"Katholieke Universiteit te Leuven","UZ Leuven - Campus Gasthuisberg","PV-panelen",433052.5,"EXTENDED","RPE-113-14 (R2)",{"$f":"basisdata[[#This Row],[Categorie maatregel]]","v":"PV-panelen"},null,{"$f":"basisdata[[#This Row],[Gebouw]]","v":"UZ Leuven - Campus Gasthuisberg"},"R2"]
[4197410394,"20209579.2",419258348,"Ubuntu Achtkanter","Beeklaan 79","PV-panelen",899,"SIMPLE","RPS-1120-2 (R2)",{"$f":"basisdata[[#This Row],[Categorie maatregel]]","v":"PV-panelen"},null,{"$f":"basisdata[[#This Row],[Gebouw]]","v":"Beeklaan 79"},"R2"]
[4197410394,"20209579.2",419258348,"Ubuntu Achtkanter","Beeklaan 79","Relighting/relamping",10230,"SIMPLE","RPS-1120-3 (R2)",{"$f":"basisdata[[#This Row],[Categorie maatregel]]","v":"Relighting/relamping"},null,{"$f":"basisdata[[#This Row],[Gebouw]]","v":"Beeklaan 79"},"R2"]
[4197410394,"20206879.2",419258348,"Ubuntu Achtkanter","Blokkestraat 29","PV-panelen",2372,"SIMPLE","RPS-1221-4 (R2)",{"$f":"basisdata[[#This Row],[Categorie maatregel]]","v":"PV-panelen"},null,{"$f":"basisdata[[#This Row],[Gebouw]]","v":"Blokkestraat 29"},"R2"]
[4197410394,"20206879.2",419258348,"Ubuntu Achtkanter","Blokkestraat 29","Relighting/relamping",10509,"SIMPLE","RPS-1221-5 (R2)",{"$f":"basisdata[[#This Row],[Categorie maatregel]]","v":"Relighting/relamping"},null,{"$f":"basisdata[[#This Row],[Gebouw]]","v":"Blokkestraat 29"},"R2"]
[4197410394,"20209832.2",419258348,"Ubuntu Achtkanter","Julius Sabbestraat 45","Relighting/relamping",4830,"SIMPLE","RPS-1222-3 (R2)",{"$f":"basisdata[[#This Row],[Categorie maatregel]]","v":"Relighting/relamping"},null,{"$f":"basisdata[[#This Row],[Gebouw]]","v":"Julius Sabbestraat 45"},"R2"]
[4197410394,"20205600.2",419258348,"Ubuntu Achtkanter","Sint Denijseweg 71","PV-panelen",18350,"SIMPLE","RPS-1225-3 (R2)",{"$f":"basisdata[[#This Row],[Categorie maatregel]]","v":"PV-panelen"},null,{"$f":"basisdata[[#This Row],[Gebouw]]","v":"Sint Denijseweg 71"},"R2"]
[4197410394,"20205600.2",419258348,"Ubuntu Achtkanter","Sint Denijseweg 71","Relighting/relamping",15360,"SIMPLE","RPS-1225-4 (R2)",{"$f":"basisdata[[#This Row],[Categorie maatregel]]","v":"Relighting/relamping"},null,{"$f":"basisdata[[#This Row],[Gebouw]]","v":"Sint Denijseweg 71"},"R2"]
[4197410394,"20202917.1",419258348,"Ubuntu Achtkanter","Beeklaan 79 a","Relighting/relamping",5287,"SIMPLE","RPS-1275-1 (R2)",{"$f":"basisdata[[#This Row],[Categorie maatregel]]","v":"Relighting/relamping"},null,{"$f":"basisdata[[#This Row],[Gebouw]]","v":"Beeklaan 79 a"},"R2"]
[4197410394,"20201238.1",419258348,"Ubuntu Achtkanter","Beukenlaan 47","PV-panelen",13386,"SIMPLE","RPS-1276-1 (R2)",{"$f":"basisdata[[#This Row],[Categorie maatregel]]","v":"PV-panelen"},null,{"$f":"basisdata[[#This Row],[Gebouw]]","v":"Beukenlaan 47"},"R2"]
[4197410394,"20201238.1",419258348,"Ubuntu Achtkanter","Beukenlaan 47","Relighting/relamping",7190,"SIMPLE","RPS-1276-2 (R2)",{"$f":"basisdata[[#This Row],[Categorie maatregel]]","v":"Relighting/relamping"},null,{"$f":"basisdata[[#This Row],[Gebouw]]","v":"Beukenlaan 47"},"R2"]
[4197410394,"20206696.1",419258348,"Ubuntu Achtkanter","Plein 25","Relighting/relamping",831,"SIMPLE","RPS-1277-1 (R2)",{"$f":"basisdata[[#This Row],[Categorie maatregel]]","v":"Relighting/relamping"},null,{"$f":"basisdata[[#This Row],[Gebouw]]","v":"Plein 25"},"R2"]
[4197410394,"20226384.1",419258348,"Ubuntu Achtkanter","Plein 33","Relighting",706,"SIMPLE","RPS-1278-1 (R2)",{"$f":"basisdata[[#This Row],[Categorie maatregel]]","v":"Relighting"},null,{"$f":"basisdata[[#This Row],[Gebouw]]","v":"Plein 33"},"R2"]
[4197410394,"20224515.1",419258348,"Ubuntu Achtkanter","Plein 34","Relighting",108,"SIMPLE","RPS-1279-1 (R2)",{"$f":"basisdata[[#This Row],[Categorie maatregel]]","v":"Relighting"},null,{"$f":"basisdata[[#This Row],[Gebouw]]","v":"Plein 34"},"R2"]
[4197410394,"20222556.1",419258348,"Ubuntu Achtkanter","Plein 36","Relighting",332,"SIMPLE","RPS-1280-1 (R2)",{"$f":"basisdata[[#This Row],[Categorie maatregel]]","v":"Relighting"},null,{"$f":"basisdata[[#This Row],[Gebouw]]","v":"Plein 36"},"R2"]
[4207765353,"20214101.2",420281501,"PEGODE vzw","WH Schilde","PV-panelen",12297,"SIMPLE","RPS-906-7 (R2)",{"$f":"basisdata[[#This Row],[Categorie maatregel]]","v":"PV-panelen"},null,{"$f":"basisdata[[#This Row],[Gebouw]]","v":"WH Schilde"},"R2"]
[4203845318,"20231193.1",420358606,"Lejo","Lejo Gent","PV-panelen",23819,"SIMPLE","RPS-1281-1 (R2)",{"$f":"basisdata[[#This Row],[Categorie maatregel]]","v":"PV-panelen"},null,{"$f":"basisdata[[#This Row],[Gebouw]]","v":"Lejo Gent"},"R2"]
[4203845318,"20231193.1",420358606,"Lejo","Lejo Gent","Relighting",9170.4,"SIMPLE","RPS-1281-2 (R2)",{"$f":"basisdata[[#This Row],[Categorie maatregel]]","v":"Relighting"},null,{"$f":"basisdata[[#This Row],[Gebouw]]","v":"Lejo Gent"},"R2"]
[4211716631,"20194416.4",420676627,"Psychiatrisch Centrum Sint-Hiëronymus","PC Sint-Hieronymus","PV-panelen",4938,"SIMPLE","RPS-654-6 (R2)",{"$f":"basisdata[[#This Row],[Categorie maatregel]]","v":"PV-panelen"},null,{"$f":"basisdata[[#This Row],[Gebouw]]","v":"PC Sint-Hieronymus"},"R2"]
[4215596140,"20209529.1",421533690,"Eigen Woonst","Ieperstraat 119","PV-panelen",655,"SIMPLE","RPS-1122-1 (R1)",{"$f":"basisdata[[#This Row],[Categorie maatregel]]","v":"PV-panelen"},null,{"$f":"basisdata[[#This Row],[Gebouw]]","v":"Ieperstraat 119"},"R1"]
[4215596140,"20202828.1",421533690,"Eigen Woonst","Ieperstraat 83","PV-panelen",1509,"SIMPLE","RPS-1123-1 (R1)",{"$f":"basisdata[[#This Row],[Categorie maatregel]]","v":"PV-panelen"},null,{"$f":"basisdata[[#This Row],[Gebouw]]","v":"Ieperstraat 83"},"R1"]
[4215596140,"20206784.1",421533690,"Eigen Woonst","Poedermagazijn 47","PV-panelen",2979,"SIMPLE","RPS-1124-1 (R1)",{"$f":"basisdata[[#This Row],[Categorie maatregel]]","v":"PV-panelen"},null,{"$f":"basisdata[[#This Row],[Gebouw]]","v":"Poedermagazijn 47"},"R1"]
[4215596140,"20204515.1",421533690,"Eigen Woonst","Vander Merschplein","PV-panelen",833,"SIMPLE","RPS-1125-1 (R1)",{"$f":"basisdata[[#This Row],[Categorie maatregel]]","v":"PV-panelen"},null,{"$f":"basisdata[[#This Row],[Gebouw]]","v":"Vander Merschplein"},"R1"]
[4215596140,"20201998.1",421533690,"Eigen Woonst","Volkslaan","PV-panelen",585,"SIMPLE","RPS-1126-1 (R1)",{"$f":"basisdata[[#This Row],[Categorie maatregel]]","v":"PV-panelen"},null,{"$f":"basisdata[[#This Row],[Gebouw]]","v":"Volkslaan"},"R1"]
[4219372231,"20239289.1",421911297,"Emiliani","Emiliani hoofdsite","PV-panelen",17738,"SIMPLE","RPS-1127-1 (R1)",{"$f":"basisdata[[#This Row],[Categorie maatregel]]","v":"PV-panelen"},null,{"$f":"basisdata[[#This Row],[Gebouw]]","v":"Emiliani hoofdsite"},"R1"]
[4219393018,"20231272.3",421913376,"De Wissel","OverKop Tienen - Oude basisschool","PV-panelen",8099,"SIMPLE","RPS-1128-1 (R1)",{"$f":"basisdata[[#This Row],[Categorie maatregel]]","v":"PV-panelen"},null,{"$f":"basisdata[[#This Row],[Gebouw]]","v":"OverKop Tienen - Oude basisschool"},"R1"]
[4225451553,"20183574.1",422519231,"Nottebohm Home","Nottebohm Woonzorgcentrum","Dakisolatie",7662,"SIMPLE","RPS-1129-1 (R1)",{"$f":"basisdata[[#This Row],[Categorie maatregel]]","v":"Dakisolatie"},null,{"$f":"basisdata[[#This Row],[Gebouw]]","v":"Nottebohm Woonzorgcentrum"},"R1"]
[4225451553,"20183574.1",422519231,"Nottebohm Home","Nottebohm Woonzorgcentrum","PV-panelen",6385,"SIMPLE","RPS-1129-2 (R1)",{"$f":"basisdata[[#This Row],[Categorie maatregel]]","v":"PV-panelen"},null,{"$f":"basisdata[[#This Row],[Gebouw]]","v":"Nottebohm Woonzorgcentrum"},"R1"]
[4225451553,"20183574.1",422519231,"Nottebohm Home","Nottebohm Woonzorgcentrum","Renovatie beglazing",25264.799999999999,"SIMPLE","RPS-1129-3 (R1)",{"$f":"basisdata[[#This Row],[Categorie maatregel]]","v":"Renovatie beglazing"},null,{"$f":"basisdata[[#This Row],[Gebouw]]","v":"Nottebohm Woonzorgcentrum"},"R1"]
[4227458853,"20236486.2",422719961,"Klim","Klim vzw - Vestiging De Klink Diegem","PV-panelen",16019,"SIMPLE","RPS-1130-1 (R1)",{"$f":"basisdata[[#This Row],[Categorie maatregel]]","v":"PV-panelen"},null,{"$f":"basisdata[[#This Row],[Gebouw]]","v":"Klim vzw - Vestiging De Klink Diegem"},"R1"]
[4227458853,"20239178.2",422719961,"Klim","Klim vzw - Vestiging Michielsheem Dilbeek","PV-panelen",18672,"SIMPLE","RPS-1131-1 (R1)",{"$f":"basisdata[[#This Row],[Categorie maatregel]]","v":"PV-panelen"},null,{"$f":"basisdata[[#This Row],[Gebouw]]","v":"Klim vzw - Vestiging Michielsheem Dilbeek"},"R1"]
[4244068644,"20181431.3",424380938,"Werken Glorieux","AZ Glorieux","Dakisolatie",77970,"SIMPLE","RPS-304-7 (R1)",{"$f":"basisdata[[#This Row],[Categorie maatregel]]","v":"Dakisolatie"},null,{"$f":"basisdata[[#This Row],[Gebouw]]","v":"AZ Glorieux"},"R1"]
[4244068644,"20181431.3",424380938,"Werken Glorieux","AZ Glorieux","Regeltechnisch",7200,"SIMPLE","RPS-304-8 (R1)",{"$f":"basisdata[[#This Row],[Categorie maatregel]]","v":"Regeltechnisch"},null,{"$f":"basisdata[[#This Row],[Gebouw]]","v":"AZ Glorieux"},"R1"]
[4248103044,"20227279.1",424784378,"Martine Van Camp","DIO1 KAB","Relighting",1560,"SIMPLE","RPS-1132-1 (R1)",{"$f":"basisdata[[#This Row],[Categorie maatregel]]","v":"Relighting"},null,{"$f":"basisdata[[#This Row],[Gebouw]]","v":"DIO1 KAB"},"R1"]
[4248103044,"20227279.1",424784378,"Martine Van Camp","DIO1 KAB","Relighting",262,"SIMPLE","RPS-1132-2 (R1)",{"$f":"basisdata[[#This Row],[Categorie maatregel]]","v":"Relighting"},null,{"$f":"basisdata[[#This Row],[Gebouw]]","v":"DIO1 KAB"},"R1"]
[4254441692,"20229132.1",425418244,"Het Open Poortje","CKG Het Open Poortje Waasland","Relighting",2337,"SIMPLE","RPS-1133-1 (R1)",{"$f":"basisdata[[#This Row],[Categorie maatregel]]","v":"Relighting"},null,{"$f":"basisdata[[#This Row],[Gebouw]]","v":"CKG Het Open Poortje Waasland"},"R1"]
[4254441692,"20182192.3",425418244,"Het Open Poortje","LT Voorkempen - K&G","PV-panelen",5122,"SIMPLE","RPS-1134-1 (R1)",{"$f":"basisdata[[#This Row],[Categorie maatregel]]","v":"PV-panelen"},null,{"$f":"basisdata[[#This Row],[Gebouw]]","v":"LT Voorkempen - K&G"},"R1"]
[4292875931,"20182555.2",428792557,"Goddelijke Voorzienigheid - Vereniging voor Huisvesting en Verzorging van Bejaarden","vzw Goddelijke Voorzienigheid","PV-panelen",14171,"SIMPLE","RPS-285-5 (R2)",{"$f":"basisdata[[#This Row],[Categorie maatregel]]","v":"PV-panelen"},null,{"$f":"basisdata[[#This Row],[Gebouw]]","v":"vzw Goddelijke Voorzienigheid"},"R2"]
[4290668218,"20189371.1",429040896,"DE VIJVER","Hoekhuis","Relighting/relamping",4270.2,"SIMPLE","RPS-1135-1 (R1)",{"$f":"basisdata[[#This Row],[Categorie maatregel]]","v":"Relighting/relamping"},null,{"$f":"basisdata[[#This Row],[Gebouw]]","v":"Hoekhuis"},"R1"]
[4290668218,"20187274.1",429040896,"DE VIJVER","Rijhuis","Relighting/relamping",4149.6000000000004,"SIMPLE","RPS-1136-1 (R1)",{"$f":"basisdata[[#This Row],[Categorie maatregel]]","v":"Relighting/relamping"},null,{"$f":"basisdata[[#This Row],[Gebouw]]","v":"Rijhuis"},"R1"]
[4290668218,"20207468.3",429040896,"DE VIJVER","Hoofdgebouw Dorp vzw","PV-panelen",13941,"SIMPLE","RPS-850-2 (R1)",{"$f":"basisdata[[#This Row],[Categorie maatregel]]","v":"PV-panelen"},null,{"$f":"basisdata[[#This Row],[Gebouw]]","v":"Hoofdgebouw Dorp vzw"},"R1"]
[4290668218,"20186588.3",429040896,"DE VIJVER","De Hoeve Activiteitencentrum","Relighting/relamping",24991.200000000001,"SIMPLE","RPS-918-5 (R1)",{"$f":"basisdata[[#This Row],[Categorie maatregel]]","v":"Relighting/relamping"},null,{"$f":"basisdata[[#This Row],[Gebouw]]","v":"De Hoeve Activiteitencentrum"},"R1"]
[4290668218,"20188060.4",429040896,"DE VIJVER","De Hoeve Woningen","PV-panelen",16874,"SIMPLE","RPS-919-6 (R1)",{"$f":"basisdata[[#This Row],[Categorie maatregel]]","v":"PV-panelen"},null,{"$f":"basisdata[[#This Row],[Gebouw]]","v":"De Hoeve Woningen"},"R1"]
[4290668218,"20188060.5",429040896,"DE VIJVER","De Hoeve Woningen","Relighting/relamping",8450.4,"SIMPLE","RPS-919-7 (R1)",{"$f":"basisdata[[#This Row],[Categorie maatregel]]","v":"Relighting/relamping"},null,{"$f":"basisdata[[#This Row],[Gebouw]]","v":"De Hoeve Woningen"},"R1"]
[4295359318,"20189371.2",429040896,"DE VIJVER","Hoekhuis","Relighting/relamping",282,"SIMPLE","RPS-1135-2 (R2)",{"$f":"basisdata[[#This Row],[Categorie maatregel]]","v":"Relighting/relamping"},null,{"$f":"basisdata[[#This Row],[Gebouw]]","v":"Hoekhuis"},"R2"]
[4295359318,"20187274.2",429040896,"DE VIJVER","Rijhuis","Relighting/relamping",318,"SIMPLE","RPS-1136-2 (R2)",{"$f":"basisdata[[#This Row],[Categorie maatregel]]","v":"Relighting/relamping"},null,{"$f":"basisdata[[#This Row],[Gebouw]]","v":"Rijhuis"},"R2"]
[4295359318,"20184107.1",429040896,"DE VIJVER","De Lelie","Relighting/relamping",5597,"SIMPLE","RPS-1282-1 (R2)",{"$f":"basisdata[[#This Row],[Categorie maatregel]]","v":"Relighting/relamping"},null,{"$f":"basisdata[[#This Row],[Gebouw]]","v":"De Lelie"},"R2"]
[4295359318,"20181009.1",429040896,"DE VIJVER","Drakenhof","Relighting/relamping",1566,"SIMPLE","RPS-1283-1 (R2)",{"$f":"basisdata[[#This Row],[Categorie maatregel]]","v":"Relighting/relamping"},null,{"$f":"basisdata[[#This Row],[Gebouw]]","v":"Drakenhof"},"R2"]
[4295359318,"20188523.1",429040896,"DE VIJVER","Tyrolerhof","Relighting/relamping",949,"SIMPLE","RPS-1284-1 (R2)",{"$f":"basisdata[[#This Row],[Categorie maatregel]]","v":"Relighting/relamping"},null,{"$f":"basisdata[[#This Row],[Gebouw]]","v":"Tyrolerhof"},"R2"]
[4295359318,"20207468.4",429040896,"DE VIJVER","Hoofdgebouw Dorp vzw","Relighting/relamping",22800,"SIMPLE","RPS-663-2 (R2)",{"$f":"basisdata[[#This Row],[Categorie maatregel]]","v":"Relighting/relamping"},null,{"$f":"basisdata[[#This Row],[Gebouw]]","v":"Hoofdgebouw Dorp vzw"},"R2"]
[4295359318,"20186588.4",429040896,"DE VIJVER","De Hoeve Activiteitencentrum","Relighting/relamping",2000,"SIMPLE","RPS-918-6 (R2)",{"$f":"basisdata[[#This Row],[Categorie maatregel]]","v":"Relighting/relamping"},null,{"$f":"basisdata[[#This Row],[Gebouw]]","v":"De Hoeve Activiteitencentrum"},"R2"]
[4304365018,"20232850.2",430410576,"DE SPEELBERG","De Speelberg","PV-panelen",2867,"SIMPLE","RPS-1022-5 (R1)",{"$f":"basisdata[[#This Row],[Categorie maatregel]]","v":"PV-panelen"},null,{"$f":"basisdata[[#This Row],[Gebouw]]","v":"De Speelberg"},"R1"]
[4304365018,"20232850.2",430410576,"DE SPEELBERG","De Speelberg","Relighting",6588,"SIMPLE","RPS-1022-6 (R1)",{"$f":"basisdata[[#This Row],[Categorie maatregel]]","v":"Relighting"},null,{"$f":"basisdata[[#This Row],[Gebouw]]","v":"De Speelberg"},"R1"]
[4304365018,"20232850.2",430410576,"DE SPEELBERG","De Speelberg","Relighting",4513,"SIMPLE","RPS-1022-7 (R1)",{"$f":"basisdata[[#This Row],[Categorie maatregel]]","v":"Relighting"},null,{"$f":"basisdata[[#This Row],[Gebouw]]","v":"De Speelberg"},"R1"]
[4304365018,"20232850.2",430410576,"DE SPEELBERG","De Speelberg","Relighting",3456,"SIMPLE","RPS-1022-8 (R1)",{"$f":"basisdata[[#This Row],[Categorie maatregel]]","v":"Relighting"},null,{"$f":"basisdata[[#This Row],[Gebouw]]","v":"De Speelberg"},"R1"]
[4310030618,"20232951.1",430977136,"Onze-Lieve-Vrouw van Antwerpen","WZC Onze-Lieve-Vrouw van Antwerpen","PV-panelen",41281,"SIMPLE","RPS-1143-1 (R1)",{"$f":"basisdata[[#This Row],[Categorie maatregel]]","v":"PV-panelen"},null,{"$f":"basisdata[[#This Row],[Gebouw]]","v":"WZC Onze-Lieve-Vrouw van Antwerpen"},"R1"]
[4311367831,"20215146.2",431110857,"Mariënstede","Kasteel","PV-panelen",2387,"SIMPLE","RPS-664-12 (R1)",{"$f":"basisdata[[#This Row],[Categorie maatregel]]","v":"PV-panelen"},null,{"$f":"basisdata[[#This Row],[Gebouw]]","v":"Kasteel"},"R1"]
[4311367831,"20215146.2",431110857,"Mariënstede","Kasteel","Relighting/relamping",955,"SIMPLE","RPS-664-13 (R1)",{"$f":"basisdata[[#This Row],[Categorie maatregel]]","v":"Relighting/relamping"},null,{"$f":"basisdata[[#This Row],[Gebouw]]","v":"Kasteel"},"R1"]
[4311367831,"20215146.2",431110857,"Mariënstede","Kasteel","Zonneboiler",5101,"SIMPLE","RPS-664-14 (R1)",{"$f":"basisdata[[#This Row],[Categorie maatregel]]","v":"Zonneboiler"},null,{"$f":"basisdata[[#This Row],[Gebouw]]","v":"Kasteel"},"R1"]
[4311367831,"20219628.2",431110857,"Mariënstede","vzw Mariënstede","Zonneboiler",1815,"SIMPLE","RPS-665-12 (R1)",{"$f":"basisdata[[#This Row],[Categorie maatregel]]","v":"Zonneboiler"},null,{"$f":"basisdata[[#This Row],[Gebouw]]","v":"vzw Mariënstede"},"R1"]
[4311367831,"20211942.3",431110857,"Mariënstede vzw","vzw Mariënstede","PV-panelen",2758,"SIMPLE","RPS-665-13 (R2)",{"$f":"basisdata[[#This Row],[Categorie maatregel]]","v":"PV-panelen"},null,{"$f":"basisdata[[#This Row],[Gebouw]]","v":"vzw Mariënstede"},"R2"]
[4311367831,"20219628.3",431110857,"Mariënstede vzw","De HUizen","PV-panelen",2987,"SIMPLE","RPS-945-6 (R2)",{"$f":"basisdata[[#This Row],[Categorie maatregel]]","v":"PV-panelen"},null,{"$f":"basisdata[[#This Row],[Gebouw]]","v":"De HUizen"},"R2"]
[4311499466,"20182785.2",431124022,"UNIE-K","De Waaiberg - Centraal Gebouw","PV-panelen",17567,"SIMPLE","RPS-1144-1 (R1)",{"$f":"basisdata[[#This Row],[Categorie maatregel]]","v":"PV-panelen"},null,{"$f":"basisdata[[#This Row],[Gebouw]]","v":"De Waaiberg - Centraal Gebouw"},"R1"]
[4311499466,"20183004.2",431124022,"UNIE-K","De Waaiberg - Woning 1 & 2","Renovatie beglazing",2304,"SIMPLE","RPS-1145-1 (R1)",{"$f":"basisdata[[#This Row],[Categorie maatregel]]","v":"Renovatie beglazing"},null,{"$f":"basisdata[[#This Row],[Gebouw]]","v":"De Waaiberg - Woning 1 & 2"},"R1"]
[4311499466,"20183004.3",431124022,"UNIE-K","De Waaiberg - Woning 1 & 2","Vervangen pompen",2400,"SIMPLE","RPS-1145-2 (R1)",{"$f":"basisdata[[#This Row],[Categorie maatregel]]","v":"Vervangen pompen"},null,{"$f":"basisdata[[#This Row],[Gebouw]]","v":"De Waaiberg - Woning 1 & 2"},"R1"]
[4311499466,"20183728.2",431124022,"UNIE-K","De Waaiberg - Woning 3, 4, 5 & 6","Renovatie beglazing",16416,"SIMPLE","RPS-1146-1 (R1)",{"$f":"basisdata[[#This Row],[Categorie maatregel]]","v":"Renovatie beglazing"},null,{"$f":"basisdata[[#This Row],[Gebouw]]","v":"De Waaiberg - Woning 3, 4, 5 & 6"},"R1"]
[4311499466,"20183359.2",431124022,"UNIE-K","Ons Erf - gebouw A","PV-panelen",40122,"SIMPLE","RPS-1147-1 (R1)",{"$f":"basisdata[[#This Row],[Categorie maatregel]]","v":"PV-panelen"},null,{"$f":"basisdata[[#This Row],[Gebouw]]","v":"Ons Erf - gebouw A"},"R1"]
[4311499466,"20183943.2",431124022,"UNIE-K","Ons Erf - gebouw B","Relighting/relamping",4693,"SIMPLE","RPS-1148-1 (R1)",{"$f":"basisdata[[#This Row],[Categorie maatregel]]","v":"Relighting/relamping"},null,{"$f":"basisdata[[#This Row],[Gebouw]]","v":"Ons Erf - gebouw B"},"R1"]
[4311499466,"20183943.2",431124022,"UNIE-K","Ons Erf - gebouw B","Relighting/relamping",6896,"SIMPLE","RPS-1148-2 (R1)",{"$f":"basisdata[[#This Row],[Categorie maatregel]]","v":"Relighting/relamping"},null,{"$f":"basisdata[[#This Row],[Gebouw]]","v":"Ons Erf - gebouw B"},"R1"]
[4311499466,"20185062.3",431124022,"UNIE-K","t Venster - Oud gebouw","PV-panelen",37209,"SIMPLE","RPS-303-2 (R1)",{"$f":"basisdata[[#This Row],[Categorie maatregel]]","v":"PV-panelen"},null,{"$f":"basisdata[[#This Row],[Gebouw]]","v":"t Venster - Oud gebouw"},"R1"]
[4319156690,"20232240.2",431408290,"VZW DE VLEUGELS","Horizon","PV-panelen",23401,"SIMPLE","RPS-1149-1 (R1)",{"$f":"basisdata[[#This Row],[Categorie maatregel]]","v":"PV-panelen"},null,{"$f":"basisdata[[#This Row],[Gebouw]]","v":"Horizon"},"R1"]
[4314342140,"20238580.3",431408290,"VZW DE VLEUGELS","Technische dienst en wasserij","PV-panelen",70203,"SIMPLE","RPS-1149-2 (R1)",{"$f":"basisdata[[#This Row],[Categorie maatregel]]","v":"PV-panelen"},null,{"$f":"basisdata[[#This Row],[Gebouw]]","v":"Technische dienst en wasserij"},"R1"]
[4326528544,"20234935.1",432626928,"Maria Middelares","MARIA MIDDELARES- Gebouw 31149047","PV-panelen",14559,"SIMPLE","RPS-1285-1 (R2)",{"$f":"basisdata[[#This Row],[Categorie maatregel]]","v":"PV-panelen"},null,{"$f":"basisdata[[#This Row],[Gebouw]]","v":"MARIA MIDDELARES- Gebouw 31149047"},"R2"]
[4333321505,"20233101.1",433306225,"Talander vzw","Talander","Monitoring",789,"SIMPLE","RPS-1286-1 (R2)",{"$f":"basisdata[[#This Row],[Categorie maatregel]]","v":"Monitoring"},null,{"$f":"basisdata[[#This Row],[Gebouw]]","v":"Talander"},"R2"]
[4333321505,"20233101.1",433306225,"Talander vzw","Talander","Warmtepompen en koeling",18000,"SIMPLE","RPS-1286-2 (R2)",{"$f":"basisdata[[#This Row],[Categorie maatregel]]","v":"Warmtepompen en koeling"},null,{"$f":"basisdata[[#This Row],[Gebouw]]","v":"Talander"},"R2"]
[4333321505,"20233101.1",433306225,"Talander vzw","Talander","Warmtepompen en koeling",10800,"SIMPLE","RPS-1286-3 (R2)",{"$f":"basisdata[[#This Row],[Categorie maatregel]]","v":"Warmtepompen en koeling"},null,{"$f":"basisdata[[#This Row],[Gebouw]]","v":"Talander"},"R2"]
[4344347016,"20237860.1",433927322,"Centrum van de Oostkust voor Revalidatie en Welzijnszorg","Het Vlot","Relighting",2400,"SIMPLE","RPS-1287-1 (R2)",{"$f":"basisdata[[#This Row],[Categorie maatregel]]","v":"Relighting"},null,{"$f":"basisdata[[#This Row],[Gebouw]]","v":"Het Vlot"},"R2"]
[4344347016,"20235662.1",433927322,"Centrum van de Oostkust voor Revalidatie en Welzijnszorg","De Klinker","Comfortverhoging",114000,"SIMPLE","RPS-465-3 (R2)",{"$f":"basisdata[[#This Row],[Categorie maatregel]]","v":"Comfortverhoging"},null,{"$f":"basisdata[[#This Row],[Gebouw]]","v":"De Klinker"},"R2"]
[4344347016,"20186201.2",433927322,"Centrum van de Oostkust voor Revalidatie en Welzijnszorg","De Klinker","PV-panelen",5961,"SIMPLE","RPS-465-4 (R2)",{"$f":"basisdata[[#This Row],[Categorie maatregel]]","v":"PV-panelen"},null,{"$f":"basisdata[[#This Row],[Gebouw]]","v":"De Klinker"},"R2"]
[4344347016,"20233130.1",433927322,"Centrum van de Oostkust voor Revalidatie en Welzijnszorg","Het Baken","Relighting",6720,"SIMPLE","RPS-466-2 (R2)",{"$f":"basisdata[[#This Row],[Categorie maatregel]]","v":"Relighting"},null,{"$f":"basisdata[[#This Row],[Gebouw]]","v":"Het Baken"},"R2"]
[4339878892,"20188586.1",433961964,"CONECTO","WZC Ter Hovingen","Regeltechnisch",184,"SIMPLE","RPS-1150-1 (R1)",{"$f":"basisdata[[#This Row],[Categorie maatregel]]","v":"Regeltechnisch"},null,{"$f":"basisdata[[#This Row],[Gebouw]]","v":"WZC Ter Hovingen"},"R1"]
[4339878892,"20182601.2",433961964,"CONECTO","WZC Heilige Familie","Relighting/relamping",13062,"SIMPLE","RPS-267-2 (R1)",{"$f":"basisdata[[#This Row],[Categorie maatregel]]","v":"Relighting/relamping"},null,{"$f":"basisdata[[#This Row],[Gebouw]]","v":"WZC Heilige Familie"},"R1"]
[4350229179,"20214371.1",434996993,"Integrale Bejaardenzorg Sint-Jozef","De Ruyschaert","Dakisolatie",36000,"SIMPLE","RPS-1151-1 (R1)",{"$f":"basisdata[[#This Row],[Categorie maatregel]]","v":"Dakisolatie"},null,{"$f":"basisdata[[#This Row],[Gebouw]]","v":"De Ruyschaert"},"R1"]
[4350229179,"20214371.1",434996993,"Integrale Bejaardenzorg Sint-Jozef","De Ruyschaert","Isoleren leidingen",149,"SIMPLE","RPS-1151-2 (R1)",{"$f":"basisdata[[#This Row],[Categorie maatregel]]","v":"Isoleren leidingen"},null,{"$f":"basisdata[[#This Row],[Gebouw]]","v":"De Ruyschaert"},"R1"]
[4350229179,"20214371.1",434996993,"Integrale Bejaardenzorg Sint-Jozef","De Ruyschaert","Isoleren pompen/kranen/hydraulica",2069,"SIMPLE","RPS-1151-3 (R1)",{"$f":"basisdata[[#This Row],[Categorie maatregel]]","v":"Isoleren pompen/kranen/hydraulica"},null,{"$f":"basisdata[[#This Row],[Gebouw]]","v":"De Ruyschaert"},"R1"]
[4350229179,"20214371.1",434996993,"Integrale Bejaardenzorg Sint-Jozef","De Ruyschaert","Relighting/relamping",29589,"SIMPLE","RPS-1151-4 (R1)",{"$f":"basisdata[[#This Row],[Categorie maatregel]]","v":"Relighting/relamping"},null,{"$f":"basisdata[[#This Row],[Gebouw]]","v":"De Ruyschaert"},"R1"]
[4350229179,"20214371.1",434996993,"Integrale Bejaardenzorg Sint-Jozef","De Ruyschaert","Renovatie ventilatie",37800,"SIMPLE","RPS-1151-5 (R1)",{"$f":"basisdata[[#This Row],[Categorie maatregel]]","v":"Renovatie ventilatie"},null,{"$f":"basisdata[[#This Row],[Gebouw]]","v":"De Ruyschaert"},"R1"]
[4350229179,"20214371.1",434996993,"Integrale Bejaardenzorg Sint-Jozef","De Ruyschaert","Vervangen pompen",4530,"SIMPLE","RPS-1151-6 (R1)",{"$f":"basisdata[[#This Row],[Categorie maatregel]]","v":"Vervangen pompen"},null,{"$f":"basisdata[[#This Row],[Gebouw]]","v":"De Ruyschaert"},"R1"]
[4350229179,"20218652.1",434996993,"Integrale Bejaardenzorg Sint-Jozef","Residentie Het Kloosterhof","Relighting/relamping",11100,"SIMPLE","RPS-1152-1 (R1)",{"$f":"basisdata[[#This Row],[Categorie maatregel]]","v":"Relighting/relamping"},null,{"$f":"basisdata[[#This Row],[Gebouw]]","v":"Residentie Het Kloosterhof"},"R1"]
[4364067690,"20219786.4",435899390,"RUSTHUIS STRIJLAND","WZC Strijland","Relighting/relamping",6480,"SIMPLE","RPS-679-10 (R2)",{"$f":"basisdata[[#This Row],[Categorie maatregel]]","v":"Relighting/relamping"},null,{"$f":"basisdata[[#This Row],[Gebouw]]","v":"WZC Strijland"},"R2"]
[4364067690,"20219786.4",435899390,"RUSTHUIS STRIJLAND","WZC Strijland","Dakisolatie",1170,"SIMPLE","RPS-679-8 (R2)",{"$f":"basisdata[[#This Row],[Categorie maatregel]]","v":"Dakisolatie"},null,{"$f":"basisdata[[#This Row],[Gebouw]]","v":"WZC Strijland"},"R2"]
[4364067690,"20219786.4",435899390,"RUSTHUIS STRIJLAND","WZC Strijland","PV-panelen",2159,"SIMPLE","RPS-679-9 (R2)",{"$f":"basisdata[[#This Row],[Categorie maatregel]]","v":"PV-panelen"},null,{"$f":"basisdata[[#This Row],[Gebouw]]","v":"WZC Strijland"},"R2"]
[4366251018,"20214362.4",436599176,"INSPIRANT","Inspirant aan zee | MFC - gebouw A-N","PV-panelen",25771,"EXTENDED","RPE-1153-1 (R1)",{"$f":"basisdata[[#This Row],[Categorie maatregel]]","v":"PV-panelen"},null,{"$f":"basisdata[[#This Row],[Gebouw]]","v":"Inspirant aan zee | MFC - gebouw A-N"},"R1"]
[4366251018,"20214362.4",436599176,"INSPIRANT","Inspirant aan zee | MFC - gebouw A-N","Relamping",3099,"EXTENDED","RPE-1153-2 (R1)",{"$f":"basisdata[[#This Row],[Categorie maatregel]]","v":"Relamping"},null,{"$f":"basisdata[[#This Row],[Gebouw]]","v":"Inspirant aan zee | MFC - gebouw A-N"},"R1"]
[4366251018,"20214362.4",436599176,"INSPIRANT","Inspirant aan zee | MFC - gebouw A-N","Relighting",8400,"EXTENDED","RPE-1153-3 (R1)",{"$f":"basisdata[[#This Row],[Categorie maatregel]]","v":"Relighting"},null,{"$f":"basisdata[[#This Row],[Gebouw]]","v":"Inspirant aan zee | MFC - gebouw A-N"},"R1"]
[4366251018,"20218395.2",436599176,"INSPIRANT","Inspirant aan zee | MFC - Gebouw G","PV-panelen",5000,"EXTENDED","RPE-1154-1 (R1)",{"$f":"basisdata[[#This Row],[Categorie maatregel]]","v":"PV-panelen"},null,{"$f":"basisdata[[#This Row],[Gebouw]]","v":"Inspirant aan zee | MFC - Gebouw G"},"R1"]
[4366251018,"20218266.4",436599176,"INSPIRANT","Inspirant aan zee | MFC - Gebouw H-I-J","PV-panelen",50490,"EXTENDED","RPE-1155-1 (R1)",{"$f":"basisdata[[#This Row],[Categorie maatregel]]","v":"PV-panelen"},null,{"$f":"basisdata[[#This Row],[Gebouw]]","v":"Inspirant aan zee | MFC - Gebouw H-I-J"},"R1"]
[4366251018,"20218266.4",436599176,"INSPIRANT","Inspirant aan zee | MFC - Gebouw H-I-J","Relighting",9900,"EXTENDED","RPE-1155-2 (R1)",{"$f":"basisdata[[#This Row],[Categorie maatregel]]","v":"Relighting"},null,{"$f":"basisdata[[#This Row],[Gebouw]]","v":"Inspirant aan zee | MFC - Gebouw H-I-J"},"R1"]
[4366251018,"20225075.4",436599176,"INSPIRANT","Inspirant Aartrijke | MFC","PV-panelen",106920,"EXTENDED","RPE-1156-1 (R1)",{"$f":"basisdata[[#This Row],[Categorie maatregel]]","v":"PV-panelen"},null,{"$f":"basisdata[[#This Row],[Gebouw]]","v":"Inspirant Aartrijke | MFC"},"R1"]
[4366251018,"20225075.4",436599176,"INSPIRANT","Inspirant Aartrijke | MFC","Relighting",3528,"EXTENDED","RPE-1156-2 (R1)",{"$f":"basisdata[[#This Row],[Categorie maatregel]]","v":"Relighting"},null,{"$f":"basisdata[[#This Row],[Gebouw]]","v":"Inspirant Aartrijke | MFC"},"R1"]
[4366251018,"20243568.1",436599176,"Inspirant in't Dorp","Inspirant in 't dorp - HTH (atelier en stal)","Relamping",1826,"SIMPLE","RPS-1288-1 (R2)",{"$f":"basisdata[[#This Row],[Categorie maatregel]]","v":"Relamping"},null,{"$f":"basisdata[[#This Row],[Gebouw]]","v":"Inspirant in 't dorp - HTH (atelier en stal)"},"R2"]
[4366251018,"20243568.1",436599176,"Inspirant in't Dorp","Inspirant in 't dorp - HTH (atelier en stal)","Relighting",7914,"SIMPLE","RPS-1289-2 (R2)",{"$f":"basisdata[[#This Row],[Categorie maatregel]]","v":"Relighting"},null,{"$f":"basisdata[[#This Row],[Gebouw]]","v":"Inspirant in 't dorp - HTH (atelier en stal)"},"R2"]
[4366251018,"20233974.1",436599176,"Inspirant in't Dorp","Inspirant in 't dorp - HTH (huis en loods)","Relighting",4587.6000000000004,"SIMPLE","RPS-1290-3 (R2)",{"$f":"basisdata[[#This Row],[Categorie maatregel]]","v":"Relighting"},null,{"$f":"basisdata[[#This Row],[Gebouw]]","v":"Inspirant in 't dorp - HTH (huis en loods)"},"R2"]
[4366251018,"20233974.1",436599176,"Inspirant in't Dorp","Inspirant in 't dorp - HTH (huis en loods)","Relighting",3439,"SIMPLE","RPS-1291-4 (R2)",{"$f":"basisdata[[#This Row],[Categorie maatregel]]","v":"Relighting"},null,{"$f":"basisdata[[#This Row],[Gebouw]]","v":"Inspirant in 't dorp - HTH (huis en loods)"},"R2"]
[4366251018,"20232407.1",436599176,"Inspirant in't Dorp","Inspirant in 't dorp - MKL 2","PV-panelen",4513,"SIMPLE","RPS-1292-1 (R2)",{"$f":"basisdata[[#This Row],[Categorie maatregel]]","v":"PV-panelen"},null,{"$f":"basisdata[[#This Row],[Gebouw]]","v":"Inspirant in 't dorp - MKL 2"},"R2"]
[4366251018,"20248013.1",436599176,"Inspirant in't Dorp","Inspirant in 't dorp - Vincentlaan","PV-panelen",2669,"SIMPLE","RPS-1293-1 (R2)",{"$f":"basisdata[[#This Row],[Categorie maatregel]]","v":"PV-panelen"},null,{"$f":"basisdata[[#This Row],[Gebouw]]","v":"Inspirant in 't dorp - Vincentlaan"},"R2"]
[4366251018,"20235511.1",436599176,"Inspirant in't Dorp","Inspirant in 't dorp- ELZ 3","PV-panelen",3636,"SIMPLE","RPS-1294-1 (R2)",{"$f":"basisdata[[#This Row],[Categorie maatregel]]","v":"PV-panelen"},null,{"$f":"basisdata[[#This Row],[Gebouw]]","v":"Inspirant in 't dorp- ELZ 3"},"R2"]
[4388401653,"20228581.1",438814241,"Exalta","SF Morgenster","PV-panelen",2549,"SIMPLE","RPS-1157-1 (R1)",{"$f":"basisdata[[#This Row],[Categorie maatregel]]","v":"PV-panelen"},null,{"$f":"basisdata[[#This Row],[Gebouw]]","v":"SF Morgenster"},"R1"]
[4388401653,"20228581.1",438814241,"Exalta","SF Morgenster","Relighting",8280,"SIMPLE","RPS-1157-2 (R1)",{"$f":"basisdata[[#This Row],[Categorie maatregel]]","v":"Relighting"},null,{"$f":"basisdata[[#This Row],[Gebouw]]","v":"SF Morgenster"},"R1"]
[4388401653,"20227927.1",438814241,"Exalta","WZC Morgenster","PV-panelen",8213,"SIMPLE","RPS-1158-1 (R1)",{"$f":"basisdata[[#This Row],[Categorie maatregel]]","v":"PV-panelen"},null,{"$f":"basisdata[[#This Row],[Gebouw]]","v":"WZC Morgenster"},"R1"]
[4388401653,"20227927.1",438814241,"Exalta","WZC Morgenster","Relighting",19987,"SIMPLE","RPS-1158-2 (R1)",{"$f":"basisdata[[#This Row],[Categorie maatregel]]","v":"Relighting"},null,{"$f":"basisdata[[#This Row],[Gebouw]]","v":"WZC Morgenster"},"R1"]
[4388401653,"20232610.1",438814241,"Sint-Jozef","WZC Sint-Jozef","PV-panelen",40747,"SIMPLE","RPS-1159-1 (R1)",{"$f":"basisdata[[#This Row],[Categorie maatregel]]","v":"PV-panelen"},null,{"$f":"basisdata[[#This Row],[Gebouw]]","v":"WZC Sint-Jozef"},"R1"]
[4388401653,"20232610.1",438814241,"Sint-Jozef","WZC Sint-Jozef","Relighting",53255,"SIMPLE","RPS-1159-2 (R1)",{"$f":"basisdata[[#This Row],[Categorie maatregel]]","v":"Relighting"},null,{"$f":"basisdata[[#This Row],[Gebouw]]","v":"WZC Sint-Jozef"},"R1"]
[4394783853,"20183919.1",439452461,"Stijn","Klimroos Trefpunt De Gorten","PV-panelen",3997,"SIMPLE","RPS-1160-1 (R1)",{"$f":"basisdata[[#This Row],[Categorie maatregel]]","v":"PV-panelen"},null,{"$f":"basisdata[[#This Row],[Gebouw]]","v":"Klimroos Trefpunt De Gorten"},"R1"]
[4394783853,"20183919.1",439452461,"Stijn","Klimroos Trefpunt De Gorten","Relighting/relamping",1615.2,"SIMPLE","RPS-1160-2 (R1)",{"$f":"basisdata[[#This Row],[Categorie maatregel]]","v":"Relighting/relamping"},null,{"$f":"basisdata[[#This Row],[Gebouw]]","v":"Klimroos Trefpunt De Gorten"},"R1"]
[4394783853,"20181674.1",439452461,"Stijn","Klimroos Vliegden Noord","Relighting/relamping",1149,"SIMPLE","RPS-1161-1 (R1)",{"$f":"basisdata[[#This Row],[Categorie maatregel]]","v":"Relighting/relamping"},null,{"$f":"basisdata[[#This Row],[Gebouw]]","v":"Klimroos Vliegden Noord"},"R1"]
[4394783853,"20185192.1",439452461,"Stijn","Klimroos Vliegden Oost","PV-panelen",5326,"SIMPLE","RPS-1162-1 (R1)",{"$f":"basisdata[[#This Row],[Categorie maatregel]]","v":"PV-panelen"},null,{"$f":"basisdata[[#This Row],[Gebouw]]","v":"Klimroos Vliegden Oost"},"R1"]
[4394783853,"20185192.1",439452461,"Stijn","Klimroos Vliegden Oost","Relighting/relamping",11593.8,"SIMPLE","RPS-1162-2 (R1)",{"$f":"basisdata[[#This Row],[Categorie maatregel]]","v":"Relighting/relamping"},null,{"$f":"basisdata[[#This Row],[Gebouw]]","v":"Klimroos Vliegden Oost"},"R1"]
[4394783853,"20198179.1",439452461,"Stijn","Sint-Gerardus Het Verblijf","Relighting/relamping",6566,"SIMPLE","RPS-1163-1 (R1)",{"$f":"basisdata[[#This Row],[Categorie maatregel]]","v":"Relighting/relamping"},null,{"$f":"basisdata[[#This Row],[Gebouw]]","v":"Sint-Gerardus Het Verblijf"},"R1"]
[4394783853,"20192032.1",439452461,"Stijn","Sint-Oda Adelberg","Relighting/relamping",414,"SIMPLE","RPS-1164-2 (R1)",{"$f":"basisdata[[#This Row],[Categorie maatregel]]","v":"Relighting/relamping"},null,{"$f":"basisdata[[#This Row],[Gebouw]]","v":"Sint-Oda Adelberg"},"R1"]
[4394783853,"20197081.2",439452461,"Stijn","Sint-Oda hei 3-4","Relighting/relamping",15515.4,"SIMPLE","RPS-1165-1 (R1)",{"$f":"basisdata[[#This Row],[Categorie maatregel]]","v":"Relighting/relamping"},null,{"$f":"basisdata[[#This Row],[Gebouw]]","v":"Sint-Oda hei 3-4"},"R1"]
[4394783853,"20199668.2",439452461,"Stijn","Sint-Oda hei 7-8","Relighting/relamping",15515.4,"SIMPLE","RPS-1166-1 (R1)",{"$f":"basisdata[[#This Row],[Categorie maatregel]]","v":"Relighting/relamping"},null,{"$f":"basisdata[[#This Row],[Gebouw]]","v":"Sint-Oda hei 7-8"},"R1"]
[4394783853,"20191805.1",439452461,"Stijn","Sint-Oda Vloeter","Relighting/relamping",552,"SIMPLE","RPS-1167-1 (R1)",{"$f":"basisdata[[#This Row],[Categorie maatregel]]","v":"Relighting/relamping"},null,{"$f":"basisdata[[#This Row],[Gebouw]]","v":"Sint-Oda Vloeter"},"R1"]
[4394783853,"20246818.2",439452461,"t Weyerke","t Weyerke-ZAC4","Relighting",1532,"SIMPLE","RPS-1168-1 (R1)",{"$f":"basisdata[[#This Row],[Categorie maatregel]]","v":"Relighting"},null,{"$f":"basisdata[[#This Row],[Gebouw]]","v":"t Weyerke-ZAC4"},"R1"]
[4394783853,"20184309.2",439452461,"Stijn","Sint-Oda Sens-city","Relighting/relamping",85490.4,"SIMPLE","RPS-447-2 (R1)",{"$f":"basisdata[[#This Row],[Categorie maatregel]]","v":"Relighting/relamping"},null,{"$f":"basisdata[[#This Row],[Gebouw]]","v":"Sint-Oda Sens-city"},"R1"]
[4394783853,"20197971.2",439452461,"Stijn","Sint-Oda hei 1-2","Relighting/relamping",15515.4,"SIMPLE","RPS-515-1 (R1)",{"$f":"basisdata[[#This Row],[Categorie maatregel]]","v":"Relighting/relamping"},null,{"$f":"basisdata[[#This Row],[Gebouw]]","v":"Sint-Oda hei 1-2"},"R1"]
[4394783853,"20181014.3",439452461,"Stijn","Sint-Oda Hei 5-6","Relighting/relamping",15515.4,"SIMPLE","RPS-516-2 (R1)",{"$f":"basisdata[[#This Row],[Categorie maatregel]]","v":"Relighting/relamping"},null,{"$f":"basisdata[[#This Row],[Gebouw]]","v":"Sint-Oda Hei 5-6"},"R1"]
[4394783853,"20195219.3",439452461,"Stijn","De Witte Mol - 4 gebouwen / 8 leefgroepen + centrumgebouw","Relighting/relamping",2192,"SIMPLE","RPS-682-6 (R1)",{"$f":"basisdata[[#This Row],[Categorie maatregel]]","v":"Relighting/relamping"},null,{"$f":"basisdata[[#This Row],[Gebouw]]","v":"De Witte Mol - 4 gebouwen / 8 leefgroepen + centrumgebouw"},"R1"]
[4394783853,"20195219.3",439452461,"Stijn","De Witte Mol - 4 gebouwen / 8 leefgroepen + centrumgebouw","Relighting/relamping",23400,"SIMPLE","RPS-682-7 (R1)",{"$f":"basisdata[[#This Row],[Categorie maatregel]]","v":"Relighting/relamping"},null,{"$f":"basisdata[[#This Row],[Gebouw]]","v":"De Witte Mol - 4 gebouwen / 8 leefgroepen + centrumgebouw"},"R1"]
[4394783853,"20208793.2",439452461,"Stijn","Kamiano Groenhoef","PV-panelen",1420,"SIMPLE","RPS-683-9 (R1)",{"$f":"basisdata[[#This Row],[Categorie maatregel]]","v":"PV-panelen"},null,{"$f":"basisdata[[#This Row],[Gebouw]]","v":"Kamiano Groenhoef"},"R1"]
[4394783853,"20222331.2",439452461,"Stijn","t Klavertje Beukenveld","PV-panelen",15957,"SIMPLE","RPS-947-5 (R1)",{"$f":"basisdata[[#This Row],[Categorie maatregel]]","v":"PV-panelen"},null,{"$f":"basisdata[[#This Row],[Gebouw]]","v":"t Klavertje Beukenveld"},"R1"]
[4394783853,"20222331.2",439452461,"Stijn","t Klavertje Beukenveld","Relighting",6165.6,"SIMPLE","RPS-947-6 (R1)",{"$f":"basisdata[[#This Row],[Categorie maatregel]]","v":"Relighting"},null,{"$f":"basisdata[[#This Row],[Gebouw]]","v":"t Klavertje Beukenveld"},"R1"]
[4402996394,"20198582.4",439792258,"Résidence Marie-Astrid","NV RESIDENCE MARIE-ASTRID","PV-panelen",11748,"SIMPLE","RPS-372-3 (R2)",{"$f":"basisdata[[#This Row],[Categorie maatregel]]","v":"PV-panelen"},null,{"$f":"basisdata[[#This Row],[Gebouw]]","v":"NV RESIDENCE MARIE-ASTRID"},"R2"]
[4430754044,"20193787.1",443049478,"Dommelhof","Huis Den Hoek","PV-panelen",26879,"SIMPLE","RPS-1169-1 (R1)",{"$f":"basisdata[[#This Row],[Categorie maatregel]]","v":"PV-panelen"},null,{"$f":"basisdata[[#This Row],[Gebouw]]","v":"Huis Den Hoek"},"R1"]
[4430754044,"20194994.1",443049478,"Dommelhof","Huis Perkeveld","PV-panelen",26879,"SIMPLE","RPS-1170-1 (R1)",{"$f":"basisdata[[#This Row],[Categorie maatregel]]","v":"PV-panelen"},null,{"$f":"basisdata[[#This Row],[Gebouw]]","v":"Huis Perkeveld"},"R1"]
[4430754044,"20194205.1",443049478,"Dommelhof","Huis Wingerberg","PV-panelen",26879,"SIMPLE","RPS-1171-1 (R1)",{"$f":"basisdata[[#This Row],[Categorie maatregel]]","v":"PV-panelen"},null,{"$f":"basisdata[[#This Row],[Gebouw]]","v":"Huis Wingerberg"},"R1"]
[4437750818,"20231262.3",443255356,"VZW Kompas - dagcentrum","VZW Kompas Omega","PV-panelen",357,"SIMPLE","RPS-1065-5 (R2)",{"$f":"basisdata[[#This Row],[Categorie maatregel]]","v":"PV-panelen"},null,{"$f":"basisdata[[#This Row],[Gebouw]]","v":"VZW Kompas Omega"},"R2"]
[4432848440,"20216874.2",443258920,"Centrum Ambulante Diensten","Boei 1","PV-panelen",3028,"SIMPLE","RPS-338-4 (R1)",{"$f":"basisdata[[#This Row],[Categorie maatregel]]","v":"PV-panelen"},null,{"$f":"basisdata[[#This Row],[Gebouw]]","v":"Boei 1"},"R1"]
[4432865279,"20187843.1",443260603,"Sint-Trudo Ziekenhuis","Campus Rummenweg","PV-panelen",4701,"SIMPLE","RPS-1295-1 (R2)",{"$f":"basisdata[[#This Row],[Categorie maatregel]]","v":"PV-panelen"},null,{"$f":"basisdata[[#This Row],[Gebouw]]","v":"Campus Rummenweg"},"R2"]
[4432865279,"20185078.2",443260603,"Sint-Trudo Ziekenhuis","Campus Sint-Jozef","Relighting/relamping",22298,"SIMPLE","RPS-1296-1 (R2)",{"$f":"basisdata[[#This Row],[Categorie maatregel]]","v":"Relighting/relamping"},null,{"$f":"basisdata[[#This Row],[Gebouw]]","v":"Campus Sint-Jozef"},"R2"]
[4450923105,"20197264.2",445066385,"Onze-Lieve-Vrouw Gasthuis","WZC OLV Gasthuis","Relighting/relamping",75000,"SIMPLE","VKF-714-12 (R1)",{"$f":"basisdata[[#This Row],[Categorie maatregel]]","v":"Relighting/relamping"},null,{"$f":"basisdata[[#This Row],[Gebouw]]","v":"WZC OLV Gasthuis"},"R1"]
[4455253466,"20234467.2",445499422,"Curando - WZC Marialove","MARIALOVE","PV-panelen",33278,"SIMPLE","RPS-1172-1 (R1)",{"$f":"basisdata[[#This Row],[Categorie maatregel]]","v":"PV-panelen"},null,{"$f":"basisdata[[#This Row],[Gebouw]]","v":"MARIALOVE"},"R1"]
[4455253466,"20206365.2",445499422,"GAW Patershof","Westervier","PV-panelen",39991,"SIMPLE","RPS-1173-1 (R1)",{"$f":"basisdata[[#This Row],[Categorie maatregel]]","v":"PV-panelen"},null,{"$f":"basisdata[[#This Row],[Gebouw]]","v":"Westervier"},"R1"]
[4455253466,"20244391.2",445499422,"Curando O.L.V. van 7 weeën Ruiselede vzw","De Torre","Dakisolatie hellend dak",204337.80000000005,"EXTENDED","RPE-1297-1 (R2)",{"$f":"basisdata[[#This Row],[Categorie maatregel]]","v":"Dakisolatie hellend dak"},null,{"$f":"basisdata[[#This Row],[Gebouw]]","v":"De Torre"},"R2"]
[4455253466,"20244391.2",445499422,"Curando O.L.V. van 7 weeën Ruiselede vzw","De Torre","Dakisolatie plat dak",10835.1,"EXTENDED","RPE-1297-2 (R2)",{"$f":"basisdata[[#This Row],[Categorie maatregel]]","v":"Dakisolatie plat dak"},null,{"$f":"basisdata[[#This Row],[Gebouw]]","v":"De Torre"},"R2"]
[4455253466,"20244391.2",445499422,"Curando O.L.V. van 7 weeën Ruiselede vzw","De Torre","Regeltechnisch",2331,"EXTENDED","RPE-1297-3 (R2)",{"$f":"basisdata[[#This Row],[Categorie maatregel]]","v":"Regeltechnisch"},null,{"$f":"basisdata[[#This Row],[Gebouw]]","v":"De Torre"},"R2"]
[4455253466,"20244391.2",445499422,"Curando O.L.V. van 7 weeën Ruiselede vzw","De Torre","Stookplaatsrenovatie",82206,"EXTENDED","RPE-1297-5 (R2)",{"$f":"basisdata[[#This Row],[Categorie maatregel]]","v":"Stookplaatsrenovatie"},null,{"$f":"basisdata[[#This Row],[Gebouw]]","v":"De Torre"},"R2"]
[4455253466,"20244391.1",445499422,"Curando O.L.V. van 7 weeën Ruiselede vzw","De Torre","Schrijnwerkrenovatie Hout",123171,"SIMPLE","RPS-1297-4 (R2)",{"$f":"basisdata[[#This Row],[Categorie maatregel]]","v":"Schrijnwerkrenovatie Hout"},null,{"$f":"basisdata[[#This Row],[Gebouw]]","v":"De Torre"},"R2"]
[4483271631,"20199993.3",448301237,"DE HULSTER","Kotlab","PV-panelen",528,"SIMPLE","RPS-719-4 (R1)",{"$f":"basisdata[[#This Row],[Categorie maatregel]]","v":"PV-panelen"},null,{"$f":"basisdata[[#This Row],[Gebouw]]","v":"Kotlab"},"R1"]
[4483271631,"20197510.2",448301237,"DE HULSTER","Passiebloem","PV-panelen",461,"SIMPLE","RPS-723-5 (R1)",{"$f":"basisdata[[#This Row],[Categorie maatregel]]","v":"PV-panelen"},null,{"$f":"basisdata[[#This Row],[Gebouw]]","v":"Passiebloem"},"R1"]
[4483271631,"20243587.1",448301237,"De Hulster","Statiestraat","PV-panelen",2580,"SIMPLE","RPS-1298-1 (R2)",{"$f":"basisdata[[#This Row],[Categorie maatregel]]","v":"PV-panelen"},null,{"$f":"basisdata[[#This Row],[Gebouw]]","v":"Statiestraat"},"R2"]
[4483271631,"20193923.4",448301237,"DE HULSTER","Vaart","PV-panelen",3989,"SIMPLE","RPS-725-7 (R2)",{"$f":"basisdata[[#This Row],[Categorie maatregel]]","v":"PV-panelen"},null,{"$f":"basisdata[[#This Row],[Gebouw]]","v":"Vaart"},"R2"]
[4486217253,"20227321.3",448595801,"GEZINSACTIVITEITENCENTRUM HET BALANSKE","gezinsactiviteiten het balanske","PV-panelen",29659,"SIMPLE","RPS-909-7 (R1)",{"$f":"basisdata[[#This Row],[Categorie maatregel]]","v":"PV-panelen"},null,{"$f":"basisdata[[#This Row],[Gebouw]]","v":"gezinsactiviteiten het balanske"},"R1"]
[4495400579,"20221612.1",449514133,"Initiatieven voor Kortverblijf, Oppas en Opvang","Het Passantenhuis D en Res. Christiana","Relighting",17925,"SIMPLE","RPS-1174-1 (R1)",{"$f":"basisdata[[#This Row],[Categorie maatregel]]","v":"Relighting"},null,{"$f":"basisdata[[#This Row],[Gebouw]]","v":"Het Passantenhuis D en Res. Christiana"},"R1"]
[4528913079,"20228017.1",452865383,"Sint-Jozef Rusthuis","Rusthuis Sint Jozef - Wilgendries Aspelare","PV-panelen",1782,"SIMPLE","RPS-1176-1 (R1)",{"$f":"basisdata[[#This Row],[Categorie maatregel]]","v":"PV-panelen"},null,{"$f":"basisdata[[#This Row],[Gebouw]]","v":"Rusthuis Sint Jozef - Wilgendries Aspelare"},"R1"]
[4531318305,"20232984.3",453105905,"Boelieboe","Boelieboe Brecht","PV-panelen",3010,"SIMPLE","RPS-1177-1 (R1)",{"$f":"basisdata[[#This Row],[Categorie maatregel]]","v":"PV-panelen"},null,{"$f":"basisdata[[#This Row],[Gebouw]]","v":"Boelieboe Brecht"},"R1"]
[4531318305,"20232984.3",453105905,"Boelieboe","Boelieboe Brecht","Relighting",1944,"SIMPLE","RPS-1177-2 (R1)",{"$f":"basisdata[[#This Row],[Categorie maatregel]]","v":"Relighting"},null,{"$f":"basisdata[[#This Row],[Gebouw]]","v":"Boelieboe Brecht"},"R1"]
[4531318305,"20235674.3",453105905,"BOELIEBOE","Boelieboe Malle","Dakisolatie plat dak",2160,"SIMPLE","RPS-1178-1 (R1)",{"$f":"basisdata[[#This Row],[Categorie maatregel]]","v":"Dakisolatie plat dak"},null,{"$f":"basisdata[[#This Row],[Gebouw]]","v":"Boelieboe Malle"},"R1"]
[4531318305,"20235674.3",453105905,"BOELIEBOE","Boelieboe Malle","PV-panelen",1721,"SIMPLE","RPS-1178-2 (R1)",{"$f":"basisdata[[#This Row],[Categorie maatregel]]","v":"PV-panelen"},null,{"$f":"basisdata[[#This Row],[Gebouw]]","v":"Boelieboe Malle"},"R1"]
[4531318305,"20235674.3",453105905,"BOELIEBOE","Boelieboe Malle","Relighting",59,"SIMPLE","RPS-1178-3 (R1)",{"$f":"basisdata[[#This Row],[Categorie maatregel]]","v":"Relighting"},null,{"$f":"basisdata[[#This Row],[Gebouw]]","v":"Boelieboe Malle"},"R1"]
[4531318305,"20235674.3",453105905,"BOELIEBOE","Boelieboe Malle","Relighting",781,"SIMPLE","RPS-1178-4 (R1)",{"$f":"basisdata[[#This Row],[Categorie maatregel]]","v":"Relighting"},null,{"$f":"basisdata[[#This Row],[Gebouw]]","v":"Boelieboe Malle"},"R1"]
[4531318305,"20235674.3",453105905,"BOELIEBOE","Boelieboe Malle","Relighting",456,"SIMPLE","RPS-1178-5 (R1)",{"$f":"basisdata[[#This Row],[Categorie maatregel]]","v":"Relighting"},null,{"$f":"basisdata[[#This Row],[Gebouw]]","v":"Boelieboe Malle"},"R1"]
[4542767266,"20231743.2",454250802,"Auricula","Kinderdagverblijf Auricula","Relighting",12648.6,"SIMPLE","RPS-1179-1 (R1)",{"$f":"basisdata[[#This Row],[Categorie maatregel]]","v":"Relighting"},null,{"$f":"basisdata[[#This Row],[Gebouw]]","v":"Kinderdagverblijf Auricula"},"R1"]
[4554749744,"20189705.1",455449048,"Zorgnetwerk Trento","Campus De Vliet","Isoleren pompen/kranen/hydraulica",2404,"SIMPLE","RPS-1299-1 (R2)",{"$f":"basisdata[[#This Row],[Categorie maatregel]]","v":"Isoleren pompen/kranen/hydraulica"},null,{"$f":"basisdata[[#This Row],[Gebouw]]","v":"Campus De Vliet"},"R2"]
[4554749744,"20189705.1",455449048,"Zorgnetwerk Trento","Campus De Vliet","Monitoring",2115,"SIMPLE","RPS-1299-2 (R2)",{"$f":"basisdata[[#This Row],[Categorie maatregel]]","v":"Monitoring"},null,{"$f":"basisdata[[#This Row],[Gebouw]]","v":"Campus De Vliet"},"R2"]
[4554749744,"20189705.1",455449048,"Zorgnetwerk Trento","Campus De Vliet","PV-panelen",30890,"SIMPLE","RPS-1299-3 (R2)",{"$f":"basisdata[[#This Row],[Categorie maatregel]]","v":"PV-panelen"},null,{"$f":"basisdata[[#This Row],[Gebouw]]","v":"Campus De Vliet"},"R2"]
[4554749744,"20189705.1",455449048,"Zorgnetwerk Trento","Campus De Vliet","Relighting/relamping",20834,"SIMPLE","RPS-1299-4 (R2)",{"$f":"basisdata[[#This Row],[Categorie maatregel]]","v":"Relighting/relamping"},null,{"$f":"basisdata[[#This Row],[Gebouw]]","v":"Campus De Vliet"},"R2"]
[4554749744,"20189705.1",455449048,"Zorgnetwerk Trento","Campus De Vliet","Renovatie beglazing",1350,"SIMPLE","RPS-1299-5 (R2)",{"$f":"basisdata[[#This Row],[Categorie maatregel]]","v":"Renovatie beglazing"},null,{"$f":"basisdata[[#This Row],[Gebouw]]","v":"Campus De Vliet"},"R2"]
[4554749744,"20184901.1",455449048,"Zorgnetwerk Trento","Campus De Vliet - Nieuwbouw","Monitoring",824,"SIMPLE","RPS-1300-1 (R2)",{"$f":"basisdata[[#This Row],[Categorie maatregel]]","v":"Monitoring"},null,{"$f":"basisdata[[#This Row],[Gebouw]]","v":"Campus De Vliet - Nieuwbouw"},"R2"]
[4554749744,"20186614.2",455449048,"Zorgnetwerk Trento","Campus Sint-Jozef","PV-panelen",5675,"SIMPLE","RPS-1301-1 (R2)",{"$f":"basisdata[[#This Row],[Categorie maatregel]]","v":"PV-panelen"},null,{"$f":"basisdata[[#This Row],[Gebouw]]","v":"Campus Sint-Jozef"},"R2"]
[4554749744,"20186614.1",455449048,"Zorgnetwerk Trento","Campus Sint-Jozef","Regeltechn.ventilatie",3360,"SIMPLE","RPS-1301-2 (R2)",{"$f":"basisdata[[#This Row],[Categorie maatregel]]","v":"Regeltechn.ventilatie"},null,{"$f":"basisdata[[#This Row],[Gebouw]]","v":"Campus Sint-Jozef"},"R2"]
[4554749744,"20186614.1",455449048,"Zorgnetwerk Trento","Campus Sint-Jozef","Relighting/relamping",392,"SIMPLE","RPS-1301-3 (R2)",{"$f":"basisdata[[#This Row],[Categorie maatregel]]","v":"Relighting/relamping"},null,{"$f":"basisdata[[#This Row],[Gebouw]]","v":"Campus Sint-Jozef"},"R2"]
[4554749744,"20186614.1",455449048,"Zorgnetwerk Trento","Campus Sint-Jozef","Relighting/relamping",7128,"SIMPLE","RPS-1301-4 (R2)",{"$f":"basisdata[[#This Row],[Categorie maatregel]]","v":"Relighting/relamping"},null,{"$f":"basisdata[[#This Row],[Gebouw]]","v":"Campus Sint-Jozef"},"R2"]
[4554749744,"20183583.1",455449048,"Zorgnetwerk Trento","Campus Sint-Jozef afdeling den blancquaert","Isoleren pompen/kranen/hydraulica",1618,"SIMPLE","RPS-1302-1 (R2)",{"$f":"basisdata[[#This Row],[Categorie maatregel]]","v":"Isoleren pompen/kranen/hydraulica"},null,{"$f":"basisdata[[#This Row],[Gebouw]]","v":"Campus Sint-Jozef afdeling den blancquaert"},"R2"]
[4554749744,"20183583.1",455449048,"Zorgnetwerk Trento","Campus Sint-Jozef afdeling den blancquaert","PV-panelen",3458,"SIMPLE","RPS-1302-2 (R2)",{"$f":"basisdata[[#This Row],[Categorie maatregel]]","v":"PV-panelen"},null,{"$f":"basisdata[[#This Row],[Gebouw]]","v":"Campus Sint-Jozef afdeling den blancquaert"},"R2"]
[4554749744,"20183583.1",455449048,"Zorgnetwerk Trento","Campus Sint-Jozef afdeling den blancquaert","Regeltechn.ventilatie",1065,"SIMPLE","RPS-1302-3 (R2)",{"$f":"basisdata[[#This Row],[Categorie maatregel]]","v":"Regeltechn.ventilatie"},null,{"$f":"basisdata[[#This Row],[Gebouw]]","v":"Campus Sint-Jozef afdeling den blancquaert"},"R2"]
[4554749744,"20183583.1",455449048,"Zorgnetwerk Trento","Campus Sint-Jozef afdeling den blancquaert","Relighting/relamping",14304,"SIMPLE","RPS-1302-4 (R2)",{"$f":"basisdata[[#This Row],[Categorie maatregel]]","v":"Relighting/relamping"},null,{"$f":"basisdata[[#This Row],[Gebouw]]","v":"Campus Sint-Jozef afdeling den blancquaert"},"R2"]
[4568206992,"20246272.1",456794774,"DE GAVERMEERSEN","WZC Heilige Familie - SENIORENZORG HEILIGE FAMILIE","Relighting",15743,"SIMPLE","RPS-1303-1 (R2)",{"$f":"basisdata[[#This Row],[Categorie maatregel]]","v":"Relighting"},null,{"$f":"basisdata[[#This Row],[Gebouw]]","v":"WZC Heilige Familie - SENIORENZORG HEILIGE FAMILIE"},"R2"]
[4592712366,"20227945.2",459245312,"WINTERSHOVE","Wintershove","Relighting",52272,"SIMPLE","RPS-1180-1 (R1)",{"$f":"basisdata[[#This Row],[Categorie maatregel]]","v":"Relighting"},null,{"$f":"basisdata[[#This Row],[Gebouw]]","v":"Wintershove"},"R1"]
[4629410044,"20185582.7",462915078,"Jan Yperman Ziekenhuis","Jan Yperman ziekenhuis campus Ieper","PV-panelen",100141,"SIMPLE","RPS-357-7 (R1)",{"$f":"basisdata[[#This Row],[Categorie maatregel]]","v":"PV-panelen"},null,{"$f":"basisdata[[#This Row],[Gebouw]]","v":"Jan Yperman ziekenhuis campus Ieper"},"R1"]
[4630351357,"20188024.2",463009209,"De Stap, Centrum voor Kinderzorg en Gezinsondersteuning","De Stap vzw","PV-panelen",1423,"SIMPLE","RPS-98-2 (R1)",{"$f":"basisdata[[#This Row],[Categorie maatregel]]","v":"PV-panelen"},null,{"$f":"basisdata[[#This Row],[Gebouw]]","v":"De Stap vzw"},"R1"]
[4633738431,"20213258.2",463347917,"Centrum voor Ambulante Revalidatie D.A.T.","Centrum Ambulante Revalidatie DAT","PV-panelen",5081,"SIMPLE","RPS-1027-2 (R1)",{"$f":"basisdata[[#This Row],[Categorie maatregel]]","v":"PV-panelen"},null,{"$f":"basisdata[[#This Row],[Gebouw]]","v":"Centrum Ambulante Revalidatie DAT"},"R1"]
[4642488205,"20213080.1",464222895,"Centrum Algemeen Welzijnswerk De Kempen","Hofkwartier Herentals","Overige",2126.1999999999998,"SIMPLE","VKF-1029-1 (R1)",{"$f":"basisdata[[#This Row],[Categorie maatregel]]","v":"Overige"},null,{"$f":"basisdata[[#This Row],[Gebouw]]","v":"Hofkwartier Herentals"},"R1"]
[4648364644,"20221502.1",464810538,"HOME SINT-JOZEF vzw","Home Sint-Jozef","Dakisolatie plat dak",55717.2,"SIMPLE","RPS-1181-1 (R1)",{"$f":"basisdata[[#This Row],[Categorie maatregel]]","v":"Dakisolatie plat dak"},null,{"$f":"basisdata[[#This Row],[Gebouw]]","v":"Home Sint-Jozef"},"R1"]
[4648364644,"20221502.1",464810538,"HOME SINT-JOZEF vzw","Home Sint-Jozef","PV-panelen",1897,"SIMPLE","RPS-1181-2 (R1)",{"$f":"basisdata[[#This Row],[Categorie maatregel]]","v":"PV-panelen"},null,{"$f":"basisdata[[#This Row],[Gebouw]]","v":"Home Sint-Jozef"},"R1"]
[4650875757,"20231512.2",465061649,"DE GROENE VERTE WOON EN ZORG","De Groene Verte woonzorgcentrum","PV-panelen",20346,"SIMPLE","RPS-1304-1 (R2)",{"$f":"basisdata[[#This Row],[Categorie maatregel]]","v":"PV-panelen"},null,{"$f":"basisdata[[#This Row],[Gebouw]]","v":"De Groene Verte woonzorgcentrum"},"R2"]
[4692610844,"20185973.2",468716668,"GEZONDHEIDSZORG 'BERMHERTIGHEID JESU'","B - PTC Rustenburg","Duurzame energieopslag",43200,"SIMPLE","RPS-1305-1 (R2)",{"$f":"basisdata[[#This Row],[Categorie maatregel]]","v":"Duurzame energieopslag"},null,{"$f":"basisdata[[#This Row],[Gebouw]]","v":"B - PTC Rustenburg"},"R2"]
[4692610844,"20185973.2",468716668,"GEZONDHEIDSZORG 'BERMHERTIGHEID JESU'","B - PTC Rustenburg","PV-panelen",16223,"SIMPLE","RPS-1305-2 (R2)",{"$f":"basisdata[[#This Row],[Categorie maatregel]]","v":"PV-panelen"},null,{"$f":"basisdata[[#This Row],[Gebouw]]","v":"B - PTC Rustenburg"},"R2"]
[4692610844,"20185565.5",468716668,"GEZONDHEIDSZORG 'BERMHERTIGHEID JESU'","B - PZ Onzelievevrouw","Duurzame energieopslag",54327,"SIMPLE","RPS-1306-1 (R2)",{"$f":"basisdata[[#This Row],[Categorie maatregel]]","v":"Duurzame energieopslag"},null,{"$f":"basisdata[[#This Row],[Gebouw]]","v":"B - PZ Onzelievevrouw"},"R2"]
[4692610844,"20186933.6",468716668,"GEZONDHEIDSZORG 'BERMHERTIGHEID JESU'","I-POP - PZ Heilig Hart","Duurzame energieopslag",54922,"SIMPLE","RPS-1307-1 (R2)",{"$f":"basisdata[[#This Row],[Categorie maatregel]]","v":"Duurzame energieopslag"},null,{"$f":"basisdata[[#This Row],[Gebouw]]","v":"I-POP - PZ Heilig Hart"},"R2"]
[4692610844,"20186933.6",468716668,"GEZONDHEIDSZORG 'BERMHERTIGHEID JESU'","I-POP - PZ Heilig Hart","PV-panelen",227693,"SIMPLE","RPS-1307-2 (R2)",{"$f":"basisdata[[#This Row],[Categorie maatregel]]","v":"PV-panelen"},null,{"$f":"basisdata[[#This Row],[Gebouw]]","v":"I-POP - PZ Heilig Hart"},"R2"]
[4692610844,"20186306.4",468716668,"GEZONDHEIDSZORG 'BERMHERTIGHEID JESU'","I-TUL - PVT Het Tempelhof","PV-panelen",7587,"SIMPLE","RPS-1308-1 (R2)",{"$f":"basisdata[[#This Row],[Categorie maatregel]]","v":"PV-panelen"},null,{"$f":"basisdata[[#This Row],[Gebouw]]","v":"I-TUL - PVT Het Tempelhof"},"R2"]
[4692610844,"20186306.4",468716668,"GEZONDHEIDSZORG 'BERMHERTIGHEID JESU'","I-TUL - PVT Het Tempelhof","PV-panelen",29651,"SIMPLE","RPS-1308-2 (R2)",{"$f":"basisdata[[#This Row],[Categorie maatregel]]","v":"PV-panelen"},null,{"$f":"basisdata[[#This Row],[Gebouw]]","v":"I-TUL - PVT Het Tempelhof"},"R2"]
[4690637831,"20196951.2",469037857,"Sint-Franciscusziekenhuis","Sint-Franciscusziekenhuis","PV-panelen",617034,"SIMPLE","RPS-511-2 (R1)",{"$f":"basisdata[[#This Row],[Categorie maatregel]]","v":"PV-panelen"},null,{"$f":"basisdata[[#This Row],[Gebouw]]","v":"Sint-Franciscusziekenhuis"},"R1"]
[4704009953,"20189268.2",470375071,"Centrum voor Geestelijke Gezondheidszorg Andante","Centrum voor geestelijke gezondheidszorg Andante vzw","PV-panelen",15573,"SIMPLE","RPS-1-3 (R1)",{"$f":"basisdata[[#This Row],[Categorie maatregel]]","v":"PV-panelen"},null,{"$f":"basisdata[[#This Row],[Gebouw]]","v":"Centrum voor geestelijke gezondheidszorg Andante vzw"},"R1"]
[4706998140,"20189099.1",470673890,"ZORG-SAAM ZUSTERS KINDSHEID JESU","WZC De Regenboog","PV-panelen",22912,"SIMPLE","RPS-1182-1 (R1)",{"$f":"basisdata[[#This Row],[Categorie maatregel]]","v":"PV-panelen"},null,{"$f":"basisdata[[#This Row],[Gebouw]]","v":"WZC De Regenboog"},"R1"]
[4706998140,"20189099.1",470673890,"ZORG-SAAM ZUSTERS KINDSHEID JESU","WZC De Regenboog","Relighting/relamping",14299,"SIMPLE","RPS-1182-2 (R1)",{"$f":"basisdata[[#This Row],[Categorie maatregel]]","v":"Relighting/relamping"},null,{"$f":"basisdata[[#This Row],[Gebouw]]","v":"WZC De Regenboog"},"R1"]
[4706998140,"20184867.1",470673890,"ZORG-SAAM ZUSTERS KINDSHEID JESU","WZC Ons Zomerheem","PV-panelen",46584,"SIMPLE","RPS-1183-1 (R1)",{"$f":"basisdata[[#This Row],[Categorie maatregel]]","v":"PV-panelen"},null,{"$f":"basisdata[[#This Row],[Gebouw]]","v":"WZC Ons Zomerheem"},"R1"]
[4706998140,"20184867.1",470673890,"ZORG-SAAM ZUSTERS KINDSHEID JESU","WZC Ons Zomerheem","Relighting/relamping",59621,"SIMPLE","RPS-1183-2 (R1)",{"$f":"basisdata[[#This Row],[Categorie maatregel]]","v":"Relighting/relamping"},null,{"$f":"basisdata[[#This Row],[Gebouw]]","v":"WZC Ons Zomerheem"},"R1"]
[4706998140,"20181188.1",470673890,"ZORG-SAAM ZUSTERS KINDSHEID JESU","WZC Sint-Vincentius","PV-panelen",72986,"SIMPLE","RPS-1184-1 (R1)",{"$f":"basisdata[[#This Row],[Categorie maatregel]]","v":"PV-panelen"},null,{"$f":"basisdata[[#This Row],[Gebouw]]","v":"WZC Sint-Vincentius"},"R1"]
[4706998140,"20181188.1",470673890,"ZORG-SAAM ZUSTERS KINDSHEID JESU","WZC Sint-Vincentius","Relighting/relamping",20304,"SIMPLE","RPS-1184-2 (R1)",{"$f":"basisdata[[#This Row],[Categorie maatregel]]","v":"Relighting/relamping"},null,{"$f":"basisdata[[#This Row],[Gebouw]]","v":"WZC Sint-Vincentius"},"R1"]
[4706998140,"20181492.2",470673890,"ZORG-SAAM ZUSTERS KINDSHEID JESU","WZC Sint Eligius","PV-panelen",82394,"SIMPLE","RPS-744-2 (R1)",{"$f":"basisdata[[#This Row],[Categorie maatregel]]","v":"PV-panelen"},null,{"$f":"basisdata[[#This Row],[Gebouw]]","v":"WZC Sint Eligius"},"R1"]
[4706998140,"20235940.1",470673890,"Zorg-Saam Zusters Kindsheid Jesu","WZC Sint Antonius","PV-panelen",48739,"SIMPLE","RPS-1309-1 (R2)",{"$f":"basisdata[[#This Row],[Categorie maatregel]]","v":"PV-panelen"},null,{"$f":"basisdata[[#This Row],[Gebouw]]","v":"WZC Sint Antonius"},"R2"]
[4706998140,"20237356.1",470673890,"Zorg-Saam Zusters Kindsheid Jesu","WZC Sint Elisabeth","PV-panelen",24019,"SIMPLE","RPS-1310-1 (R2)",{"$f":"basisdata[[#This Row],[Categorie maatregel]]","v":"PV-panelen"},null,{"$f":"basisdata[[#This Row],[Gebouw]]","v":"WZC Sint Elisabeth"},"R2"]
[4708345279,"20215203.2",470808603,"Centrum voor Geestelijke Gezondheidszorg Mandel en Leie","Beverlaai Kortrijk","Relighting",11580,"SIMPLE","RPS-910-2 (R1)",{"$f":"basisdata[[#This Row],[Categorie maatregel]]","v":"Relighting"},null,{"$f":"basisdata[[#This Row],[Gebouw]]","v":"Beverlaai Kortrijk"},"R1"]
[4715014531,"20224371.1",471475527,"Zilvervogel","Zilvervogel Reninge (nieuw WZC)","PV-panelen",15909,"SIMPLE","RPS-1185-1 (R1)",{"$f":"basisdata[[#This Row],[Categorie maatregel]]","v":"PV-panelen"},null,{"$f":"basisdata[[#This Row],[Gebouw]]","v":"Zilvervogel Reninge (nieuw WZC)"},"R1"]
[4722485505,"20184961.4",472222625,"Algemeen Ziekenhuis Groeninge","Campus Kennedylaan","PV-panelen",108784,"SIMPLE","RPS-1186-1 (R1)",{"$f":"basisdata[[#This Row],[Categorie maatregel]]","v":"PV-panelen"},null,{"$f":"basisdata[[#This Row],[Gebouw]]","v":"Campus Kennedylaan"},"R1"]
[4727793855,"20233487.2",472222625,"Algemeen Ziekenhuis Groeninge","Campus Kennedylaan","Warmtepompen en koeling",87809.75,"EXTENDED","RPE-1186-5 (R2)",{"$f":"basisdata[[#This Row],[Categorie maatregel]]","v":"Warmtepompen en koeling"},null,{"$f":"basisdata[[#This Row],[Gebouw]]","v":"Campus Kennedylaan"},"R2"]
[4727793855,"20248810.1",472222625,"Algemeen Ziekenhuis Groeninge","Blok F","Stookplaatsrenovatie",92975,"EXTENDED","RPE-1311-1 (R2)",{"$f":"basisdata[[#This Row],[Categorie maatregel]]","v":"Stookplaatsrenovatie"},null,{"$f":"basisdata[[#This Row],[Gebouw]]","v":"Blok F"},"R2"]
[4727793855,"20233487.3",472222625,"Algemeen Ziekenhuis Groeninge","Campus Kennedylaan","Monitoring",10422.27,"SIMPLE","RPS-1186-2 (R2)",{"$f":"basisdata[[#This Row],[Categorie maatregel]]","v":"Monitoring"},null,{"$f":"basisdata[[#This Row],[Gebouw]]","v":"Campus Kennedylaan"},"R2"]
[4727793855,"20233487.1",472222625,"Algemeen Ziekenhuis Groeninge","Campus Kennedylaan","Overige",598326,"SIMPLE","RPS-1186-3 (R2)",{"$f":"basisdata[[#This Row],[Categorie maatregel]]","v":"Overige"},null,{"$f":"basisdata[[#This Row],[Gebouw]]","v":"Campus Kennedylaan"},"R2"]
[4727793855,"20233487.3",472222625,"Algemeen Ziekenhuis Groeninge","Campus Kennedylaan","Regeltechnisch",32467.73,"SIMPLE","RPS-1186-4 (R2)",{"$f":"basisdata[[#This Row],[Categorie maatregel]]","v":"Regeltechnisch"},null,{"$f":"basisdata[[#This Row],[Gebouw]]","v":"Campus Kennedylaan"},"R2"]
[4750283918,"20243643.2",475002466,"Kinderdagverblijf Kabouterland vzw","Kabouterland - KINDERDAGVERBLIJF KABOUTERLAND","Stookplaatsrenovatie",11376,"SIMPLE","RPS-1312-1 (R2)",{"$f":"basisdata[[#This Row],[Categorie maatregel]]","v":"Stookplaatsrenovatie"},null,{"$f":"basisdata[[#This Row],[Gebouw]]","v":"Kabouterland - KINDERDAGVERBLIJF KABOUTERLAND"},"R2"]
[4752804931,"20205897.2",475254567,"Centrum voor Kinderzorg en Gezinsondersteuning Kapoentje","Brabantstraat","Relighting/relamping",4608,"SIMPLE","RPS-745-6 (R1)",{"$f":"basisdata[[#This Row],[Categorie maatregel]]","v":"Relighting/relamping"},null,{"$f":"basisdata[[#This Row],[Gebouw]]","v":"Brabantstraat"},"R1"]
[4752804931,"20206802.3",475254567,"Centrum voor Kinderzorg en Gezinsondersteuning Kapoentje","Langestraat","Relighting/relamping",63,"SIMPLE","RPS-746-6 (R1)",{"$f":"basisdata[[#This Row],[Categorie maatregel]]","v":"Relighting/relamping"},null,{"$f":"basisdata[[#This Row],[Gebouw]]","v":"Langestraat"},"R1"]
[4752804931,"20207041.2",475254567,"Centrum voor Kinderzorg en Gezinsondersteuning Kapoentje","Celtic","Relighting/relamping",4608,"SIMPLE","RPS-960-6 (R1)",{"$f":"basisdata[[#This Row],[Categorie maatregel]]","v":"Relighting/relamping"},null,{"$f":"basisdata[[#This Row],[Gebouw]]","v":"Celtic"},"R1"]
[4752804931,"20227502.2",475254567,"Centrum voor Kinderzorg en Gezinsondersteuning Kapoentje","Kapoentje Blankenberge","Relighting/relamping",1386,"SIMPLE","RPS-961-10 (R1)",{"$f":"basisdata[[#This Row],[Categorie maatregel]]","v":"Relighting/relamping"},null,{"$f":"basisdata[[#This Row],[Gebouw]]","v":"Kapoentje Blankenberge"},"R1"]
[4752804931,"20227502.2",475254567,"Centrum voor Kinderzorg en Gezinsondersteuning Kapoentje","Kapoentje Blankenberge","PV-panelen",236,"SIMPLE","RPS-961-9 (R1)",{"$f":"basisdata[[#This Row],[Categorie maatregel]]","v":"PV-panelen"},null,{"$f":"basisdata[[#This Row],[Gebouw]]","v":"Kapoentje Blankenberge"},"R1"]
[4758631840,"20237216.2",475837260,"WOON- EN ZORGCENTRUM TEN ANKER","WZC Ten Anker","Relighting",17520,"SIMPLE","RPS-1187-1 (R1)",{"$f":"basisdata[[#This Row],[Categorie maatregel]]","v":"Relighting"},null,{"$f":"basisdata[[#This Row],[Gebouw]]","v":"WZC Ten Anker"},"R1"]
[4758631840,"20237216.2",475837260,"WOON- EN ZORGCENTRUM TEN ANKER","WZC Ten Anker","Relighting",5400,"SIMPLE","RPS-1187-2 (R1)",{"$f":"basisdata[[#This Row],[Categorie maatregel]]","v":"Relighting"},null,{"$f":"basisdata[[#This Row],[Gebouw]]","v":"WZC Ten Anker"},"R1"]
[4758631840,"20237216.2",475837260,"WOON- EN ZORGCENTRUM TEN ANKER","WZC Ten Anker","Relighting",38736,"SIMPLE","RPS-1187-3 (R1)",{"$f":"basisdata[[#This Row],[Categorie maatregel]]","v":"Relighting"},null,{"$f":"basisdata[[#This Row],[Gebouw]]","v":"WZC Ten Anker"},"R1"]
[5059700794,"20192090.3",505931808,"Algemeen Ziekenhuis Delta","AZ Delta Torhout","PV-panelen",24300,"EXTENDED","RPE-1204-1 (R1)",{"$f":"basisdata[[#This Row],[Categorie maatregel]]","v":"PV-panelen"},null,{"$f":"basisdata[[#This Row],[Gebouw]]","v":"AZ Delta Torhout"},"R1"]
[5059700794,"20212642.1",505931808,"Algemeen Ziekenhuis Delta","AZ Delta Rumbeke","PV-panelen",62500,"EXTENDED","RPE-1205-1 (R1)",{"$f":"basisdata[[#This Row],[Categorie maatregel]]","v":"PV-panelen"},null,{"$f":"basisdata[[#This Row],[Gebouw]]","v":"AZ Delta Rumbeke"},"R1"]
[5059700794,"20192720.3",505931808,"Algemeen Ziekenhuis Delta","AZ Delta Menen","PV-panelen",24300,"EXTENDED","RPE-750-3 (R1)",{"$f":"basisdata[[#This Row],[Categorie maatregel]]","v":"PV-panelen"},null,{"$f":"basisdata[[#This Row],[Gebouw]]","v":"AZ Delta Menen"},"R1"]
[5059700794,"20197462.3",505931808,"Algemeen Ziekenhuis Delta","AZ Delta Roeselare","PV-panelen",55687.5,"EXTENDED","RPE-751-4 (R1)",{"$f":"basisdata[[#This Row],[Categorie maatregel]]","v":"PV-panelen"},null,{"$f":"basisdata[[#This Row],[Gebouw]]","v":"AZ Delta Roeselare"},"R1"]
[5065256044,"20197462.5",505931808,"Algemeen Ziekenhuis Delta","AZ Delta Roeselare","Relighting/relamping",112560,"SIMPLE","RPS-751-10 (R2)",{"$f":"basisdata[[#This Row],[Categorie maatregel]]","v":"Relighting/relamping"},null,{"$f":"basisdata[[#This Row],[Gebouw]]","v":"AZ Delta Roeselare"},"R2"]
[5065256044,"20192090.6",505931808,"Algemeen Ziekenhuis Delta","AZ Delta Torhout","Relighting/relamping",134400,"SIMPLE","RPS-752-8 (R2)",{"$f":"basisdata[[#This Row],[Categorie maatregel]]","v":"Relighting/relamping"},null,{"$f":"basisdata[[#This Row],[Gebouw]]","v":"AZ Delta Torhout"},"R2"]
[5072735905,"20234312.1",506679795,"MeeGaan","tBruut","PV-panelen",10534,"SIMPLE","RPS-1238-4 (R2)",{"$f":"basisdata[[#This Row],[Categorie maatregel]]","v":"PV-panelen"},null,{"$f":"basisdata[[#This Row],[Gebouw]]","v":"tBruut"},"R2"]
[5072735905,"20234312.1",506679795,"MeeGaan","tBruut","Relighting",468,"SIMPLE","RPS-1238-5 (R2)",{"$f":"basisdata[[#This Row],[Categorie maatregel]]","v":"Relighting"},null,{"$f":"basisdata[[#This Row],[Gebouw]]","v":"tBruut"},"R2"]
[5449838742,"20236747.1",544945604,"HET TUINKABOUTERHUISJE","Het Tuin Kabouterhuisje","Buitengevel",68653.8,"SIMPLE","RPS-1188-1 (R1)",{"$f":"basisdata[[#This Row],[Categorie maatregel]]","v":"Buitengevel"},null,{"$f":"basisdata[[#This Row],[Gebouw]]","v":"Het Tuin Kabouterhuisje"},"R1"]
[5449838742,"20236747.1",544945604,"HET TUINKABOUTERHUISJE","Het Tuin Kabouterhuisje","Dakisolatie plat dak",32982.6,"SIMPLE","RPS-1188-2 (R1)",{"$f":"basisdata[[#This Row],[Categorie maatregel]]","v":"Dakisolatie plat dak"},null,{"$f":"basisdata[[#This Row],[Gebouw]]","v":"Het Tuin Kabouterhuisje"},"R1"]
[5449838742,"20236747.1",544945604,"HET TUINKABOUTERHUISJE","Het Tuin Kabouterhuisje","Monitoring",150,"SIMPLE","RPS-1188-3 (R1)",{"$f":"basisdata[[#This Row],[Categorie maatregel]]","v":"Monitoring"},null,{"$f":"basisdata[[#This Row],[Gebouw]]","v":"Het Tuin Kabouterhuisje"},"R1"]
[5449838742,"20236747.1",544945604,"HET TUINKABOUTERHUISJE","Het Tuin Kabouterhuisje","PV-panelen",11595,"SIMPLE","RPS-1188-4 (R1)",{"$f":"basisdata[[#This Row],[Categorie maatregel]]","v":"PV-panelen"},null,{"$f":"basisdata[[#This Row],[Gebouw]]","v":"Het Tuin Kabouterhuisje"},"R1"]
[5449838742,"20236747.1",544945604,"HET TUINKABOUTERHUISJE","Het Tuin Kabouterhuisje","Relighting",993,"SIMPLE","RPS-1188-5 (R1)",{"$f":"basisdata[[#This Row],[Categorie maatregel]]","v":"Relighting"},null,{"$f":"basisdata[[#This Row],[Gebouw]]","v":"Het Tuin Kabouterhuisje"},"R1"]
[5449838742,"20236747.1",544945604,"HET TUINKABOUTERHUISJE","Het Tuin Kabouterhuisje","Renovatie ventilatie",8220,"SIMPLE","RPS-1188-6 (R1)",{"$f":"basisdata[[#This Row],[Categorie maatregel]]","v":"Renovatie ventilatie"},null,{"$f":"basisdata[[#This Row],[Gebouw]]","v":"Het Tuin Kabouterhuisje"},"R1"]
[5449838742,"20236747.1",544945604,"HET TUINKABOUTERHUISJE","Het Tuin Kabouterhuisje","Schrijnwerkrenovatie Hout",28894.799999999999,"SIMPLE","RPS-1188-7 (R1)",{"$f":"basisdata[[#This Row],[Categorie maatregel]]","v":"Schrijnwerkrenovatie Hout"},null,{"$f":"basisdata[[#This Row],[Gebouw]]","v":"Het Tuin Kabouterhuisje"},"R1"]
[5449838742,"20236747.1",544945604,"HET TUINKABOUTERHUISJE","Het Tuin Kabouterhuisje","Stookplaatsrenovatie",2641,"SIMPLE","RPS-1188-8 (R1)",{"$f":"basisdata[[#This Row],[Categorie maatregel]]","v":"Stookplaatsrenovatie"},null,{"$f":"basisdata[[#This Row],[Gebouw]]","v":"Het Tuin Kabouterhuisje"},"R1"]
[5449838742,"20236747.1",544945604,"HET TUINKABOUTERHUISJE","Het Tuin Kabouterhuisje","Vloerisolatie (onder de vloerplaat)",38368.800000000003,"SIMPLE","RPS-1188-9 (R1)",{"$f":"basisdata[[#This Row],[Categorie maatregel]]","v":"Vloerisolatie (onder de vloerplaat)"},null,{"$f":"basisdata[[#This Row],[Gebouw]]","v":"Het Tuin Kabouterhuisje"},"R1"]
[6426528492,"20203615.3",642602234,"Havinet","Zonnestraal vzw, gebouw C","PV-panelen",5722,"EXTENDED","RPE-1189-1 (R1)",{"$f":"basisdata[[#This Row],[Categorie maatregel]]","v":"PV-panelen"},null,{"$f":"basisdata[[#This Row],[Gebouw]]","v":"Zonnestraal vzw, gebouw C"},"R1"]
[6426528492,"20187988.1",642602234,"Havinet","Woonwerking","PV-panelen",6849,"SIMPLE","RPS-1137-1 (R1)",{"$f":"basisdata[[#This Row],[Categorie maatregel]]","v":"PV-panelen"},null,{"$f":"basisdata[[#This Row],[Gebouw]]","v":"Woonwerking"},"R1"]
[6426528492,"20181255.1",642602234,"Havinet","De Valier Molenstraat","Relighting/relamping",225,"SIMPLE","RPS-1138-1 (R1)",{"$f":"basisdata[[#This Row],[Categorie maatregel]]","v":"Relighting/relamping"},null,{"$f":"basisdata[[#This Row],[Gebouw]]","v":"De Valier Molenstraat"},"R1"]
[6426528492,"20189214.1",642602234,"Havinet","Huis Eygen","PV-panelen",3099,"SIMPLE","RPS-1139-1 (R1)",{"$f":"basisdata[[#This Row],[Categorie maatregel]]","v":"PV-panelen"},null,{"$f":"basisdata[[#This Row],[Gebouw]]","v":"Huis Eygen"},"R1"]
[6426528492,"20189214.1",642602234,"Havinet","Huis Eygen","Relighting/relamping",6279,"SIMPLE","RPS-1139-2 (R1)",{"$f":"basisdata[[#This Row],[Categorie maatregel]]","v":"Relighting/relamping"},null,{"$f":"basisdata[[#This Row],[Gebouw]]","v":"Huis Eygen"},"R1"]
[6426528492,"20183311.1",642602234,"Havinet","Valier 2","PV-panelen",17432,"SIMPLE","RPS-1140-1 (R1)",{"$f":"basisdata[[#This Row],[Categorie maatregel]]","v":"PV-panelen"},null,{"$f":"basisdata[[#This Row],[Gebouw]]","v":"Valier 2"},"R1"]
[6426528492,"20183311.1",642602234,"Havinet","Valier 2","Relighting/relamping",8877,"SIMPLE","RPS-1140-2 (R1)",{"$f":"basisdata[[#This Row],[Categorie maatregel]]","v":"Relighting/relamping"},null,{"$f":"basisdata[[#This Row],[Gebouw]]","v":"Valier 2"},"R1"]
[6426528492,"20181571.1",642602234,"Havinet","Valier 3","PV-panelen",1354,"SIMPLE","RPS-1141-1 (R1)",{"$f":"basisdata[[#This Row],[Categorie maatregel]]","v":"PV-panelen"},null,{"$f":"basisdata[[#This Row],[Gebouw]]","v":"Valier 3"},"R1"]
[6426528492,"20181571.1",642602234,"Havinet","Valier 3","Relighting/relamping",283,"SIMPLE","RPS-1141-2 (R1)",{"$f":"basisdata[[#This Row],[Categorie maatregel]]","v":"Relighting/relamping"},null,{"$f":"basisdata[[#This Row],[Gebouw]]","v":"Valier 3"},"R1"]
[6426528492,"20181571.1",642602234,"Havinet","Valier 3","Relighting/relamping",525,"SIMPLE","RPS-1141-3 (R1)",{"$f":"basisdata[[#This Row],[Categorie maatregel]]","v":"Relighting/relamping"},null,{"$f":"basisdata[[#This Row],[Gebouw]]","v":"Valier 3"},"R1"]
[6426528492,"20181571.1",642602234,"Havinet","Valier 3","Relighting/relamping",998,"SIMPLE","RPS-1141-4 (R1)",{"$f":"basisdata[[#This Row],[Categorie maatregel]]","v":"Relighting/relamping"},null,{"$f":"basisdata[[#This Row],[Gebouw]]","v":"Valier 3"},"R1"]
[6426528492,"20182131.1",642602234,"Havinet","Valier 4","PV-panelen",8304,"SIMPLE","RPS-1142-1 (R1)",{"$f":"basisdata[[#This Row],[Categorie maatregel]]","v":"PV-panelen"},null,{"$f":"basisdata[[#This Row],[Gebouw]]","v":"Valier 4"},"R1"]
[6426528492,"20182131.1",642602234,"Havinet","Valier 4","Relighting/relamping",6970.2,"SIMPLE","RPS-1142-2 (R1)",{"$f":"basisdata[[#This Row],[Categorie maatregel]]","v":"Relighting/relamping"},null,{"$f":"basisdata[[#This Row],[Gebouw]]","v":"Valier 4"},"R1"]
[6548978118,"20196770.2",654847196,"Integro","INTEGRO campus Immaculata","PV-panelen",7604,"SIMPLE","RPS-1190-1 (R1)",{"$f":"basisdata[[#This Row],[Categorie maatregel]]","v":"PV-panelen"},null,{"$f":"basisdata[[#This Row],[Gebouw]]","v":"INTEGRO campus Immaculata"},"R1"]
[6548978118,"20193140.3",654847196,"Integro","INTEGRO campus St. Jozef","PV-panelen",31603,"SIMPLE","RPS-475-4 (R1)",{"$f":"basisdata[[#This Row],[Categorie maatregel]]","v":"PV-panelen"},null,{"$f":"basisdata[[#This Row],[Gebouw]]","v":"INTEGRO campus St. Jozef"},"R1"]
[6548978118,"20192310.3",654847196,"Integro","INTEGRO campus Voorzienigheid","PV-panelen",131759,"SIMPLE","RPS-476-3 (R1)",{"$f":"basisdata[[#This Row],[Categorie maatregel]]","v":"PV-panelen"},null,{"$f":"basisdata[[#This Row],[Gebouw]]","v":"INTEGRO campus Voorzienigheid"},"R1"]
[6548978118,"20219405.4",654847196,"Integro","INTEGRO campus Cecilia","Relighting",12000,"SIMPLE","RPS-862-7 (R1)",{"$f":"basisdata[[#This Row],[Categorie maatregel]]","v":"Relighting"},null,{"$f":"basisdata[[#This Row],[Gebouw]]","v":"INTEGRO campus Cecilia"},"R1"]
[6846643418,"20197606.2",684613726,"OCMW Vereniging SAKURA","WZC Hof van Eksaarde","PV-panelen",14407,"SIMPLE","RPS-506-3 (R1)",{"$f":"basisdata[[#This Row],[Categorie maatregel]]","v":"PV-panelen"},null,{"$f":"basisdata[[#This Row],[Gebouw]]","v":"WZC Hof van Eksaarde"},"R1"]
[6854297318,"20183103.3",684613726,"OCMW Vereniging SAKURA","wzc Ter Durme","PV-panelen",8161,"SIMPLE","RPS-507-3 (R1)",{"$f":"basisdata[[#This Row],[Categorie maatregel]]","v":"PV-panelen"},null,{"$f":"basisdata[[#This Row],[Gebouw]]","v":"wzc Ter Durme"},"R1"]
[6846643418,"20188161.2",684613726,"OCMW Vereniging SAKURA","WZC Ter Moere","PV-panelen",942,"SIMPLE","RPS-508-3 (R1)",{"$f":"basisdata[[#This Row],[Categorie maatregel]]","v":"PV-panelen"},null,{"$f":"basisdata[[#This Row],[Gebouw]]","v":"WZC Ter Moere"},"R1"]
[6865884057,"20196762.2",686537789,"Woon- en Zorgbedrijf Wervik","Woonzorgcentrum Het Pardoen","PV-panelen",23755,"SIMPLE","RPS-1191-1 (R1)",{"$f":"basisdata[[#This Row],[Categorie maatregel]]","v":"PV-panelen"},null,{"$f":"basisdata[[#This Row],[Gebouw]]","v":"Woonzorgcentrum Het Pardoen"},"R1"]
[6865884057,"20195149.1",686537789,"Woon- en Zorgbedrijf Wervik","Dienstencentrum De Spie","PV-panelen",7216,"SIMPLE","RPS-1313-1 (R2)",{"$f":"basisdata[[#This Row],[Categorie maatregel]]","v":"PV-panelen"},null,{"$f":"basisdata[[#This Row],[Gebouw]]","v":"Dienstencentrum De Spie"},"R2"]
[6865884057,"20193371.2",686537789,"Woon- en Zorgbedrijf Wervik","Sint-Janshospitaal","Isoleren pompen/kranen/hydraulica",1817,"SIMPLE","RPS-1314-1 (R2)",{"$f":"basisdata[[#This Row],[Categorie maatregel]]","v":"Isoleren pompen/kranen/hydraulica"},null,{"$f":"basisdata[[#This Row],[Gebouw]]","v":"Sint-Janshospitaal"},"R2"]
[6865884057,"20193371.2",686537789,"Woon- en Zorgbedrijf Wervik","Sint-Janshospitaal","Vervangen pompen",2400,"SIMPLE","RPS-1314-2 (R2)",{"$f":"basisdata[[#This Row],[Categorie maatregel]]","v":"Vervangen pompen"},null,{"$f":"basisdata[[#This Row],[Gebouw]]","v":"Sint-Janshospitaal"},"R2"]
[6917655344,"20237804.3",691714918,"VIRO vzw","Ons Tehuis - ADO-huis","PV-panelen",8759,"SIMPLE","RPS-1192-1 (R1)",{"$f":"basisdata[[#This Row],[Categorie maatregel]]","v":"PV-panelen"},null,{"$f":"basisdata[[#This Row],[Gebouw]]","v":"Ons Tehuis - ADO-huis"},"R1"]
[6917655344,"20233028.3",691714918,"VIRO","Ons Tehuis - Hoofdgebouw","Dakisolatie plat dak",11400,"SIMPLE","RPS-1193-1 (R1)",{"$f":"basisdata[[#This Row],[Categorie maatregel]]","v":"Dakisolatie plat dak"},null,{"$f":"basisdata[[#This Row],[Gebouw]]","v":"Ons Tehuis - Hoofdgebouw"},"R1"]
[6917655344,"20233028.3",691714918,"VIRO","Ons Tehuis - Hoofdgebouw","PV-panelen",7726,"SIMPLE","RPS-1193-2 (R1)",{"$f":"basisdata[[#This Row],[Categorie maatregel]]","v":"PV-panelen"},null,{"$f":"basisdata[[#This Row],[Gebouw]]","v":"Ons Tehuis - Hoofdgebouw"},"R1"]
[6917655344,"20233028.3",691714918,"VIRO","Ons Tehuis - Hoofdgebouw","Relighting",22896,"SIMPLE","RPS-1193-3 (R1)",{"$f":"basisdata[[#This Row],[Categorie maatregel]]","v":"Relighting"},null,{"$f":"basisdata[[#This Row],[Gebouw]]","v":"Ons Tehuis - Hoofdgebouw"},"R1"]
[6917655344,"20233028.3",691714918,"VIRO","Ons Tehuis - Hoofdgebouw","Relighting",5760,"SIMPLE","RPS-1193-4 (R1)",{"$f":"basisdata[[#This Row],[Categorie maatregel]]","v":"Relighting"},null,{"$f":"basisdata[[#This Row],[Gebouw]]","v":"Ons Tehuis - Hoofdgebouw"},"R1"]
[6917655344,"20233028.3",691714918,"VIRO","Ons Tehuis - Hoofdgebouw","Relighting",11075,"SIMPLE","RPS-1193-5 (R1)",{"$f":"basisdata[[#This Row],[Categorie maatregel]]","v":"Relighting"},null,{"$f":"basisdata[[#This Row],[Gebouw]]","v":"Ons Tehuis - Hoofdgebouw"},"R1"]
[6917655344,"20233028.3",691714918,"VIRO","Ons Tehuis - Hoofdgebouw","Warmtepompen en koeling",411600,"SIMPLE","RPS-1193-6 (R1)",{"$f":"basisdata[[#This Row],[Categorie maatregel]]","v":"Warmtepompen en koeling"},null,{"$f":"basisdata[[#This Row],[Gebouw]]","v":"Ons Tehuis - Hoofdgebouw"},"R1"]
[6954260481,"20182189.1",694597697,"WZG Voorkempen","Dagverzorgingscentrum 't Dorp","Relighting/relamping",684,"SIMPLE","RPS-1315-1 (R2)",{"$f":"basisdata[[#This Row],[Categorie maatregel]]","v":"Relighting/relamping"},null,{"$f":"basisdata[[#This Row],[Gebouw]]","v":"Dagverzorgingscentrum 't Dorp"},"R2"]
[6954260481,"20182189.1",694597697,"WZG Voorkempen","Dagverzorgingscentrum 't Dorp","Relighting/relamping",443,"SIMPLE","RPS-1315-2 (R2)",{"$f":"basisdata[[#This Row],[Categorie maatregel]]","v":"Relighting/relamping"},null,{"$f":"basisdata[[#This Row],[Gebouw]]","v":"Dagverzorgingscentrum 't Dorp"},"R2"]
[7005280503,"20185296.1",699699701,"Groep Philippus Neri Geestelijke Gezondheidszorg","De Pelgrim","Isoleren leidingen",545,"SIMPLE","RPS-1316-1 (R2)",{"$f":"basisdata[[#This Row],[Categorie maatregel]]","v":"Isoleren leidingen"},null,{"$f":"basisdata[[#This Row],[Gebouw]]","v":"De Pelgrim"},"R2"]
[7005280503,"20183568.1",699699701,"Groep Philippus Neri Geestelijke Gezondheidszorg","Onthaal en cafetaria","Isoleren leidingen",2108,"SIMPLE","RPS-1317-1 (R2)",{"$f":"basisdata[[#This Row],[Categorie maatregel]]","v":"Isoleren leidingen"},null,{"$f":"basisdata[[#This Row],[Gebouw]]","v":"Onthaal en cafetaria"},"R2"]
[7005280503,"20183568.1",699699701,"Groep Philippus Neri Geestelijke Gezondheidszorg","Onthaal en cafetaria","Relighting/relamping",249,"SIMPLE","RPS-1317-2 (R2)",{"$f":"basisdata[[#This Row],[Categorie maatregel]]","v":"Relighting/relamping"},null,{"$f":"basisdata[[#This Row],[Gebouw]]","v":"Onthaal en cafetaria"},"R2"]
[7005280503,"20189039.3",699699701,"Groep Philippus Neri Geestelijke Gezondheidszorg","Gebouw I","Isoleren pompen/kranen/hydraulica",652,"SIMPLE","RPS-778-4 (R2)",{"$f":"basisdata[[#This Row],[Categorie maatregel]]","v":"Isoleren pompen/kranen/hydraulica"},null,{"$f":"basisdata[[#This Row],[Gebouw]]","v":"Gebouw I"},"R2"]
[7005280503,"20189039.3",699699701,"Groep Philippus Neri Geestelijke Gezondheidszorg","Gebouw I","Relighting/relamping",4132.2,"SIMPLE","RPS-778-5 (R2)",{"$f":"basisdata[[#This Row],[Categorie maatregel]]","v":"Relighting/relamping"},null,{"$f":"basisdata[[#This Row],[Gebouw]]","v":"Gebouw I"},"R2"]
[7005280503,"20189039.3",699699701,"Groep Philippus Neri Geestelijke Gezondheidszorg","Gebouw I","Relighting/relamping",71496.600000000006,"SIMPLE","RPS-778-6 (R2)",{"$f":"basisdata[[#This Row],[Categorie maatregel]]","v":"Relighting/relamping"},null,{"$f":"basisdata[[#This Row],[Gebouw]]","v":"Gebouw I"},"R2"]
[7005280503,"20185734.3",699699701,"Groep Philippus Neri Geestelijke Gezondheidszorg","Paviljoen A, B, C, G","Relighting/relamping",64048.800000000003,"SIMPLE","RPS-780-7 (R2)",{"$f":"basisdata[[#This Row],[Categorie maatregel]]","v":"Relighting/relamping"},null,{"$f":"basisdata[[#This Row],[Gebouw]]","v":"Paviljoen A, B, C, G"},"R2"]
[7005280503,"20185734.3",699699701,"Groep Philippus Neri Geestelijke Gezondheidszorg","Paviljoen A, B, C, G","Relighting/relamping",55359.6,"SIMPLE","RPS-780-8 (R2)",{"$f":"basisdata[[#This Row],[Categorie maatregel]]","v":"Relighting/relamping"},null,{"$f":"basisdata[[#This Row],[Gebouw]]","v":"Paviljoen A, B, C, G"},"R2"]
[7005280503,"20185734.3",699699701,"Groep Philippus Neri Geestelijke Gezondheidszorg","Paviljoen A, B, C, G","Relighting/relamping",11904,"SIMPLE","RPS-780-9 (R2)",{"$f":"basisdata[[#This Row],[Categorie maatregel]]","v":"Relighting/relamping"},null,{"$f":"basisdata[[#This Row],[Gebouw]]","v":"Paviljoen A, B, C, G"},"R2"]
[7005280503,"20182097.3",699699701,"Groep Philippus Neri Geestelijke Gezondheidszorg","Gebouw D, DA, E, F, H","Renovatie ventilatie",33433.800000000003,"SIMPLE","RPS-963-10 (R2)",{"$f":"basisdata[[#This Row],[Categorie maatregel]]","v":"Renovatie ventilatie"},null,{"$f":"basisdata[[#This Row],[Gebouw]]","v":"Gebouw D, DA, E, F, H"},"R2"]
[7005280503,"20182097.3",699699701,"Groep Philippus Neri Geestelijke Gezondheidszorg","Gebouw D, DA, E, F, H","Relighting/relamping",71895.600000000006,"SIMPLE","RPS-963-8 (R2)",{"$f":"basisdata[[#This Row],[Categorie maatregel]]","v":"Relighting/relamping"},null,{"$f":"basisdata[[#This Row],[Gebouw]]","v":"Gebouw D, DA, E, F, H"},"R2"]
[7005280503,"20182097.3",699699701,"Groep Philippus Neri Geestelijke Gezondheidszorg","Gebouw D, DA, E, F, H","Relighting/relamping",71191.8,"SIMPLE","RPS-963-9 (R2)",{"$f":"basisdata[[#This Row],[Categorie maatregel]]","v":"Relighting/relamping"},null,{"$f":"basisdata[[#This Row],[Gebouw]]","v":"Gebouw D, DA, E, F, H"},"R2"]
[7005280503,"20186025.2",699699701,"Groep Philippus Neri Geestelijke Gezondheidszorg","PVT Casa Neri","Relighting/relamping",2183.4,"SIMPLE","RPS-964-3 (R2)",{"$f":"basisdata[[#This Row],[Categorie maatregel]]","v":"Relighting/relamping"},null,{"$f":"basisdata[[#This Row],[Gebouw]]","v":"PVT Casa Neri"},"R2"]
[7169784794,"20184480.1",716915518,"WOONZORGNETWERK SPIRIT","Woonzorgcentrum Avondrust","Monitoring",2592,"SIMPLE","RPS-1194-1 (R1)",{"$f":"basisdata[[#This Row],[Categorie maatregel]]","v":"Monitoring"},null,{"$f":"basisdata[[#This Row],[Gebouw]]","v":"Woonzorgcentrum Avondrust"},"R1"]
[7169784794,"20184480.1",716915518,"WOONZORGNETWERK SPIRIT","Woonzorgcentrum Avondrust","Monitoring",6300,"SIMPLE","RPS-1194-2 (R1)",{"$f":"basisdata[[#This Row],[Categorie maatregel]]","v":"Monitoring"},null,{"$f":"basisdata[[#This Row],[Gebouw]]","v":"Woonzorgcentrum Avondrust"},"R1"]
[7169784794,"20184480.1",716915518,"WOONZORGNETWERK SPIRIT","Woonzorgcentrum Avondrust","Relighting/relamping",3164,"SIMPLE","RPS-1194-3 (R1)",{"$f":"basisdata[[#This Row],[Categorie maatregel]]","v":"Relighting/relamping"},null,{"$f":"basisdata[[#This Row],[Gebouw]]","v":"Woonzorgcentrum Avondrust"},"R1"]
[7169784794,"20222185.1",716915518,"WOONZORGNETWERK SPIRIT","WZC Sint Godelieve","Dakisolatie hellend dak",52008,"SIMPLE","RPS-1195-1 (R1)",{"$f":"basisdata[[#This Row],[Categorie maatregel]]","v":"Dakisolatie hellend dak"},null,{"$f":"basisdata[[#This Row],[Gebouw]]","v":"WZC Sint Godelieve"},"R1"]
[7169784794,"20222185.3",716915518,"WOONZORGNETWERK SPIRIT","WZC Sint Godelieve","PV-panelen",41592,"SIMPLE","RPS-1195-2 (R2)",{"$f":"basisdata[[#This Row],[Categorie maatregel]]","v":"PV-panelen"},null,{"$f":"basisdata[[#This Row],[Gebouw]]","v":"WZC Sint Godelieve"},"R2"]
[7169784794,"20221669.1",716915518,"WOONZORGNETWERK SPIRIT","WZC Avondrust-verwijderen","PV-panelen",21380,"SIMPLE","RPS-1318-1 (R2)",{"$f":"basisdata[[#This Row],[Categorie maatregel]]","v":"PV-panelen"},null,{"$f":"basisdata[[#This Row],[Gebouw]]","v":"WZC Avondrust-verwijderen"},"R2"]
[7169784794,"20223961.1",716915518,"WOONZORGNETWERK SPIRIT","WZC Regina Coeli","PV-panelen",22875,"SIMPLE","RPS-1319-1 (R2)",{"$f":"basisdata[[#This Row],[Categorie maatregel]]","v":"PV-panelen"},null,{"$f":"basisdata[[#This Row],[Gebouw]]","v":"WZC Regina Coeli"},"R2"]
[7917243016,"20227571.1",791661342,"Xplo vzw","ROE Leliestraat","PV-panelen",1838,"SIMPLE","RPS-1196-1 (R1)",{"$f":"basisdata[[#This Row],[Categorie maatregel]]","v":"PV-panelen"},null,{"$f":"basisdata[[#This Row],[Gebouw]]","v":"ROE Leliestraat"},"R1"]
[7917243016,"20181510.2",791661342,"OOOC XPLO","WER Onthaal vzw en leefgroepen OOOC De Wijzer","PV-panelen",6495,"SIMPLE","RPS-1197-1 (R1)",{"$f":"basisdata[[#This Row],[Categorie maatregel]]","v":"PV-panelen"},null,{"$f":"basisdata[[#This Row],[Gebouw]]","v":"WER Onthaal vzw en leefgroepen OOOC De Wijzer"},"R1"]
[7990618568,"20239176.3",798998896,"Medisch Huis Lange Leem 385","Huisartsengroep lange leem 385","PV-panelen",1673,"SIMPLE","RPS-1198-1 (R1)",{"$f":"basisdata[[#This Row],[Categorie maatregel]]","v":"PV-panelen"},null,{"$f":"basisdata[[#This Row],[Gebouw]]","v":"Huisartsengroep lange leem 385"},"R1"]
[7990618568,"20239176.3",798998896,"Medisch Huis Lange Leem 385","Huisartsengroep lange leem 385","Relighting",1208,"SIMPLE","RPS-1198-2 (R1)",{"$f":"basisdata[[#This Row],[Categorie maatregel]]","v":"Relighting"},null,{"$f":"basisdata[[#This Row],[Gebouw]]","v":"Huisartsengroep lange leem 385"},"R1"]
[8218095179,"20231039.2",821734213,"AZ St.-Elisabeth Herentals VZW","Ziekenhuis","PV-panelen",141452,"SIMPLE","RPS-1199-1 (R1)",{"$f":"basisdata[[#This Row],[Categorie maatregel]]","v":"PV-panelen"},null,{"$f":"basisdata[[#This Row],[Gebouw]]","v":"Ziekenhuis"},"R1"]
[8442550218,"20185494.2",844179716,"AZ Sint-Dimpna","Sint-Dimpna Ziekenhuis Geel","PV-panelen",186262,"SIMPLE","RPS-462-4 (R1)",{"$f":"basisdata[[#This Row],[Categorie maatregel]]","v":"PV-panelen"},null,{"$f":"basisdata[[#This Row],[Gebouw]]","v":"Sint-Dimpna Ziekenhuis Geel"},"R1"]
[8505409179,"20214940.1",850465613,"OPENBAAR PSYCHIATRISCH ZORGCENTRUM GEEL","Gebouw 2012 Pas 230","PV-panelen",5368,"SIMPLE","RPS-1320-1 (R2)",{"$f":"basisdata[[#This Row],[Categorie maatregel]]","v":"PV-panelen"},null,{"$f":"basisdata[[#This Row],[Gebouw]]","v":"Gebouw 2012 Pas 230"},"R2"]
[8613373140,"20187994.4",861262010,"Zorg en onderwijs De Hagewinde","Kleuterwerking","PV-panelen",1757,"SIMPLE","RPS-216-2 (R1)",{"$f":"basisdata[[#This Row],[Categorie maatregel]]","v":"PV-panelen"},null,{"$f":"basisdata[[#This Row],[Gebouw]]","v":"Kleuterwerking"},"R1"]
[8613373140,"20196334.3",861262010,"Zorg en onderwijs De Hagewinde","Paviljoen Arlechino/Tarmac","PV-panelen",13479,"SIMPLE","RPS-217-8 (R1)",{"$f":"basisdata[[#This Row],[Categorie maatregel]]","v":"PV-panelen"},null,{"$f":"basisdata[[#This Row],[Gebouw]]","v":"Paviljoen Arlechino/Tarmac"},"R1"]
[8613373140,"20186794.4",861262010,"Zorg en onderwijs De Hagewinde","Paviljoen Tijl/Nele","PV-panelen",13479,"SIMPLE","RPS-219-9 (R1)",{"$f":"basisdata[[#This Row],[Categorie maatregel]]","v":"PV-panelen"},null,{"$f":"basisdata[[#This Row],[Gebouw]]","v":"Paviljoen Tijl/Nele"},"R1"]
[8613373140,"20183537.3",861262010,"Zorg en onderwijs De Hagewinde","Zorggroep De Ark/Atelier","PV-panelen",1474,"SIMPLE","RPS-221-3 (R1)",{"$f":"basisdata[[#This Row],[Categorie maatregel]]","v":"PV-panelen"},null,{"$f":"basisdata[[#This Row],[Gebouw]]","v":"Zorggroep De Ark/Atelier"},"R1"]
[8613373140,"20181737.3",861262010,"Zorg en onderwijs De Hagewinde","Zorggroep Pinocchio","PV-panelen",2466,"SIMPLE","RPS-223-5 (R1)",{"$f":"basisdata[[#This Row],[Categorie maatregel]]","v":"PV-panelen"},null,{"$f":"basisdata[[#This Row],[Gebouw]]","v":"Zorggroep Pinocchio"},"R1"]
[8613373140,"20187099.3",861262010,"Zorg en onderwijs De Hagewinde","Kamertraining Luikstraat","PV-panelen",1331,"SIMPLE","RPS-361-3 (R1)",{"$f":"basisdata[[#This Row],[Categorie maatregel]]","v":"PV-panelen"},null,{"$f":"basisdata[[#This Row],[Gebouw]]","v":"Kamertraining Luikstraat"},"R1"]
[8617562957,"20211413.1",861680989,"De Bolster","De Bolster Zwalm : De Boskant","Monitoring",1880,"SIMPLE","RPS-1321-1 (R2)",{"$f":"basisdata[[#This Row],[Categorie maatregel]]","v":"Monitoring"},null,{"$f":"basisdata[[#This Row],[Gebouw]]","v":"De Bolster Zwalm : De Boskant"},"R2"]
[8617562957,"20211413.1",861680989,"De Bolster","De Bolster Zwalm : De Boskant","Vervangen pompen",4200,"SIMPLE","RPS-1321-2 (R2)",{"$f":"basisdata[[#This Row],[Categorie maatregel]]","v":"Vervangen pompen"},null,{"$f":"basisdata[[#This Row],[Gebouw]]","v":"De Bolster Zwalm : De Boskant"},"R2"]
[8624579618,"20183611.6",862382656,"ZIEKENHUIS AAN DE STROOM","ZNA Middelheim","PV-panelen",80160,"EXTENDED","RPE-286-4 (R1)",{"$f":"basisdata[[#This Row],[Categorie maatregel]]","v":"PV-panelen"},null,{"$f":"basisdata[[#This Row],[Gebouw]]","v":"ZNA Middelheim"},"R1"]
[8624579618,"20188925.6",862382656,"ZIEKENHUIS AAN DE STROOM","ZNA Jan Palfijn","PV-panelen",89040,"EXTENDED","RPE-473-6 (R1)",{"$f":"basisdata[[#This Row],[Categorie maatregel]]","v":"PV-panelen"},null,{"$f":"basisdata[[#This Row],[Gebouw]]","v":"ZNA Jan Palfijn"},"R1"]
[8624579618,"20198001.4",862382656,"Het Ziekenhuisnetwerk Antwerpen","ZNA Hoge Beuken","PV-panelen",58464,"SIMPLE","RPS-1041-2 (R1)",{"$f":"basisdata[[#This Row],[Categorie maatregel]]","v":"PV-panelen"},null,{"$f":"basisdata[[#This Row],[Gebouw]]","v":"ZNA Hoge Beuken"},"R1"]
[8624579618,"20207661.2",862382656,"Het Ziekenhuisnetwerk Antwerpen","ZNA Psychiatrisch Ziekenhuis Stuivenberg","PV-panelen",43705,"SIMPLE","RPS-1200-1 (R1)",{"$f":"basisdata[[#This Row],[Categorie maatregel]]","v":"PV-panelen"},null,{"$f":"basisdata[[#This Row],[Gebouw]]","v":"ZNA Psychiatrisch Ziekenhuis Stuivenberg"},"R1"]
[8634052957,"20236371.2",863329989,"Het Dak - WZC De Noordhinder","Het Dak - Rusthuis de Noordhinder","PV-panelen",12772,"SIMPLE","RPS-1322-1 (R2)",{"$f":"basisdata[[#This Row],[Categorie maatregel]]","v":"PV-panelen"},null,{"$f":"basisdata[[#This Row],[Gebouw]]","v":"Het Dak - Rusthuis de Noordhinder"},"R2"]
[8634052957,"20236371.1",863329989,"Het Dak - WZC De Noordhinder","Het Dak - Rusthuis de Noordhinder","Relighting",81000,"SIMPLE","RPS-1322-2 (R2)",{"$f":"basisdata[[#This Row],[Categorie maatregel]]","v":"Relighting"},null,{"$f":"basisdata[[#This Row],[Gebouw]]","v":"Het Dak - Rusthuis de Noordhinder"},"R2"]
[8634052957,"20236371.1",863329989,"Het Dak - WZC De Noordhinder","Het Dak - Rusthuis de Noordhinder","Relighting",55800,"SIMPLE","RPS-1322-3 (R2)",{"$f":"basisdata[[#This Row],[Categorie maatregel]]","v":"Relighting"},null,{"$f":"basisdata[[#This Row],[Gebouw]]","v":"Het Dak - Rusthuis de Noordhinder"},"R2"]
[8662463066,"20224060.1",866171002,"Felies Junior","IBO De Mallemolen","Dakisolatie plat dak",13500,"SIMPLE","RPS-1201-1 (R1)",{"$f":"basisdata[[#This Row],[Categorie maatregel]]","v":"Dakisolatie plat dak"},null,{"$f":"basisdata[[#This Row],[Gebouw]]","v":"IBO De Mallemolen"},"R1"]
[8662463066,"20224060.1",866171002,"Felies Junior","IBO De Mallemolen","Dakisolatie plat dak",5130,"SIMPLE","RPS-1201-2 (R1)",{"$f":"basisdata[[#This Row],[Categorie maatregel]]","v":"Dakisolatie plat dak"},null,{"$f":"basisdata[[#This Row],[Gebouw]]","v":"IBO De Mallemolen"},"R1"]
[8665320605,"20223780.3",866456755,"RUSTHUIS PALLIETER","Pallieter","PV-panelen",32041,"SIMPLE","RPS-913-6 (R1)",{"$f":"basisdata[[#This Row],[Categorie maatregel]]","v":"PV-panelen"},null,{"$f":"basisdata[[#This Row],[Gebouw]]","v":"Pallieter"},"R1"]
[8784810757,"20232005.1",878405769,"Ons Huis","NAH Nieuwe notelaar / 7 Gaven","Relighting",23800,"SIMPLE","RPS-1202-1 (R1)",{"$f":"basisdata[[#This Row],[Categorie maatregel]]","v":"Relighting"},null,{"$f":"basisdata[[#This Row],[Gebouw]]","v":"NAH Nieuwe notelaar / 7 Gaven"},"R1"]
[8813666266,"20223640.2",881291322,"VITAZ","Kasteel Moeland","Relamping",312,"SIMPLE","RPS-966-3 (R1)",{"$f":"basisdata[[#This Row],[Categorie maatregel]]","v":"Relamping"},null,{"$f":"basisdata[[#This Row],[Gebouw]]","v":"Kasteel Moeland"},"R1"]
[8813666266,"20223640.2",881291322,"VITAZ","Kasteel Moeland","Relighting",6510,"SIMPLE","RPS-966-4 (R1)",{"$f":"basisdata[[#This Row],[Categorie maatregel]]","v":"Relighting"},null,{"$f":"basisdata[[#This Row],[Gebouw]]","v":"Kasteel Moeland"},"R1"]
[8813666266,"20223640.2",881291322,"VITAZ","Kasteel Moeland","Relighting",5610,"SIMPLE","RPS-966-5 (R1)",{"$f":"basisdata[[#This Row],[Categorie maatregel]]","v":"Relighting"},null,{"$f":"basisdata[[#This Row],[Gebouw]]","v":"Kasteel Moeland"},"R1"]
[8813666266,"20226065.2",881291322,"VITAZ","K-Dienst","PV-panelen",5669,"SIMPLE","RPS-967-2 (R1)",{"$f":"basisdata[[#This Row],[Categorie maatregel]]","v":"PV-panelen"},null,{"$f":"basisdata[[#This Row],[Gebouw]]","v":"K-Dienst"},"R1"]
[8813666266,"20226065.2",881291322,"VITAZ","K-Dienst","Relamping",528,"SIMPLE","RPS-967-3 (R1)",{"$f":"basisdata[[#This Row],[Categorie maatregel]]","v":"Relamping"},null,{"$f":"basisdata[[#This Row],[Gebouw]]","v":"K-Dienst"},"R1"]
[8813666266,"20226065.2",881291322,"VITAZ","K-Dienst","Relighting",7380,"SIMPLE","RPS-967-4 (R1)",{"$f":"basisdata[[#This Row],[Categorie maatregel]]","v":"Relighting"},null,{"$f":"basisdata[[#This Row],[Gebouw]]","v":"K-Dienst"},"R1"]
[8813666266,"20226065.2",881291322,"VITAZ","K-Dienst","Relighting",9990,"SIMPLE","RPS-967-5 (R1)",{"$f":"basisdata[[#This Row],[Categorie maatregel]]","v":"Relighting"},null,{"$f":"basisdata[[#This Row],[Gebouw]]","v":"K-Dienst"},"R1"]
[8813666266,"20222064.2",881291322,"VITAZ","Logistiek platform","PV-panelen",12155,"SIMPLE","RPS-968-3 (R1)",{"$f":"basisdata[[#This Row],[Categorie maatregel]]","v":"PV-panelen"},null,{"$f":"basisdata[[#This Row],[Gebouw]]","v":"Logistiek platform"},"R1"]
[8813666266,"20222064.2",881291322,"VITAZ","Logistiek platform","Relamping",1791,"SIMPLE","RPS-968-4 (R1)",{"$f":"basisdata[[#This Row],[Categorie maatregel]]","v":"Relamping"},null,{"$f":"basisdata[[#This Row],[Gebouw]]","v":"Logistiek platform"},"R1"]
[8813666266,"20222064.2",881291322,"VITAZ","Logistiek platform","Relighting",15327,"SIMPLE","RPS-968-5 (R1)",{"$f":"basisdata[[#This Row],[Categorie maatregel]]","v":"Relighting"},null,{"$f":"basisdata[[#This Row],[Gebouw]]","v":"Logistiek platform"},"R1"]
[8813666266,"20222064.2",881291322,"VITAZ","Logistiek platform","Relighting",10350,"SIMPLE","RPS-968-6 (R1)",{"$f":"basisdata[[#This Row],[Categorie maatregel]]","v":"Relighting"},null,{"$f":"basisdata[[#This Row],[Gebouw]]","v":"Logistiek platform"},"R1"]
[8813666266,"20228625.2",881291322,"VITAZ","Ter Wilgen","PV-panelen",6923,"SIMPLE","RPS-969-3 (R1)",{"$f":"basisdata[[#This Row],[Categorie maatregel]]","v":"PV-panelen"},null,{"$f":"basisdata[[#This Row],[Gebouw]]","v":"Ter Wilgen"},"R1"]
[8813666266,"20228625.2",881291322,"VITAZ","Ter Wilgen","Relamping",1428,"SIMPLE","RPS-969-4 (R1)",{"$f":"basisdata[[#This Row],[Categorie maatregel]]","v":"Relamping"},null,{"$f":"basisdata[[#This Row],[Gebouw]]","v":"Ter Wilgen"},"R1"]
[8813666266,"20228625.2",881291322,"VITAZ","Ter Wilgen","Relighting",3990,"SIMPLE","RPS-969-5 (R1)",{"$f":"basisdata[[#This Row],[Categorie maatregel]]","v":"Relighting"},null,{"$f":"basisdata[[#This Row],[Gebouw]]","v":"Ter Wilgen"},"R1"]
[8813666266,"20228625.2",881291322,"VITAZ","Ter Wilgen","Relighting",15702,"SIMPLE","RPS-969-6 (R1)",{"$f":"basisdata[[#This Row],[Categorie maatregel]]","v":"Relighting"},null,{"$f":"basisdata[[#This Row],[Gebouw]]","v":"Ter Wilgen"},"R1"]
[8813666266,"20227087.2",881291322,"VITAZ","Vitaz - Site SL","PV-panelen",141866,"SIMPLE","RPS-970-3 (R1)",{"$f":"basisdata[[#This Row],[Categorie maatregel]]","v":"PV-panelen"},null,{"$f":"basisdata[[#This Row],[Gebouw]]","v":"Vitaz - Site SL"},"R1"]
[8813666266,"20227087.2",881291322,"VITAZ","Vitaz - Site SL","Relamping",3210,"SIMPLE","RPS-970-4 (R1)",{"$f":"basisdata[[#This Row],[Categorie maatregel]]","v":"Relamping"},null,{"$f":"basisdata[[#This Row],[Gebouw]]","v":"Vitaz - Site SL"},"R1"]
[8813666266,"20227087.2",881291322,"VITAZ","Vitaz - Site SL","Relighting",27409,"SIMPLE","RPS-970-5 (R1)",{"$f":"basisdata[[#This Row],[Categorie maatregel]]","v":"Relighting"},null,{"$f":"basisdata[[#This Row],[Gebouw]]","v":"Vitaz - Site SL"},"R1"]
[8813666266,"20227087.2",881291322,"VITAZ","Vitaz - Site SL","Relighting",17715,"SIMPLE","RPS-970-6 (R1)",{"$f":"basisdata[[#This Row],[Categorie maatregel]]","v":"Relighting"},null,{"$f":"basisdata[[#This Row],[Gebouw]]","v":"Vitaz - Site SL"},"R1"]
[8813666266,"20227087.2",881291322,"VITAZ","Vitaz - Site SL","Relighting",38580,"SIMPLE","RPS-970-7 (R1)",{"$f":"basisdata[[#This Row],[Categorie maatregel]]","v":"Relighting"},null,{"$f":"basisdata[[#This Row],[Gebouw]]","v":"Vitaz - Site SL"},"R1"]
[8813666266,"20228875.2",881291322,"VITAZ","VITAZ vzw","Relighting",43020,"SIMPLE","RPS-971-10 (R1)",{"$f":"basisdata[[#This Row],[Categorie maatregel]]","v":"Relighting"},null,{"$f":"basisdata[[#This Row],[Gebouw]]","v":"VITAZ vzw"},"R1"]
[8813666266,"20228875.2",881291322,"VITAZ","VITAZ vzw","Relighting",25410,"SIMPLE","RPS-971-11 (R1)",{"$f":"basisdata[[#This Row],[Categorie maatregel]]","v":"Relighting"},null,{"$f":"basisdata[[#This Row],[Gebouw]]","v":"VITAZ vzw"},"R1"]
[8813666266,"20228875.2",881291322,"VITAZ","VITAZ vzw","Relighting",46620,"SIMPLE","RPS-971-12 (R1)",{"$f":"basisdata[[#This Row],[Categorie maatregel]]","v":"Relighting"},null,{"$f":"basisdata[[#This Row],[Gebouw]]","v":"VITAZ vzw"},"R1"]
[8813666266,"20228875.2",881291322,"VITAZ","VITAZ vzw","PV-panelen",17178,"SIMPLE","RPS-971-8 (R1)",{"$f":"basisdata[[#This Row],[Categorie maatregel]]","v":"PV-panelen"},null,{"$f":"basisdata[[#This Row],[Gebouw]]","v":"VITAZ vzw"},"R1"]
[8813666266,"20228875.2",881291322,"VITAZ","VITAZ vzw","Relamping",3678,"SIMPLE","RPS-971-9 (R1)",{"$f":"basisdata[[#This Row],[Categorie maatregel]]","v":"Relamping"},null,{"$f":"basisdata[[#This Row],[Gebouw]]","v":"VITAZ vzw"},"R1"]
[8910683105,"20236827.2",890993005,"KINDERDAGVERBLIJF RAINBOWS","Kinderdagverblijf Rainbows","Dakisolatie plat dak",9240,"SIMPLE","RPS-1203-1 (R1)",{"$f":"basisdata[[#This Row],[Categorie maatregel]]","v":"Dakisolatie plat dak"},null,{"$f":"basisdata[[#This Row],[Gebouw]]","v":"Kinderdagverblijf Rainbows"},"R1"]
[8910683105,"20236827.2",890993005,"KINDERDAGVERBLIJF RAINBOWS","Kinderdagverblijf Rainbows","PV-panelen",6959,"SIMPLE","RPS-1203-2 (R1)",{"$f":"basisdata[[#This Row],[Categorie maatregel]]","v":"PV-panelen"},null,{"$f":"basisdata[[#This Row],[Gebouw]]","v":"Kinderdagverblijf Rainbows"},"R1"]
[8910683105,"20236827.2",890993005,"KINDERDAGVERBLIJF RAINBOWS","Kinderdagverblijf Rainbows","Renovatie ventilatie",13500,"SIMPLE","RPS-1203-3 (R1)",{"$f":"basisdata[[#This Row],[Categorie maatregel]]","v":"Renovatie ventilatie"},null,{"$f":"basisdata[[#This Row],[Gebouw]]","v":"Kinderdagverblijf Rainbows"},"R1"]
[8910683105,"20209821.2",890993005,"KINDERDAGVERBLIJF RAINBOWS","Kinderdagverblijf Rainbows vzw","PV-panelen",1412,"SIMPLE","RPS-789-12 (R1)",{"$f":"basisdata[[#This Row],[Categorie maatregel]]","v":"PV-panelen"},null,{"$f":"basisdata[[#This Row],[Gebouw]]","v":"Kinderdagverblijf Rainbows vzw"},"R1"]
[8910683105,"20209821.2",890993005,"KINDERDAGVERBLIJF RAINBOWS","Kinderdagverblijf Rainbows vzw","Relighting/relamping",1800,"SIMPLE","RPS-789-13 (R1)",{"$f":"basisdata[[#This Row],[Categorie maatregel]]","v":"Relighting/relamping"},null,{"$f":"basisdata[[#This Row],[Gebouw]]","v":"Kinderdagverblijf Rainbows vzw"},"R1"]
[8972669066,"20224815.1",897191602,"AZ TURNHOUT","Campus Sint Elisabeth Hoofdgebouw","PV-panelen",91265,"SIMPLE","RPS-1323-1 (R2)",{"$f":"basisdata[[#This Row],[Categorie maatregel]]","v":"PV-panelen"},null,{"$f":"basisdata[[#This Row],[Gebouw]]","v":"Campus Sint Elisabeth Hoofdgebouw"},"R2"]
[10052540805,"20189495.3",1005154085,"AZORG","ASZ Aalst","PV-panelen",172057.65822237637,"SIMPLE","RPS-1324-1 (R2)",{"$f":"basisdata[[#This Row],[Categorie maatregel]]","v":"PV-panelen"},null,{"$f":"basisdata[[#This Row],[Gebouw]]","v":"ASZ Aalst"},"R2"]
[10052540805,"20189495.3",1005154085,"AZORG","ASZ Aalst","Renovatie SWW",43707,"SIMPLE","RPS-1324-2 (R2)",{"$f":"basisdata[[#This Row],[Categorie maatregel]]","v":"Renovatie SWW"},null,{"$f":"basisdata[[#This Row],[Gebouw]]","v":"ASZ Aalst"},"R2"]
[10052540805,"20189335.3",1005154085,"AZORG","ASZ Geraardsbergen","Renovatie SWW",6921,"SIMPLE","RPS-1325-1 (R2)",{"$f":"basisdata[[#This Row],[Categorie maatregel]]","v":"Renovatie SWW"},null,{"$f":"basisdata[[#This Row],[Gebouw]]","v":"ASZ Geraardsbergen"},"R2"]
[10097052918,"20232642.1",1009605296,"Vlaspand","WZC Vlaspand","Isoleren pompen/kranen/hydraulica",1147,"SIMPLE","RPS-1326-1 (R2)",{"$f":"basisdata[[#This Row],[Categorie maatregel]]","v":"Isoleren pompen/kranen/hydraulica"},null,{"$f":"basisdata[[#This Row],[Gebouw]]","v":"WZC Vlaspand"},"R2"]
[10097052918,"20232642.1",1009605296,"Vlaspand","WZC Vlaspand","PV-panelen",3729,"SIMPLE","RPS-1326-2 (R2)",{"$f":"basisdata[[#This Row],[Categorie maatregel]]","v":"PV-panelen"},null,{"$f":"basisdata[[#This Row],[Gebouw]]","v":"WZC Vlaspand"},"R2"]
[10097052918,"20232642.1",1009605296,"Vlaspand","WZC Vlaspand","Relighting",37477,"SIMPLE","RPS-1326-3 (R2)",{"$f":"basisdata[[#This Row],[Categorie maatregel]]","v":"Relighting"},null,{"$f":"basisdata[[#This Row],[Gebouw]]","v":"WZC Vlaspand"},"R2"]
[10097052918,"20232642.1",1009605296,"Vlaspand","WZC Vlaspand","Renovatie ventilatie",18683,"SIMPLE","RPS-1326-4 (R2)",{"$f":"basisdata[[#This Row],[Categorie maatregel]]","v":"Renovatie ventilatie"},null,{"$f":"basisdata[[#This Row],[Gebouw]]","v":"WZC Vlaspand"},"R2"]
[0,null,0,"xxx","xxx","xxx",null,null,null,{"$f":"basisdata[[#This Row],[Categorie maatregel]]","v":"xxx"},{"$f":"IFERROR(VLOOKUP(Facturatie!B641,basisdata[[#All],[geheime code]:[KBO]],3,FALSE),999)","v":0},{"$f":"basisdata[[#This Row],[Gebouw]]","v":"xxx"}]
["foutieve geheime code",null,0,"xxx","xxx","xxx",null,null,null,{"$f":"basisdata[[#This Row],[Categorie maatregel]]","v":"xxx"},{"$f":"IFERROR(VLOOKUP(Facturatie!B123,basisdata[[#All],[geheime code]:[KBO]],3,FALSE),999)","v":0},{"$f":"basisdata[[#This Row],[Gebouw]]","v":"xxx"}]